Workbook

Sheet Titel
A1: CIVIL ENGINEER VERSE
A2: All Rates On Base NHA Analysis
A3: Civil Work / Utillity Works / Plumbing Work / Electric Work
A4: TITEL PAGE OF
A5: UNIT RATE ANALYSIS

Sheet Rate List
A1: Project Name
A2: LIST OF SELLING RATES
A4: Sr. No. | B4: Description | C4: Unit | D4: Basic Rate (Rs.) | E4: 25% Overhead , Profit (Rs.) | F4: Composit Rate (Rs.) | G4: Rate Analysis Sheet Link | H4: Remarks
B5: CIVIL ITEMS
B6: Earth Work
A7: 1 | B7: Site Clearance | C7: Sft | D7: ='Earth Works'!G35 -> 1.00 | E7: =+D7*25% -> 0.25 | F7: =SUM(D7:E7) -> 1.24 | G7: Click Here
A8: =A7+1 -> 2 | B8: Clearing & Grubbing | C8: Sft | D8: ='Earth Works'!G72 -> 1.31 | E8: 0.33 | F8: 1.63 | G8: Click Here
A9: =A8+1 -> 3 | B9: Structural Excavation | C9: Cft | D9: =Excavation!G32 -> 5.77 | E9: 1.44 | F9: 7.21 | G9: Click Here
A10: 4 | B10: Excavation & Backfill | C10: Cft | D10: ='Excavation and Back Filling'!G38 -> 8.61 | E10: 2.15 | F10: 10.76 | G10: Click Here
A11: 5 | B11: Natural Ground Compaction | C11: Sft | D11: ='Earth Works'!G109 -> 1.21 | E11: 0.30 | F11: 1.51 | G11: Click Here
A12: 6 | B12: Filling / Embankment | C12: Cft | D12: ='Earth Works'!G151 -> 9.27 | E12: 2.32 | F12: 11.58 | G12: Click Here
A13: 7 | B13: Sub Grade Preparation | C13: Sft | D13: ='Earth Works'!G192 -> 5.32 | E13: 1.33 | F13: 6.65 | G13: Click Here
B14: Sub Base & Base Course
A15: =A13+1 -> 8 | B15: Sub Base Course | C15: Cft | D15: ='Sub Base & Base'!G40 -> 58.07 | E15: =+D15*25% -> 14.52 | F15: =SUM(D15:E15) -> 72.59 | G15: Click Here
A16: =A15+1 -> 9 | B16: Aggregate Base Course | C16: Cft | D16: =+'Sub Base & Base'!G83 -> 67.52 | E16: =+D16*25% -> 16.88 | F16: =SUM(D16:E16) -> 84.40 | G16: Click Here
A17: 10 | B17: Asphalt Base | C17: Cft | D17: ='Asphalt Premix'!G55 -> 398.34 | E17: 99.58 | F17: 497.92 | G17: Click Here
A18: 11 | B18: Premix Asphalt (Street /Lane) | C18: Cft | D18: =D17 -> 398.34 | E18: 99.58 | F18: 497.92 | G18: Click Here
A19: 12 | B19: Prime Coat | C19: Sft | D19: ='Prime Coat'!G40 -> 6.60 | E19: 1.65 | F19: 8.25 | G19: Click Here
B20: Ancilliry Work
A21: =A19+1 -> 13 | B21: Fixing of Kerbstone | C21: Ft | D21: ='Kerb Stone'!G34 -> 155.97 | E21: 38.99 | F21: 194.96 | G21: Click Here
A22: 14 | B22: Fixing of Edge Stone | C22: Ft | D22: ='Edge Stone'!H32 -> 30.04 | E22: 7.51 | F22: 37.55 | G22: Click Here
A23: 15 | B23: Fixing of Walk ways | C23: Sft | D23: ='Tuff Paver'!I39 -> 67.27 | E23: 16.82 | F23: 84.09 | G23: Click Here
B24: Building Works
A25: =A23+1 -> 16 | B25: Lean Concrete | C25: Cft | D25: ='Concrete Rates'!G41 -> 173.99 | E25: 43.50 | F25: 217.49 | G25: Click Here
A26: 17 | B26: Concrete 1:2:4 | C26: Cft | D26: ='Concrete Rates'!G91 -> 224.95 | E26: 56.24 | F26: 281.19 | G26: Click Here
A27: 18 | B27: Concrete 1:1-1/2:3 | C27: Cft | D27: ='Concrete Rates'!G141 -> 322.11 | E27: 80.53 | F27: 402.64 | G27: Click Here
A28: 19 | B28: Reinforcement Steel G-60 | C28: Ton | D28: ='Steel G-60'!H47 -> 93,669.52 | E28: 23,417.38 | F28: 117,086.90 | G28: Click Here
A29: 20 | B29: Brick work | C29: Cft | D29: ='Brick Works'!G38 -> 186.57 | E29: 46.64 | F29: 233.21 | G29: Click Here
A30: 21 | B30: Internal Plaster 1/2'' (13 mm) thick cement plaster 1:4 | C30: Sft | D30: ='C.Plaster 13mm'!I51 -> 19.29 | E30: 4.82 | F30: 24.12 | G30: Click Here
A31: 22 | B31: Stucking | C31: Sft | D31: 8.16 | E31: 2.04 | F31: 10.20 | G31: Click Here
A32: 23 | B32: Ceramic Spain Tile Flooring | C32: Sft | D32: ='Fountain TILE'!H45 -> 107.92 | E32: 26.98 | F32: 134.90 | G32: Click Here
A33: 24 | B33: Sand Cushion | C33: Sft | D33: ='SAND CUSHION'!I41 -> 9.09 | E33: 2.27 | F33: 11.37 | G33: Click Here
A34: 25 | B34: Harrow Sand Fill in Park | C34: Sft | D34: ='SAND FILLING IN PARK'!H37 -> 27.76 | E34: 6.94 | F34: 34.70 | G34: Click Here
A35: 26 | B35: Filling of Earth in Green Belt | C35: Cft | D35: ='Filling of Earth in Park'!H38 -> 8.23 | E35: 2.06 | F35: 10.29 | G35: Click Here
A36: 27 | B36: Brick Blast | C36: Cft | D36: =' BRICK BAT '!H32 -> 40.52 | E36: 10.13 | F36: 50.64 | G36: Click Here
A37: 28 | B37: Marble Tiles | C37: Sft | D37: =+'Marble Tiles'!H42 -> 120.59 | E37: 30.15 | F37: 150.74 | G37: Click Here
A38: =A37+1 -> 29 | B38: Tile colour Size (33" x 8" ) Make Master | C38: Sft | D38: =' Granite,. Tiles Floor & Walll '!H45 -> 173.29 | E38: 43.32 | F38: 216.61 | G38: Click Here | J38: =8.2*8 -> 65.6 | K38: =23+10.5+22+10.5+22 -> 88
A39: 30 | B39: Tile colour Size (12" x 36" ) Make Imported (UAE) | C39: Sft | D39: =' Granite,. Tiles Floor & Walll '!H94 -> 340.19 | E39: 85.05 | F39: 425.24 | G39: Click Here | J39: =7.666*3 -> 22.998
A40: 31 | B40: Granite Light Size (48" x 4" ) Make Master | C40: Sft | D40: =' Granite,. Tiles Floor & Walll '!H144 -> 718.31 | E40: =+D40*25% -> 179.58 | F40: =SUM(D40:E40) -> 897.89 | G40: Click Here | J40: =SUM(J38:J39) -> 88.598
A41: 32 | B41: Granite Dark Size (48" x 24" ) Make Master | C41: Sft | D41: =' Granite,. Tiles Floor & Walll '!H194 -> 1,130.27 | E41: 282.57 | F41: 1,412.83 | G41: Click Here
A42: 33 | B42: Tile Colour Size (24'' x 24'') Make ''Imported(Malaysia)'' | C42: Sft | D42: =' Granite,. Tiles Floor & Walll '!H293 -> 197.84 | E42: 49.46 | F42: 247.29 | G42: Click Here
A43: =A42+1 -> 34 | B43: Tile Colour Size (26" x 9" ) Make Master | C43: Sft | D43: =' Granite,. Tiles Floor & Walll '!H342 -> 141.33 | E43: 35.33 | F43: 176.66 | G43: Click Here
A44: =A43+1 -> 35 | B44: Tile Colour Size (12" x 36" ) Make Master | C44: Sft | D44: =' Granite,. Tiles Floor & Walll '!H391 -> 300.92 | E44: 75.23 | F44: 376.15 | G44: Click Here
A45: =A44+1 -> 36 | B45: Tile Skirting 4'' Wide | C45: Sft | D45: =+' Granite,. Tiles Floor & Walll '!H440 -> 76.69 | E45: 19.17 | F45: 95.87 | G45: Click Here
A46: =A45+1 -> 37 | B46: Granite Skirting 4'' Wide | C46: Sft | D46: =+' Granite,. Tiles Floor & Walll '!H491 -> 42.92 | E46: 10.73 | F46: 53.65 | G46: Click Here
A47: =A44+1 -> 36 | B47: Bitumen Coating | C47: Sft | D47: =+'Bitumen Coating'!G24 -> 4.94 | E47: =+D47*25% -> 1.23 | F47: =SUM(D47:E47) -> 6.17 | G47: Click Here
A48: 37 | B48: Apron Jali / (Steel Mash) | C48: Sft | D48: =+'Aprom jali'!I36 -> 77.35 | E48: =+D48*25% -> 19.34 | F48: =SUM(D48:E48) -> 96.69 | G48: Click Here
A49: 38 | B49: Roof Structure Fiberglass 3" thick | C49: Sft | D49: 450.00 | H49: Shah jee File.
B50: SEWERAGE ITEMS
A51: =A50+1 -> 1 | B51: R.C.C Pipe dia 6" | C51: Rft | D51: ='R.C.C PIPE'!G39 -> 444.30 | E51: =+D51*25% -> 111.08 | F51: =SUM(D51:E51) -> 555.38 | G51: Click Here
A52: 2 | B52: R.C.C Pipe dia 9" | C52: Rft | D52: ='R.C.C PIPE'!G80 -> 501.80 | E52: =+D52*25% -> 125.45 | F52: =SUM(D52:E52) -> 627.25 | G52: Click Here
A53: 3 | B53: R.C.C Pipe dia 12" | C53: Rft | D53: ='R.C.C PIPE'!G121 -> 584.72 | E53: 146.18 | F53: 730.90 | G53: Click Here | J53: =7000*2500 -> 17,500,000.00
A54: 4 | B54: R.C.C Pipe dia 15" | C54: Rft | D54: ='R.C.C PIPE'!G162 -> 691.23 | E54: 172.81 | F54: 864.04 | G54: Click Here
A55: 5 | B55: R.C.C Pipe dia 18" | C55: Rft | D55: ='R.C.C PIPE'!G204 -> 743.68 | E55: 185.92 | F55: 929.60 | G55: Click Here
A56: 6 | B56: R.C.C Pipe dia 21" | C56: Rft | D56: ='R.C.C PIPE'!G246 -> 809.50 | E56: 202.38 | F56: 1,011.88 | G56: Click Here
A57: 7 | B57: R.C.C Pipe dia 24" | C57: Rft | D57: ='R.C.C PIPE'!G288 -> 860.11 | E57: 215.03 | F57: 1,075.14 | G57: Click Here
A58: 8 | B58: R.C.C Pipe dia 27" | C58: Rft | D58: ='R.C.C PIPE'!G331 -> 1,096.86 | E58: 274.22 | F58: 1,371.08 | G58: Click Here
A59: 9 | B59: R.C.C Pipe dia 30" | C59: Rft | D59: 1,218.73 | E59: 304.68 | F59: 1,523.41 | G59: Click Here
A60: =A58+1 -> 9 | B60: R.C.C Pipe dia 36" | C60: Rft | D60: ='R.C.C PIPE'!G374 -> 1,598.05 | E60: 399.51 | F60: 1,997.56 | G60: Click Here
B61: WATER SUPPLY ITEMS
A62: 1 | B62: Pipe dia 3/4" | C62: Rft | D62: ='Water Supply'!G34 -> 31.96 | E62: =+D62*25% -> 7.99 | F62: =SUM(D62:E62) -> 39.95 | G62: Click Here
A63: 2 | B63: Pipe dia 2" | C63: Rft | D63: ='Water Supply'!G70 -> 102.89 | E63: 25.72 | F63: 128.62 | G63: Click Here
A64: 3 | B64: Pipe dia 3" | C64: Rft | D64: ='Water Supply'!G106 -> 204.37 | E64: 51.09 | F64: 255.46 | G64: Click Here
A65: 4 | B65: Pipe dia 4" | C65: Rft | D65: ='Water Supply'!G142 -> 354.05 | E65: 88.51 | F65: 442.56 | G65: Click Here
A66: 5 | B66: Pipe dia 6" | C66: Rft | D66: ='Water Supply'!G178 -> 728.74 | E66: 182.19 | F66: 910.93 | G66: Click Here
A67: 6 | B67: Pipe dia 8" | C67: Rft | D67: ='Water Supply'!G214 -> 906.93 | E67: 226.73 | F67: 1,133.66 | G67: Click Here
A68: 7 | B68: Tube wall | C68: No | D68: =+'Water Supply'!G246 -> 1,597,180 | E68: 399,295 | F68: 1,996,475 | G68: Click Here
A69: 8 | B69: Over Head water Tank | C69: No | D69: =+'Water Supply'!G278 -> 20,000,000 | E69: =+D69*25% -> 5,000,000 | F69: =SUM(D69:E69) -> 25,000,000 | G69: Click Here
B70: PLUMBING ITEMS
A71: 1 | B71: Indian style WC Porta Make | C71: No | D71: ='Plumbing Items'!H48 -> 6,370.00 | E71: =+D71*25% -> 1,593 | F71: =SUM(D71:E71) -> 7,963 | G71: Click Here
A72: 2 | B72: Europen Style W.C | C72: No | D72: ='Plumbing Items'!H93 -> 17,875.00 | E72: 4,469 | F72: 22,344 | G72: Click Here
A73: 3 | B73: PPRC Pipe 1" inch dia (25mm) | C73: Rft | D73: ='Plumbing Items'!H137 -> 74.15 | E73: 19 | F73: 93 | G73: Click Here
A74: 4 | B74: PPRC Pipe 1.5" inch dia (32mm) | C74: Rft | D74: ='Plumbing Items'!H182 -> 110.88 | E74: 28 | F74: 139 | G74: Click Here
A75: 5 | B75: PPRC Pipe 2" inch dia (50mm) | C75: Rft | D75: ='Plumbing Items'!H227 -> 143.52 | E75: 36 | F75: 179 | G75: Click Here
A76: 6 | B76: UPVC Pipe 4 inch dia | C76: Rft | D76: ='Plumbing Items'!H270 -> 186.00 | E76: 47 | F76: 233 | G76: Click Here
B77: MECHANICAL ITEMS
A78: =A77+1 -> 1 | B78: Pipe dia 6" | C78: Rft | D78: ='MS PIPE'!H44 -> 719.49 | E78: =+D78*25% -> 180 | F78: =SUM(D78:E78) -> 899 | G78: Click Here
A79: =A78+1 -> 2 | B79: Pipe dia 8" | C79: Rft | D79: ='MS PIPE'!H93 -> 1,066.74 | E79: 267 | F79: 1,333 | G79: Click Here
B80: ELECTRICAL ITEMS
A81: 1 | B81: Street Light Pole Foundation
A82: =A81+0.1 -> 1.1 | B82: Size (2' x 2' x 6') | C82: No | D82: =+'Light Pole Foundation'!J13 -> 10,603.66 | E82: =+D82*25% -> 2,651 | F82: =SUM(D82:E82) -> 13,255 | G82: Click Here
A83: =A82+0.1 -> 1.2 | B83: Size (1.75' x 1.75' x 5') | C83: No | D83: =+'Light Pole Foundation'!J26 -> 7,226.58 | E83: 1,807 | F83: 9,033 | G83: Click Here
A84: =A83+0.1 -> 1.3 | B84: Size (1.5' x 1.5' x 5') | C84: No | D84: =+'Light Pole Foundation'!J39 -> 5,764.10 | E84: 1,441 | F84: 7,205 | G84: Click Here
A85: =A81+1 -> 2 | B85: Cables
A86: =A85+0.1 -> 2.1 | B86: HT 3Core x 120mm sq.Al/XLPE/PVC/PVC Cable (Non Armoured) | C86: Rft | D86: =+'CABLES RATE'!H41 -> 801.06 | E86: =+D86*25% -> 200 | F86: =SUM(D86:E86) -> 1,001 | G86: Click Here
A87: =A86+0.1 -> 2.2 | B87: HT 1Core x 240mm sq.Al/XLPE/PVC/PVC Cable (Armoured) | C87: Rft | D87: =+'CABLES RATE'!H88 -> 413.87 | E87: =+D87*25% -> 103 | F87: =SUM(D87:E87) -> 517 | G87: Click Here
A88: =A87+0.1 -> 2.3 | B88: HT 4Core x 120mm sq.Al/XLPE/PVC/PVC Cable (Non Armoured) | C88: Rft | D88: =+'CABLES RATE'!H134 -> 303.01 | E88: =+D88*25% -> 76 | F88: =SUM(D88:E88) -> 379 | G88: Click Here
A89: 2.4 | B89: =+'CABLES RATE'!B143 -> LT CABLE 4 CORE 25 mm² | C89: Rft | D89: =+'CABLES RATE'!H179 -> 118.70 | E89: =+D89*25% -> 30 | F89: =SUM(D89:E89) -> 148 | G89: Click Here
A90: 2.5 | B90: =+'CABLES RATE'!B188 -> LT CABLE 4 CORE 16 mm² | C90: Rft | D90: =+'CABLES RATE'!H224 -> 97.05 | E90: =+D90*25% -> 24 | F90: =SUM(D90:E90) -> 121 | G90: Click Here
A91: 2.6 | B91: =+'CABLES RATE'!B233 -> LT CABLE 2 CORE 2.5 mm² | C91: Rft | D91: =+'CABLES RATE'!H263 -> 25.95 | E91: =+D91*25% -> 6 | F91: =SUM(D91:E91) -> 32 | G91: Click Here
A92: 2.7 | B92: =+'CABLES RATE'!B272 -> 4 CORE 25mm² CABLE | C92: Rft | D92: =+'CABLES RATE'!H316 -> 72.92 | E92: =+D92*25% -> 18 | F92: =SUM(D92:E92) -> 91 | G92: Click Here
A93: 2.8 | B93: =+'CABLES RATE'!B327 -> 4 CORE 16mm² CABLE | C93: Rft | D93: =+'CABLES RATE'!H371 -> 55.72 | E93: =+D93*25% -> 14 | F93: =SUM(D93:E93) -> 70 | G93: Click Here
A94: =A85+1 -> 3 | B94: Poles
A95: =A94+0.1 -> 3.1 | B95: Single Arm 6M Height | C95: No | D95: =+Pole!F21 -> 24,150.00 | E95: =+D95*25% -> 6,038 | F95: =SUM(D95:E95) -> 30,188 | G95: Click Here
A96: 3.2 | B96: Single Arm 8M Height | C96: No | D96: =+Pole!F49 -> 29,400.00 | E96: 7,350 | F96: 36,750 | G96: Click Here
A97: 3.3 | B97: Single Arm 10M Height | C97: No | D97: =+Pole!F77 -> 44,100.00 | E97: 11,025 | F97: 55,125 | G97: Click Here
A98: 3.4 | B98: Double Arm 10M Height | C98: No | D98: =+Pole!F104 -> 47,250.00 | E98: 11,813 | F98: 59,063 | G98: Click Here
A99: 3.5 | B99: Single Arm 12M Height | C99: No | D99: =+Pole!F132 -> 52,500.00 | E99: 13,125 | F99: 65,625 | G99: Click Here
A100: 3.6 | B100: Double Arm 12M Height | C100: No | D100: =+Pole!F161 -> 57,500.00 | E100: 14,375 | F100: 71,875 | G100: Click Here
A101: =A94+1 -> 4 | B101: Fixture and Lamps
A102: =A101+0.1 -> 4.1 | B102: LED Light 60 watt | C102: No | D102: =+'Light Fixture'!F20 -> 13,460.00 | E102: =+D102*25% -> 3,365 | F102: =SUM(D102:E102) -> 16,825 | G102: Click Here
A103: =A101+1 -> 5 | B103: Fancy Poles
A104: =A103+0.1 -> 5.1 | B104: Fancy Light 5 Globe | C104: No | D104: =+'Light Fixture'!F47 -> 32,210.00 | E104: 8,053 | F104: =SUM(D104:E104) -> 40,263 | G104: Click Here
A105: =A104+0.1 -> 5.2 | B105: Fancy Light 13 Globe | C105: No | D105: =+'Light Fixture'!F75 -> 67,360.00 | E105: 16,840 | F105: 84,200 | G105: Click Here
A106: =A105+0.1 -> 5.3 | B106: Fancy Light 31 Globe | C106: No | D106: =+'Light Fixture'!F103 -> 142,760.00 | E106: 35,690 | F106: 178,450 | G106: Click Here
A107: =A103+1 -> 6 | B107: Solar Poles
A108: =A107+0.1 -> 6.1 | B108: Solar Pole | C108: No | D108: 47,200.00
A109: =A108+0.1 -> 6.2 | B109: Solar Light + Testing Commissioning | C109: No | D109: =+'Light Fixture'!F131 -> 72,260.00 | E109: =+D109*25% -> 18,065 | F109: =SUM(D109:E109) -> 90,325 | G109: Click Here
A110: 7 | B110: Solar System Maint Gate | D110: 3,630,000.00 | H110: PO Attached
A111: 8 | B111: Steel Structure Main Gate | D111: 3,510,000.00 | H111: PO Attached
A112: 9 | B112: Foundation of 100-200 KVA Pad Mounted Transformer | C112: No | D112: ='Tranformer Pad Foundations '!J37 -> 40,191.00 | E112: =+D112*25% -> 10,048 | F112: =SUM(D112:E112) -> 50,239 | G112: Click Here

Sheet Earth Works
A1: Project Name…..
A2: CIVIL INFRASTRUCTURE WORKS
A4: RATE ANALYSIS
B5: Road Works
B6: Item # 101 | F6: Unit | G6: 3,500.00 | H6: SM
B7: Item Desc. | C7: Site Clearance
A10: A | B10: Manpower
B11: Description | D11: No. | E11: Hours | F11: Rate (Rs.) | G11: Amount (Rs.)
B12: Supervisor | D12: 1 | E12: 2.00 | F12: 169.95 | G12: =D12*E12*F12 -> 339.90
B13: Surveyor | D13: 1 | E13: 2.00 | F13: 218.51 | G13: =D13*E13*F13 -> 437.02
B14: Helper | D14: 2 | E14: 2.00 | F14: 62.50 | G14: =D14*E14*F14 -> 250.00
B15: Labour | D15: 4 | E15: 8.00 | F15: 62.50 | G15: =D15*E15*F15 -> 2,000.00
B17: Total Manpower (A) | G17: =SUM(G12:G16) -> 3,026.92
A19: B | B19: Materials
B20: Description | D20: Unit | E20: Quantity | F20: Rate (Rs.) | G20: Amount (Rs.)
B23: Total Materials (B) | G23: =SUM(G21:G22) -> 0
A24: C | B24: Equipment /Machinery
B25: Description | D25: No. | E25: Hours | F25: Rate (Rs.) | G25: Amount (Rs.)
B26: Front End Loader 2.50 Cu.m | D26: 1 | E26: 3.00 | F26: 1,605.14 | G26: =D26*E26*F26 -> 4,815.42
B27: Grader 165 H.P | D27: 1 | E27: 6.00 | F27: 3,530.15 | G27: =D27*E27*F27 -> 21,180.90
B28: Dumper. 10 T. | D28: 1 | E28: 6.00 | F28: 1,412.83 | G28: =D28*E28*F28 -> 8,476.98
B30: Total Equipment / Machinery ( C ) | G30: =SUM(G26:G28) -> 34,473.30
B31: Summary
B33: Basic Cost For 3,500.00 SM | G33: =G17+G23+G30 -> 37,500.22
B34: Basic Cost Per SM | G34: =ROUND(G33/3500,2) -> 10.71 | I34: =G34/10.76 -> 1.00
B35: Basic Cost Per SFT | G35: =G34/10.76 -> 1.00 | I35: =G35/10.76 -> 0.09
B36: OverHead & Profit 25 Percentage | G36: =G35*0.25 -> 0.25
B37: Total Cost Per SFT | G37: =ROUND(SUM(G35:G36),2) -> 1.24
A38: =+A1 -> Project Name…..
A39: CIVIL INFRASTRUCTURE WORKS
A41: RATE ANALYSIS
B42: Road Works
B43: Item # 101 | F43: Unit | G43: 3,500.00 | H43: SM
B44: Item Desc. | C44: Clearing & Grubbing
A47: A | B47: Manpower
B48: Description | D48: No. | E48: Hours | F48: Rate (Rs.) | G48: Amount (Rs.)
B49: Supervisor | D49: 1 | E49: 8.00 | F49: 169.95 | G49: =D49*E49*F49 -> 1,359.60
B50: Surveyor | D50: 1 | E50: 2.00 | F50: 218.51 | G50: =D50*E50*F50 -> 437.02
B51: Helper | D51: 2 | E51: 2.00 | F51: 62.50 | G51: =D51*E51*F51 -> 250.00
B52: Labour | D52: 8 | E52: 8.00 | F52: 62.50 | G52: =D52*E52*F52 -> 4,000.00
B54: Total Manpower (A) | G54: =SUM(G49:G53) -> 6,046.62
A56: B | B56: Materials
B57: Description | D57: Unit | E57: Quantity | F57: Rate (Rs.) | G57: Amount (Rs.)
B60: Total Materials (B) | G60: =SUM(G58:G59) -> 0
A61: C | B61: Equipment /Machinery
B62: Description | D62: No. | E62: Hours | F62: Rate (Rs.) | G62: Amount (Rs.)
B63: Front End Loader 2.50 Cu.m | D63: 1 | E63: 4.00 | F63: 1,605.14 | G63: =D63*E63*F63 -> 6,420.56
B64: Grader 165 H.P | D64: 1 | E64: 8.00 | F64: 3,530.15 | G64: =D64*E64*F64 -> 28,241.20
B65: Dumper. 10 T. | D65: 1 | E65: 6.00 | F65: 1,412.83 | G65: =D65*E65*F65 -> 8,476.98
B67: Total Equipment / Machinery ( C ) | G67: =SUM(G63:G65) -> 43,138.74
B68: Summary
B70: Basic Cost For 3,500.00 SM | G70: =G54+G60+G67 -> 49,185.36
B71: Basic Cost Per SM | G71: =ROUND(G70/3500,2) -> 14.05 | I71: =G71/10.76 -> 1.31
B72: Basic Cost Per SFT | G72: =G71/10.76 -> 1.31 | I72: =G72/10.76 -> 0.12
B73: OverHead & Profit 25 Percentage | G73: =G72*0.25 -> 0.33
B74: Total Cost Per SFT | G74: =ROUND(SUM(G72:G73),2) -> 1.63
A75: =A1 -> Project Name…..
A76: =A2 -> CIVIL INFRASTRUCTURE WORKS
A78: RATE ANALYSIS
B79: Road Works
B80: Item # 104 | F80: Unit | G80: 3,500.00 | H80: SM
B81: Item Desc. | C81: Compaction of Natural Ground
A84: A | B84: Manpower
B85: Description | D85: No. | E85: Hours | F85: Rate (Rs.) | G85: Amount (Rs.)
B86: Supervisor | D86: 1 | E86: 10.00 | F86: 169.95 | G86: =D86*E86*F86 -> 1,699.50
B87: Assistant Surveyor | D87: 1 | E87: 2.00 | F87: 106.83 | G87: =D87*E87*F87 -> 213.66
B88: Helper | D88: 2 | E88: 2.00 | F88: 62.50 | G88: =D88*E88*F88 -> 250.00
B89: Labour | D89: 2 | E89: 8.00 | F89: 62.50 | G89: =D89*E89*F89 -> 1,000.00
B91: Total Manpower (A) | G91: =SUM(G86:G89) -> 3,163.16
A92: B | B92: Materials
D93: Unit | E93: Quantity | F93: Rate (Rs.) | G93: Amount
B94: Water | D94: 1000LIT | E94: 105.00 | F94: 120.00 | G94: =E94*F94 -> 12,600.00
B96: Total Materials (B) | G96: =SUM(G94:G94) -> 12,600.00
A97: C | B97: Equipment /Machinery
D98: No. | E98: Hours | F98: Rate (Rs.) | G98: Amount (Rs.)
B99: Grader.140 H.P | D99: 1 | E99: 4.00 | F99: 3,049.38 | G99: =D99*E99*F99 -> 12,197.52
B100: Combination Roller 10-12 T | D100: 1 | E100: 9.00 | F100: 1,284.30 | G100: =D100*E100*F100 -> 11,558.70
B101: Water Tank Tow Typ 4000 LTR.(INCl.TRACTOR) | D101: 3 | E101: 8.00 | F101: 192.31 | G101: =D101*E101*F101 -> 4,615.44
B102: Pump 4" Delivery (Diesel) | D102: 1 | E102: 2.00 | F102: 625.00 | G102: =D102*E102*F102 -> 1,250.00
B104: Total Equipment / Machinery ( C ) | G104: =SUM(G99:G102) -> 29,621.66
B105: Summary
B107: Basic Cost For 3,500.00 SM | G107: =G91+G96+G104 -> 45,384.82
B108: Basic Cost Per SM | G108: =ROUND(G107/3500,2) -> 12.97 | I108: =G108/10.76 -> 1.21
B109: Basic Cost Per SFT | G109: =G108/10.76 -> 1.21 | I109: =G109/10.76 -> 0.11
B110: OverHead & Profit 25 Percentage | G110: =G109*0.25 -> 0.30
B111: Total Cost Per SFT | G111: =ROUND(SUM(G109:G110),2) -> 1.51
A112: =A1 -> Project Name…..
A113: =A2 -> CIVIL INFRASTRUCTURE WORKS
A115: RATE ANALYSIS
B116: Road Works
B117: Item # 108c | F117: Unit | G117: 450.00 | H117: CM
B118: Item Desc. | C118: Formation of Embankment from Borrow Excavation in Commom Material (20Km Lead)
A121: A | B121: Manpower
B122: Description | D122: No. | E122: Hours | F122: Rate (Rs.) | G122: Amount (Rs.)
B123: Site Engineer | D123: 1 | E123: 4.00 | F123: 267.07 | G123: =D123*E123*F123 -> 1,068.28
B124: Forman Earthworks | D124: 1 | E124: 8.00 | F124: 150.00 | G124: 1,200.00
B125: Supervisor | D125: 1 | E125: 8.00 | F125: 169.95 | G125: 1,359.60
B126: Assistant Surveyor | D126: 1 | E126: 8.00 | F126: 106.83 | G126: 854.64
B127: Helper | D127: 2 | E127: 8.00 | F127: 62.50 | G127: 1,000.00
B128: Labour | D128: 4 | E128: 8.00 | F128: 62.50 | G128: 2,000.00
B130: Total Manpower (A) | G130: =SUM(G123:G128) -> 7,482.52
A131: B | B131: Materials
D132: Unit | E132: Quantity | F132: Rate (Rs.) | G132: Amount
B133: Soil Class-A4 | D133: CM | E133: 550.00 | F133: =4.75*35.32 -> 167.77 | G133: =E133*F133 -> 92,273.50
B134: Water | D134: 1000LIT | E134: 67.50 | F134: 120.00 | G134: =E134*F134 -> 8,100.00
B135: Add 5% Westage | D135: 5.00% | G135: =SUM(G133:G134)*D135 -> 5,018.68
B137: Total Materials (B) | G137: =SUM(G133:G135) -> 105,392.18
A138: C | B138: Equipment /Machinery
D139: No. | E139: Hours | F139: Rate (Rs.) | G139: Amount (Rs.)
B140: Grader.140 H.P | D140: 1 | E140: 4.00 | F140: 3,049.38 | G140: =D140*E140*F140 -> 12,197.52
B141: Combination Roller 10-12 T | D141: 2 | E141: 4.00 | F141: 1,284.30 | G141: =D141*E141*F141 -> 10,274.40
B142: Tractor.50 H.P | D142: 1 | E142: 3.00 | F142: 466.03 | G142: =D142*E142*F142 -> 1,398.09
B143: Water Tank Bowser Typ 12000 LTR. | D143: 2 | E143: 3.00 | F143: 1,446.17 | G143: =D143*E143*F143 -> 8,677.02
B144: Pump 4" Delivery (Diesel) | D144: 1 | E144: 3.00 | F144: 625.00 | G144: =D144*E144*F144 -> 1,875.00
B146: Total Equipment / Machinery ( C ) | G146: =SUM(G140:G144) -> 34,422.03
B147: Summary
B149: Basic Cost For 450.00 CM | G149: =G130+G137+G146 -> 147,296.73
B150: Basic Cost Per CM | G150: =ROUND(G149/450,2) -> 327.33 | I150: =G150/35.315 -> 9.27
B151: Basic Cost Per CFT | G151: =G150/35.32 -> 9.27 | I151: =G151/10.76 -> 0.86
B152: OverHead & Profit 25 Percentage | G152: =G151*0.25 -> 2.32
B153: Total Cost Per CFT | G153: =ROUND(SUM(G151:G152),2) -> 11.58
A154: =A1 -> Project Name…..
A155: =A2 -> CIVIL INFRASTRUCTURE WORKS
A157: RATE ANALYSIS
B158: Road Works
B159: Item # 109a | F159: Unit | G159: 1,450.00 | H159: SM
B160: Item Desc. | C160: Sub Grade Preparation in Fill
A163: A | B163: Manpower
B164: Description | D164: No. | E164: Hours | F164: Rate (Rs.) | G164: Amount (Rs.)
B165: Site Engineer | D165: 1 | E165: 2.00 | F165: 267.07 | G165: =D165*E165*F165 -> 534.14
B166: Forman Earthworks | D166: 1 | E166: 4.00 | F166: 150.00 | G166: 600.00
B167: Supervisor | D167: 1 | E167: 8.00 | F167: 169.95 | G167: 1,359.60
B168: Assistant Surveyor | D168: 1 | E168: 4.00 | F168: 106.83 | G168: 427.32
B169: Helper | D169: 2 | E169: 4.00 | F169: 62.50 | G169: 500.00
B170: Labour | D170: 2 | E170: 8.00 | F170: 62.50 | G170: 1,000.00
B172: Total Manpower (A) | G172: =SUM(G165:G170) -> 4,421.06
A173: B | B173: Materials
D174: Unit | E174: Quantity | F174: Rate (Rs.) | G174: Amount
B175: Water | D175: 1000LIT | E175: 83.00 | F175: 120.00 | G175: =E175*F175 -> 9,960.00
B177: Total Materials (B) | G177: =SUM(G175:G176) -> 9,960.00
A178: C | B178: Equipment /Machinery
D179: No. | E179: Hours | F179: Rate (Rs.) | G179: Amount (Rs.)
B180: Bul-Dozer 90 H.P | D180: 1 | E180: 6.00 | F180: 2,931.12 | G180: =D180*E180*F180 -> 17,586.72
B181: Grader.140 H.P | D181: 1 | E181: 3.00 | F181: 3,049.38 | G181: 9,148.14
B182: Combination Roller 10-12 T | D182: 1 | E182: 7.00 | F182: 1,284.30 | G182: 8,990.10
B183: Tractor.50 H.P | D183: 2 | E183: 4.00 | F183: 466.03 | G183: 3,728.24
B184: Water Tank Tow Typ 4000 LTR.(INCl.TRACTOR) | D184: 3 | E184: 6.00 | F184: 1,446.17 | G184: 26,031.06
B185: Pump 4" Delivery (Diesel) | D185: 1 | E185: 5.00 | F185: 625.00 | G185: 3,125.00
B187: Total Equipment / Machinery ( C ) | G187: =SUM(G180:G185) -> 68,609.26
B188: Summary
B190: Basic Cost For 1,450 SM | G190: =G172+G177+G187 -> 82,990.32
B191: Basic Cost Per SM | G191: =ROUND(G190/1450,2) -> 57.23 | I191: =G191/10.76 -> 5.32 | K191: =2.21+53.73 -> 55.94 | L191: =K191/10.76 -> 5.198884758
B192: Basic Cost Per SFT | G192: =G191/10.76 -> 5.32 | I192: =G192/10.76 -> 0.49
B193: OverHead & Profit 25 Percentage | G193: =G192*0.25 -> 1.33
B194: Total Cost Per SFT | G194: =ROUND(SUM(G192:G193),2) -> 6.65

Sheet Sub Base & Base
A1: ='Earth Works'!A1 -> Project Name…..
A2: ='Earth Works'!A2 -> CIVIL INFRASTRUCTURE WORKS
A4: RATE ANALYSIS
B5: Road Works
B6: Item # 201 | F6: Unit | G6: 480.00 | H6: CM
B7: Item Desc. | C7: Sub Base Course
A10: A | B10: Manpower
B11: Description | D11: No. | E11: Hours | F11: Rate (Rs.) | G11: Amount (Rs.)
B12: Site Engineer | D12: 1 | E12: 4.00 | F12: 267.07 | G12: =D12*E12*F12 -> 1,068.28
B13: Forman Earthworks | D13: 1 | E13: 8.00 | F13: 150.00 | G13: 1,200.00
B14: Supervisor | D14: 1 | E14: 8.00 | F14: 169.95 | G14: 1,359.60
B15: Surveyor | D15: 1 | E15: 4.00 | F15: 218.51 | G15: 874.04
B16: Assistant Surveyor | D16: 1 | E16: 8.00 | F16: 106.83 | G16: 854.64
B17: Helper | D17: 2 | E17: 8.00 | F17: 62.50 | G17: 1,000.00
B18: Labour | D18: 4 | E18: 8.00 | F18: 62.50 | G18: 2,000.00
B20: Total Manpower (A) | G20: =SUM(G12:G18) -> 8,356.56
A21: B | B21: Materials
D22: Unit | E22: Quantity | F22: Rate (Rs.) | G22: Amount
B23: Granular Sub-Base A | D23: CM | E23: 625.00 | F23: =38*35.32 -> 1,342.16 | G23: =E23*F23 -> 838,850.00
B24: Water | D24: 1000LIT | E24: 90.00 | F24: 120.00 | G24: =E24*F24 -> 10,800.00
B25: Add 5% Westage | D25: 5.00% | G25: =SUM(G23:G24)*D25 -> 42,482.50
B27: Total Materials (B) | G27: =SUM(G23:G25) -> 892,132.50
A28: C | B28: Equipment /Machinery
D29: No. | E29: Hours | F29: Rate (Rs.) | G29: Amount (Rs.)
B30: Grader.165 H.P | D30: 2 | E30: 6.00 | F30: 3,530.15 | G30: =D30*E30*F30 -> 42,361.80
B31: Combination Roller 18 T | D31: 2 | E31: 8.00 | F31: 1,284.30 | G31: =D31*E31*F31 -> 20,548.80
B32: Water Tank Bowser Typ 12000 LTR. | D32: 2 | E32: 6.00 | F32: 1,446.17 | G32: =D32*E32*F32 -> 17,354.04
B33: Pump 4" Delivery (Diesel) | D33: 1 | E33: 6.00 | F33: 625.00 | G33: =D33*E33*F33 -> 3,750.00
B35: Total Equipment / Machinery ( C ) | G35: =SUM(G30:G33) -> 84,014.64
B36: Summary
B38: Basic Cost For 480.00 CM | G38: =G20+G27+G35 -> 984,503.70
B39: Basic Cost Per CM | G39: =ROUND(G38/480,2) -> 2,051.05
B40: Basic Cost Per CFT | G40: =ROUND(G39/35.32,2) -> 58.07
B41: OverHead & Profit (10 + 15)Percentage | G41: =G40*0.25 -> 14.52
B42: Total Cost Per CFT | G42: =ROUND(SUM(G40:G41),2) -> 72.59
A43: =+A1 -> Project Name…..
A44: =+A2 -> CIVIL INFRASTRUCTURE WORKS
A46: RATE ANALYSIS
B47: Road Works
B48: Item # 201 | F48: Unit | G48: 480.00 | H48: CM
B49: Item Desc. | C49: Sub Base Course & Aggregate Base Course
A52: A | B52: Manpower
B53: Description | D53: No. | E53: Hours | F53: Rate (Rs.) | G53: Amount (Rs.)
B54: Site Engineer | D54: 1 | E54: 4.00 | F54: 267.07 | G54: =D54*E54*F54 -> 1,068.28
B55: Forman Earthworks | D55: 1 | E55: 8.00 | F55: 150.00 | G55: 1,200.00
B56: Supervisor | D56: 1 | E56: 8.00 | F56: 169.95 | G56: 1,359.60
B57: Surveyor | D57: 1 | E57: 4.00 | F57: 218.51 | G57: 874.04
B58: Assistant Surveyor | D58: 1 | E58: 8.00 | F58: 106.83 | G58: 854.64
B59: Helper | D59: 2 | E59: 8.00 | F59: 62.50 | G59: 1,000.00
B60: Labour | D60: 4 | E60: 8.00 | F60: 62.50 | G60: 2,000.00
B62: Total Manpower (A) | G62: =SUM(G54:G60) -> 8,356.56
A63: B | B63: Materials
D64: Unit | E64: Quantity | F64: Rate (Rs.) | G64: Amount
B65: Aggregate-Base A | D65: CM | E65: 625.00 | F65: =38*35.32 -> 1,342.16 | G65: =E65*F65 -> 838,850.00
B66: Stone Dust for Base course | D66: CM | E66: =+G48*0.3 -> 144.00 | F66: =30*35.32 -> 1,059.60 | G66: =E66*F66 -> 152,582.40
B67: Water | D67: 1000LIT | E67: 90.00 | F67: 120.00 | G67: =E67*F67 -> 10,800.00
B68: Add 5% Westage | D68: 5.00% | G68: =SUM(G65:G67)*D68 -> 50,111.62
B70: Total Materials (B) | G70: =SUM(G65:G68) -> 1,052,344.02
A71: C | B71: Equipment /Machinery
D72: No. | E72: Hours | F72: Rate (Rs.) | G72: Amount (Rs.)
B73: Grader.165 H.P | D73: 2 | E73: 6.00 | F73: 3,530.15 | G73: =D73*E73*F73 -> 42,361.80
B74: Combination Roller 18 T | D74: 2 | E74: 8.00 | F74: 1,284.30 | G74: =D74*E74*F74 -> 20,548.80
B75: Water Tank Bowser Typ 12000 LTR. | D75: 2 | E75: 6.00 | F75: 1,446.17 | G75: =D75*E75*F75 -> 17,354.04
B76: Pump 4" Delivery (Diesel) | D76: 1 | E76: 6.00 | F76: 625.00 | G76: =D76*E76*F76 -> 3,750.00
B78: Total Equipment / Machinery ( C ) | G78: =SUM(G73:G76) -> 84,014.64
B79: Summary
B81: Basic Cost For 480.00 CM | G81: =G62+G70+G78 -> 1,144,715.22
B82: Basic Cost Per CM | G82: =ROUND(G81/480,2) -> 2,384.82
B83: Basic Cost Per CFT | G83: =ROUND(G82/35.32,2) -> 67.52
B84: OverHead & Profit (10 + 15)Percentage | G84: =G83*0.25 -> 16.88
B85: Total Cost Per CFT | G85: =ROUND(SUM(G83:G84),2) -> 84.40

Sheet Asphalt Premix with Equipments (hidden)
A1: ='Concrete Rates'!A1 -> Project Name…..
A2: ='Concrete Rates'!A2 -> CIVIL INFRASTRUCTURE WORKS
A4: RATE ANALYSIS
B6: Asphalt Premix
B8: Measuring Unit | I8: 1 Cft
B10: Item Desc. | C10: Providing and laying of asphalt Premix equipment.
B12: Crew for 4,650 Cft or 132.00 C.M Quantity
A13: A | B13: Material Cost
A14: 1. | B14: Crush 25 ~ 20mm | D14: = | E14: 1,753.800 Cft @ 79.00Rs/Cft | F14: = | G14: =1753.8*79 -> 138,550.200 | H14: Rs./ 4,650Cft
A15: 2. | B15: Crush 20 ~ 10mm | D15: = | E15: 2,254.976 Cft @ 79.00Rs/Cft | F15: = | G15: =2254.976*79 -> 178,143.104 | H15: Rs./ 4,650Cft
A16: 3. | B16: Crush 10 ~ 05mm | D16: = | E16: 1,835.960 Cft @ 68.00Rs/Cft | F16: = | G16: =1835.96*68 -> 124,845.280 | H16: Rs./ 4,650Cft
A17: 4. | B17: Stone Dust 5~0mm | D17: = | E17: 2,498.296 Cft @ 49.00Rs/Cft | F17: = | G17: =2498.296*49 -> 122,416.504 | H17: Rs./ 4,650Cft
A18: 5. | B18: Bitumen 60/70 | D18: = | E18: 13.746.00 Ton @ 47,736Rs/Ton | F18: = | G18: =13.746*47736 -> 656,179.056 | H18: Rs./ 4,650Cft
A19: 6. | B19: Furnace Oil | D19: = | E19: 1,896.00 Ltr @ 46.92 Rs/ltr | F19: = | G19: =1896*46.92 -> 88,960.320 | H19: Rs./ 4,650Cft
A20: 7. | B20: Add 5% Wastage on Sr.No.1 ~ 6 | D20: = | E20: 5% | F20: = | G20: =SUM(G14:G19)*E20 -> 65,454.723 | H20: Rs./ 4,650Cft
E22: Sub-total Cost A | F22: = | G22: =SUM(G14:G20) -> 1,374,549.187 | H22: Rs./ 4,650Cft
A23: B | B23: Equipments:
A24: 1. | B24: Asphalt Mixing Plant 60 Ton | D24: = | E24: 1 x 6Hrs @ 480.77.00 Rs./Hrs | F24: = | G24: =1*6*480.77 -> 2,884.620 | H24: Rs./ 4,650Cft
A25: 2. | B25: Loader | D25: = | E25: 1 x 6Hrs @ 1076.51 Rs./Hrs | F25: = | G25: =1*1076.51 -> 1,076.510 | H25: Rs./ 4,650Cft
A26: 3. | B26: Dumper | D26: = | E26: 12 x 8 Hrs @ 1333.62 Rs./Hrs | F26: = | G26: =12*8*1333.62 -> 128,027.520 | H26: Rs./ 4,650Cft
A27: 4. | B27: PTR | D27: = | E27: 3 x 8Hrs @ 746.52 Rs./Hrs | F27: = | G27: =3*8*746.52 -> 17,916.480 | H27: Rs./ 4,650Cft
A28: 5. | B28: Tendom vibrator Roller | D28: = | E28: 1 x 8Hrs @ 765.75 Rs./Hrs | F28: = | G28: =1*8*765.75 -> 6,126.000 | H28: Rs./ 4,650Cft
A29: 6. | B29: Paver Machine | D29: = | E29: 1 x 6Hrs @ 1161.52 Rs./Hrs | F29: = | G29: =1*6*1161.52 -> 6,969.120 | H29: Rs./ 4,650Cft
A30: 7. | B30: Compressor | D30: = | E30: 1 x 4Hrs @ 765.75.00 Rs./Hrs | F30: = | G30: =1*4*765.75 -> 3,063.000 | H30: Rs./ 4,650Cft
A31: 8. | B31: Generator | D31: = | E31: 1 x 18 Hrs @ 2134.56 Rs./Hrs | F31: = | G31: =1*18*2134.56 -> 38,422.080 | H31: Rs./ 4,650Cft
E33: Sub-total Cost B | F33: = | G33: =SUM(G24:G31) -> 204,485.330 | H33: Rs./ 4,650Cft
A34: C | B34: Manpower Cost:
A35: 1. | B35: Asphalt plant Engineer | D35: = | E35: 1 x 6 Hrs @ 240.38Rs./Hrs | G35: =1*6*240.38 -> 1,442.280 | H35: Rs./ 4,650Cft
A36: 2. | B36: Site Engineer | D36: = | E36: 1 x 8 Hrs @ 288.46Rs./Hrs | G36: =1*8*288.46 -> 2,307.680 | H36: Rs./ 4,650Cft
A37: 3. | B37: Supervisor | D37: = | E37: 1 x 8 Hrs @ 144.230Rs./Hrs | G37: =1*8*144.23 -> 1,153.840 | H37: Rs./ 4,650Cft
A38: 4. | B38: Surveyor | D38: = | E38: 1 x 8 Hrs @ 144.230Rs./Hrs | G38: =1*8*144.23 -> 1,153.840 | H38: Rs./ 4,650Cft
A39: 5. | B39: Surveyor Helper | D39: = | E39: 4 x 8 Hrs @ 96.153Rs./Hrs | G39: =4*8*96.153 -> 3,076.896 | H39: Rs./ 4,650Cft
A40: 6. | B40: Labour Cost Per Ton | D40: = | E40: 316.00 Ton @ 225.00 Rs./Ton | G40: =316*225 -> 71,100.000 | H40: Rs./ 4,650Cft
E42: Sub-total Cost C | F42: = | G42: =SUM(G35:G40) -> 80,234.536 | H42: Rs./ 4,650Cft
A44: D | B44: Total Cost (A+B+C) | F44: = | G44: =G22+G33+G42 -> 1,659,269.053 | H44: =H42 -> Rs./ 4,650Cft
A46: E | B46: Add 2% water charges | F46: = | G46: =G44*2% -> 33,185.381 | H46: Rs./ 4,650Cft
A48: F | B48: Total Cost (D+E) | F48: = | G48: =G44+G46 -> 1,692,454.434 | H48: =H44 -> Rs./ 4,650Cft
A51: H | B51: G.Total Cost Prime (F+G) | F51: = | G51: =G48 -> 1,692,454.434 | H51: =H48 -> Rs./ 4,650Cft
A53: I | B53: Net Rate of Providing and laying of Asphalt Premix equipments. | F53: = | G53: =ROUND(G51/4650,) -> 364.00 | H53: Rs./Cft
G54: =ROUND(G53*35.315,0) -> 12,855.00 | H54: Rs./CM
G55: =ROUND(G54/2.4,0) -> 5,356.00 | H55: Rs//Ton
A56: Note:- | C56: Above rate included equipment rent @ 20% + diesel and primer as required.

Sheet Asphalt Premix
A1: ='Concrete Rates'!A1 -> Project Name…..
A2: ='Concrete Rates'!A2 -> CIVIL INFRASTRUCTURE WORKS
A4: RATE ANALYSIS
B6: Asphalt Premix
B8: Measuring Unit | I8: 1 Cft
B10: Item Desc. | C10: Providing and laying of asphalt Premix
B12: Crew for 4,650 Cft or 132.00 C.M Quantity
A13: A | B13: Material Cost
A14: 1. | B14: Crush 25 ~ 20mm | D14: = | E14: 1,753.800 Cft @ 79.00Rs/Cft | F14: = | G14: =1753.8*79 -> 138,550.200 | H14: Rs./ 4,650Cft
A15: 2. | B15: Crush 20 ~ 10mm | D15: = | E15: 2,254.976 Cft @ 79.00Rs/Cft | F15: = | G15: =2254.976*79 -> 178,143.104 | H15: Rs./ 4,650Cft
A16: 3. | B16: Crush 10 ~ 05mm | D16: = | E16: 1,835.960 Cft @ 68.00Rs/Cft | F16: = | G16: =1835.96*68 -> 124,845.280 | H16: Rs./ 4,650Cft
A17: 4. | B17: Stone Dust 5~0mm | D17: = | E17: 2,498.296 Cft @ 49.00Rs/Cft | F17: = | G17: =2498.296*49 -> 122,416.504 | H17: Rs./ 4,650Cft
A18: 5. | B18: Bitumen 60/70 | D18: = | E18: 13.746.00 Ton @ 47,736Rs/Ton | F18: = | G18: =13.746*47736 -> 656,179.056 | H18: Rs./ 4,650Cft
A19: 6. | B19: Furnace Oil | D19: = | E19: 1,896.00 Ltr @ 46.92 Rs/ltr | F19: = | G19: =1896*46.92 -> 88,960.320 | H19: Rs./ 4,650Cft
A20: 7. | B20: Add 5% Wastage on Sr.No.1 ~ 6 | D20: = | E20: 5% | F20: = | G20: =SUM(G14:G19)*E20 -> 65,454.723 | H20: Rs./ 4,650Cft
E22: Sub-total Cost A | F22: = | G22: =SUM(G14:G20) -> 1,374,549.187 | H22: Rs./ 4,650Cft | K22: =G22/132 -> 10,413.25
A23: B | B23: Equipments:
A24: 1. | B24: Asphalt Mixing Plant 60 Ton | D24: = | E24: 1 x 6Hrs @ 987.00 Rs./Hrs | F24: = | G24: =1*6*987 -> 5,922.000 | H24: =+(132*2.51)*400 -> 132,528.000
A25: 2. | B25: Loader | D25: = | E25: 1 x 6Hrs @ 2,111.00 Rs./Hrs | F25: = | G25: =1*6*2111 -> 12,666.000 | H25: Rs./ 4,650Cft
A26: 3. | B26: Dumper | D26: = | E26: 3 x 6Hrs @ 1,560.00 Rs./Hrs | F26: = | G26: 0 | H26: Rs./ 4,650Cft
A27: 3. | B27: Dumper | D27: = | E27: 12 x 8 Hrs @ 1,560.00 Rs./Hrs | F27: = | G27: =12*8*1560 -> 149,760.000 | H27: Rs./ 4,650Cft
A28: 4. | B28: PTR | D28: = | E28: 3 x 8Hrs @ 1,626.00 Rs./Hrs | F28: = | G28: =3*8*1626 -> 39,024.000 | H28: Rs./ 4,650Cft
A29: 5. | B29: Tendom vibrator Roller | D29: = | E29: 1 x 8Hrs @ 2,130 Rs./Hrs | F29: = | G29: =1*8*2130 -> 17,040.000 | H29: Rs./ 4,650Cft
A30: 6. | B30: Paver Machine | D30: = | E30: 1 x 6Hrs @ 7,872.00 Rs./Hrs | F30: = | G30: =1*6*7872 -> 47,232.000 | H30: Rs./ 4,650Cft
A31: 7. | B31: Compressor | D31: = | E31: 1 x 4Hrs @ 425.00 Rs./Hrs | F31: = | G31: =1*4*425 -> 1,700.000 | H31: Rs./ 4,650Cft
A32: 8. | B32: Generator | D32: = | E32: 1 x 18 Hrs @ 4,879 Rs./Hrs | F32: = | G32: =1*18*4879 -> 87,822.000 | H32: Rs./ 4,650Cft
E34: Sub-total Cost B | F34: = | G34: =SUM(G24:G32) -> 361,166.000 | H34: Rs./ 4,650Cft | K34: =G34/132 -> 2,736.11
A35: C | B35: Manpower Cost:
A36: 1. | B36: Asphalt plant Engineer | D36: = | E36: 1 x 6 Hrs @ 240.38Rs./Hrs | G36: =1*6*240.38 -> 1,442.280 | H36: Rs./ 4,650Cft
A37: 2. | B37: Site Engineer | D37: = | E37: 1 x 8 Hrs @ 288.46Rs./Hrs | G37: =1*8*288.46 -> 2,307.680 | H37: Rs./ 4,650Cft
A38: 3. | B38: Supervisor | D38: = | E38: 1 x 8 Hrs @ 144.230Rs./Hrs | G38: =1*8*144.23 -> 1,153.840 | H38: Rs./ 4,650Cft
A39: 4. | B39: Surveyor | D39: = | E39: 1 x 8 Hrs @ 144.230Rs./Hrs | G39: =1*8*144.23 -> 1,153.840 | H39: Rs./ 4,650Cft
A40: 5. | B40: Surveyor Helper | D40: = | E40: 4 x 8 Hrs @ 96.153Rs./Hrs | G40: =4*8*96.153 -> 3,076.896 | H40: Rs./ 4,650Cft
A41: 6. | B41: Labour Cost Per Ton | D41: = | E41: 316.00 Ton @ 225.00 Rs./Ton | G41: =316*225 -> 71,100.000 | H41: Rs./ 4,650Cft
E43: Sub-total Cost C | F43: = | G43: =SUM(G36:G41) -> 80,234.536 | H43: Rs./ 4,650Cft | K43: =G43/132 -> 607.84
A45: D | B45: Total Cost (A+B+C) | F45: = | G45: =G22+G34+G43 -> 1,815,949.723 | H45: =H43 -> Rs./ 4,650Cft
A47: E | B47: Add 2% water charges | F47: = | G47: =G45*2% -> 36,318.994 | H47: Rs./ 4,650Cft
A49: F | B49: Total Cost (D+E) | F49: = | G49: =G26+G45+G47 -> 1,852,268.718 | H49: =H45 -> Rs./ 4,650Cft | K49: =G49/132 -> 14,032.34 | L49: =K49/2.4 -> 5,846.81
A51: G | B51: Prime | D51: = | E51: (132.00/.05) = 2640.00 X 10.76 @ 9.00 Rs/Sft | F51: = | G51: 0 | H51: =H47 -> Rs./ 4,650Cft
A53: H | B53: G.Total Cost Prime (F+G) | G53: =G49+G51 -> 1,852,268.718 | H53: =H49 -> Rs./ 4,650Cft
A55: I | B55: Net Rate of Providing and laying of Asphalt Premix. | F55: = | G55: =G53/4650 -> 398.337 | H55: Rs./Cft
G56: =G55*35.315 -> 14,067.284 | H56: Rs./CM
G57: =G56/2.4 -> 5,861.368 | H57: Rs//Ton

Sheet Asphalt Premix (2)
A1: ='Concrete Rates'!A1 -> Project Name…..
A2: ='Concrete Rates'!A2 -> CIVIL INFRASTRUCTURE WORKS
A4: RATE ANALYSIS
B6: Asphalt Premix
B8: Measuring Unit | I8: 1 Cft
B10: Item Desc. | C10: Providing and laying of asphalt Premix
B12: Crew for 4,650 Cft or 132.00 C.M Quantity
A13: A | B13: Material Cost
A14: 1. | B14: Crush 25 ~ 20mm | D14: = | E14: 1,753.800 Cft @ 79.00Rs/Cft | F14: = | G14: =1753.8*79 -> 138,550.200 | H14: Rs./ 4,650Cft
A15: 2. | B15: Crush 20 ~ 10mm | D15: = | E15: 2,254.976 Cft @ 79.00Rs/Cft | F15: = | G15: =2254.976*79 -> 178,143.104 | H15: Rs./ 4,650Cft
A16: 3. | B16: Crush 10 ~ 05mm | D16: = | E16: 1,835.960 Cft @ 68.00Rs/Cft | F16: = | G16: =1835.96*68 -> 124,845.280 | H16: Rs./ 4,650Cft
A17: 4. | B17: Stone Dust 5~0mm | D17: = | E17: 2,498.296 Cft @ 49.00Rs/Cft | F17: = | G17: =2498.296*49 -> 122,416.504 | H17: Rs./ 4,650Cft
A18: 5. | B18: Bitumen 60/70 | D18: = | E18: 13.746.00 Ton @ 47,736Rs/Ton | F18: = | G18: =13.746*47736 -> 656,179.056 | H18: Rs./ 4,650Cft
A19: 6. | B19: Furnace Oil | D19: = | E19: 1,896.00 Ltr @ 46.92 Rs/ltr | F19: = | G19: =1896*46.92 -> 88,960.320 | H19: Rs./ 4,650Cft
A20: 7. | B20: Add 5% Wastage on Sr.No.1 ~ 6 | D20: = | E20: 5% | F20: = | G20: =SUM(G14:G19)*E20 -> 65,454.723 | H20: Rs./ 4,650Cft
E22: Sub-total Cost A | F22: = | G22: =SUM(G14:G20) -> 1,374,549.187 | H22: Rs./ 4,650Cft | K22: =G22/132 -> 10,413.25
A23: B | B23: Equipments:
A24: 1. | B24: Asphalt Mixing Plant 60 Ton | D24: = | E24: 1 x 6Hrs @ 987.00 Rs./Hrs | F24: = | G24: =1*6*987 -> 5,922.000 | H24: Rs./ 4,650Cft
A25: 2. | B25: Loader | D25: = | E25: 1 x 6Hrs @ 2,111.00 Rs./Hrs | F25: = | G25: =1*6*2111 -> 12,666.000 | H25: Rs./ 4,650Cft
A26: 3. | B26: Dumper | D26: = | E26: 3 x 6Hrs @ 1,560.00 Rs./Hrs | F26: = | G26: 0 | H26: Rs./ 4,650Cft
A27: 3. | B27: Dumper | D27: = | E27: 12 x 8 Hrs @ 1,560.00 Rs./Hrs | F27: = | G27: =12*8*1560 -> 149,760.000 | H27: Rs./ 4,650Cft
A28: 4. | B28: PTR | D28: = | E28: 3 x 8Hrs @ 1,626.00 Rs./Hrs | F28: = | G28: =3*8*1626 -> 39,024.000 | H28: Rs./ 4,650Cft
A29: 5. | B29: Tendom vibrator Roller | D29: = | E29: 1 x 8Hrs @ 2,130 Rs./Hrs | F29: = | G29: =1*8*2130 -> 17,040.000 | H29: Rs./ 4,650Cft
A30: 6. | B30: Paver Machine | D30: = | E30: 1 x 6Hrs @ 7,872.00 Rs./Hrs | F30: = | G30: =1*6*7872 -> 47,232.000 | H30: Rs./ 4,650Cft
A31: 7. | B31: Compressor | D31: = | E31: 1 x 4Hrs @ 425.00 Rs./Hrs | F31: = | G31: =1*4*425 -> 1,700.000 | H31: Rs./ 4,650Cft
A32: 8. | B32: Generator | D32: = | E32: 1 x 18 Hrs @ 4,879 Rs./Hrs | F32: = | G32: =1*18*4879 -> 87,822.000 | H32: Rs./ 4,650Cft
E34: Sub-total Cost B | F34: = | G34: =SUM(G24:G32) -> 361,166.000 | H34: Rs./ 4,650Cft | K34: =G34/132 -> 2,736.11
A35: C | B35: Manpower Cost:
A36: 1. | B36: Asphalt plant Engineer | D36: = | E36: 1 x 6 Hrs @ 240.38Rs./Hrs | G36: =1*6*240.38 -> 1,442.280 | H36: Rs./ 4,650Cft
A37: 2. | B37: Site Engineer | D37: = | E37: 1 x 8 Hrs @ 288.46Rs./Hrs | G37: =1*8*288.46 -> 2,307.680 | H37: Rs./ 4,650Cft
A38: 3. | B38: Supervisor | D38: = | E38: 1 x 8 Hrs @ 144.230Rs./Hrs | G38: =1*8*144.23 -> 1,153.840 | H38: Rs./ 4,650Cft
A39: 4. | B39: Surveyor | D39: = | E39: 1 x 8 Hrs @ 144.230Rs./Hrs | G39: =1*8*144.23 -> 1,153.840 | H39: Rs./ 4,650Cft
A40: 5. | B40: Surveyor Helper | D40: = | E40: 4 x 8 Hrs @ 96.153Rs./Hrs | G40: =4*8*96.153 -> 3,076.896 | H40: Rs./ 4,650Cft
A41: 6. | B41: Labour Cost Per Ton | D41: = | E41: 316.00 Ton @ 225.00 Rs./Ton | G41: =316*225 -> 71,100.000 | H41: Rs./ 4,650Cft
E43: Sub-total Cost C | F43: = | G43: =SUM(G36:G41) -> 80,234.536 | H43: Rs./ 4,650Cft | K43: =G43/132 -> 607.84
A45: D | B45: Total Cost (A+B+C) | F45: = | G45: =G22+G34+G43 -> 1,815,949.723 | H45: =H43 -> Rs./ 4,650Cft
A47: E | B47: Add 2% water charges | F47: = | G47: =G45*2% -> 36,318.994 | H47: Rs./ 4,650Cft
A49: F | B49: Total Cost (D+E) | F49: = | G49: =G26+G45+G47 -> 1,852,268.718 | H49: =H45 -> Rs./ 4,650Cft | K49: =G49/132 -> 14,032.34 | L49: =K49/2.4 -> 5,846.81
A51: G | B51: Prime | D51: = | E51: (132.00/.05) = 2640.00 X 10.76 @ 9.00 Rs/Sft | F51: = | G51: 0 | H51: =H47 -> Rs./ 4,650Cft
A53: H | B53: G.Total Cost Prime (F+G) | G53: =G49+G51 -> 1,852,268.718 | H53: =H49 -> Rs./ 4,650Cft
A55: I | B55: Net Rate of Providing and laying of Asphalt Premix. | F55: = | G55: =G53/4650 -> 398.337 | H55: Rs./Cft
G56: =G55*35.315 -> 14,067.284 | H56: Rs./CM
G57: =G56/2.4 -> 5,861.368 | H57: Rs//Ton

Sheet Prime Coat
A1: ='Asphalt Premix with Equipments'!A1 -> Project Name…..
A2: ='Asphalt Premix with Equipments'!A2 -> CIVIL INFRASTRUCTURE WORKS
A4: RATE ANALYSIS
B5: Road Works
B6: Item # 302a | F6: Unit | G6: 6,000.00 | H6: SM
B7: Item Desc. | C7: Cut Back Asphalt for Bituminous Prime Coat
A10: A | B10: Manpower
B11: Description | D11: No. | E11: Hours | F11: Rate (Rs.) | G11: Amount (Rs.)
B12: Site Engineer | D12: 1 | E12: 2.00 | F12: 267.07 | G12: =D12*E12*F12 -> 534.14
B13: Forman Asphalt | D13: 1 | E13: 4.00 | F13: 150.00 | G13: 600.00
B14: Supervisor | D14: 1 | E14: 8.00 | F14: 169.95 | G14: 1,359.60
B15: Assistant Surveyor | D15: 1 | E15: 2.00 | F15: 106.83 | G15: 213.66
B16: Helper | D16: 2 | E16: 2.00 | F16: 62.50 | G16: 250.00
B17: Labour | D17: 2 | E17: 8.00 | F17: 62.50 | G17: 1,000.00
B19: Total Manpower (A) | G19: =SUM(G12:G17) -> 3,957.40
A20: B | B20: Materials
D21: Unit | E21: Quantity | F21: Rate (Rs.) | G21: Amount
B22: Asphalt M.C.70 | D22: Ton | E22: 2.86 | F22: 70,800.00 | G22: =E22*F22 -> 202,629.60
B23: Kerosene Oil | D23: Ltr | E23: 2,700.00 | F23: 76.00 | G23: =E23*F23 -> 205,200.00
B24: Water | D24: 1000LIT | E24: 2.00 | F24: 120.00 | G24: =E24*F24 -> 240.00
B26: Total Materials (B) | G26: =SUM(G22:G24) -> 408,069.60
A27: C | B27: Equipment /Machinery
D28: No. | E28: Hours | F28: Rate (Rs.) | G28: Amount (Rs.)
B29: Tractor. 50 H.P | D29: 1 | E29: 4.00 | F29: 466.03 | G29: =D29*E29*F29 -> 1,864.12
B30: Water Tank Tow Typ 4000 LTR.(INCl.TRACTOR) | D30: 1 | E30: 1.00 | F30: 514.11 | G30: =D30*E30*F30 -> 514.11
B31: Power Broom | D31: 1 | E31: 4.00 | F31: 562.18 | G31: =D31*E31*F31 -> 2,248.72
B32: Bitumen Dist.Tow Type 2000 LTR | D32: 1 | E32: 8.00 | F32: 1,124.37 | G32: =D32*E32*F32 -> 8,994.96
B33: Pump 4" Delivery (Diesel) | D33: 1 | E33: 1.00 | F33: 625.00 | G33: =D33*E33*F33 -> 625.00
B35: Total Equipment / Machinery ( C ) | G35: =SUM(G29:G33) -> 14,246.91
B36: Summary
B38: Basic Cost For 6,000.00 SM | G38: =G19+G26+G35 -> 426,273.91
B39: Basic Cost Per SM | G39: =ROUND(G38/6000,2) -> 71.05 | I39: =G39/10.76 -> 6.60
B40: Basic Cost Per SFT | G40: =G39/10.76 -> 6.60 | I40: =G40/10.76 -> 0.61
B41: OverHead & Profit 25 Percentage | G41: =G40*0.25 -> 1.65
B42: Total Cost Per SFT | G42: =ROUND(SUM(G40:G41),2) -> 8.25

Sheet Kerb Stone
A1: =+'Sub Base & Base'!A1 -> Project Name…..
A2: ='SAND CUSHION'!A2 -> CIVIL INFRASTRUCTURE WORKS
A4: RATE ANALYSIS
B5: Kerb Stone
B6: Item # 601 dii | F6: Unit | G6: 180.00 | H6: M | J6: =+G6*3.281 -> 590.58
B7: Item Desc. | C7: Precast Kerb in concrete Class-A1 of size 12"x12"x4" including bedding and haunching along carriageway & Disposal Excavated Material within 30m. | L7: =1*1*0.33 -> 0.33 | M7: =+L7*320 -> 105.6 | N7: =+M7*1.15 -> 121.44
N8: =35+40+N7 -> 196.44
A9: A | B9: Manpower
B10: Description | D10: No. | E10: Hours | F10: Rate (Rs.) | G10: Amount (Rs.)
B11: Supervisor | D11: 1 | E11: 8.00 | F11: 288.46 | G11: =D11*E11*F11 -> 2,307.68 | I11: =+F11*8 -> 2307.68 | J11: =60000/208 -> 288.4615385
B12: Mason | D12: 2 | E12: 8.00 | F12: 162.50 | G12: =D12*E12*F12 -> 2,600.00 | I12: =+F12*8 -> 1300 | J12: =1300/8 -> 162.5
B13: Labour | D13: 6 | E13: 8.00 | F13: 112.50 | G13: =D13*E13*F13 -> 5,400.00 | I13: =+F13*8 -> 900 | J13: =900/8 -> 112.5
B16: Total Manpower (A) | G16: =SUM(G11:G13) -> 10,307.68 | I16: =G16/100 -> 103.08
A17: B | B17: Materials | I17: =I16/3.281 -> 31.42
D18: Unit | E18: Quantity | F18: Rate (Rs.) | G18: Amount
B19: Class-A1 of size 12"x12"x4" | D19: Rm | E19: 100.000 | F19: =(160/12*12)*3.281 -> 524.96 | G19: =E19*F19 -> 52,496.00
B20: Bedding | D20: CM | E20: =100*0.25*0.1 -> 2.500 | F20: ='Concrete Rates'!G40 -> 6,145.40 | G20: =E20*F20 -> 15,363.50 | I20: =F20/35.315 -> 174.02
B21: Hunching | D21: CM | E21: =100*0.075*0.2 -> 1.500 | F21: =F20 -> 6,145.40 | G21: =E21*F21 -> 9,218.10
B22: Mortor | D22: Lumsum | E22: 100.000 | F22: 10.00 | G22: =E22*F22 -> 1,000.00
B24: Total Materials (B) | G24: =SUM(G19:G22) -> 78,077.60
A25: C | B25: Equipment /Machinery
D26: No. | E26: Hours | F26: Rate (Rs.) | G26: Amount (Rs.)
B27: Tractor Trolley | D27: 1 | E27: 8.00 | F27: 466.03 | G27: =D27*E27*F27 -> 3,728.24
B29: Total Equipment / Machinery ( C ) | G29: =SUM(G27:G27) -> 3,728.24
B30: Summary
B32: Basic Cost For 1Rm. | G32: =G16+G24+G29 -> 92,113.52
B33: Basic Cost Per Rm | G33: =ROUND(G32/G6,2) -> 511.74 | I33: =G33/3.281 -> 155.97
B34: Basic Cost Per Rft | G34: =ROUND(G33/3.281,2) -> 155.97
B35: OverHead & Profit (10 + 15)Percentage | G35: =G34*0.25 -> 38.99
B36: Total Cost Per RFT | G36: =ROUND(SUM(G34:G35),2) -> 194.96

Sheet Edge Stone
A1: =+'Kerb Stone'!A1 -> Project Name…..
A2: ='Concrete Rates'!A2 -> CIVIL INFRASTRUCTURE WORKS
A4: RATE ANALYSIS
B7: Measuring Unit | I7: Unit : 100 M
B8: Item Desc. | C8: Providing and fixing of (EDGE STONE 12''x6''x2'')
A13: A | B13: Materials Cost:
A14: 1. | B14: Cement | D14: = | E14: 7.453 Bags @ 535.00 Rs./Bag | G14: = | H14: =Material!H36*535 -> 3,987.48 | I14: Rs./100.M
A15: 2. | B15: Sand | D15: = | E15: 21.576 Cft @ 25.00 Rs./Cft | G15: = | H15: =Material!H37*25 -> 539.41 | I15: Rs./100.M
A16: 3. | B16: Crush (Sakhi Sarwar Size: 3~10mm) | D16: = | E16: 25.493 Cft @ 41.00 Rs./Cft | G16: = | H16: =Material!H38*41 -> 1,045.21 | I16: Rs./100.M
A17: 4. | B17: Wastage (Above items 1~3) | D17: = | E17: 3% | G17: = | H17: =SUM(H14:H15)*E17 -> 135.81 | I17: Rs./100.M
A18: 5. | B18: Water Chareges i/c curing (Above items 1~2) | D18: = | E18: 5% | G18: = | H18: =SUM(H14:H15)*E18 -> 226.34 | I18: Rs./100.M
F20: Sub-Total Cost A: | G20: = | H20: =SUM(H14:H18) -> 5,934.25 | I20: Rs./100M
A22: B | B22: Manpower:
A23: 1. | B23: Making for Edge Stone (12" x 6" x 2") | E23: 328.No. x 1.95 Rs / No. | H23: =328*1.95 -> 639.60 | I23: Rs./100.M
A24: 2. | B24: Fixing of Labour Charges | D24: = | E24: 100 Rm @ (10 x 3.281 = 32.81/Rft) | G24: = | H24: =100*32.81 -> 3,281.00 | I24: Rs./100.M
F26: Sub-Total Cost B: | G26: = | H26: =SUM(H23:H24) -> 3,920.60 | I26: =I24 -> Rs./100.M
A28: C | B28: Total Cost (A+B) | G28: = | H28: =H20+H26 -> 9,854.85 | I28: Rs./100.M | K28: =H28/35.315 -> 279.06 | L28: Rs./Cft
A30: D | B30: Total Basic Cost (D = C/100) | G30: = | H30: =H28/100 -> 98.55 | I30: Rs./M | K30: =H30/35.315 -> 2.79 | L30: Rs./Cft
A32: E | B32: Total Basic Cost (G = F /3.281) | G32: = | H32: =H30/3.281 -> 30.04 | I32: Rs./Rft
A34: G | B34: Overheads (In-direct Cost) 25 % | G34: = | H34: =H32*0.25 -> 7.51 | I34: =I32 -> Rs./Rft
A36: H | B36: Grand Total Cost (H = H+I) | G36: = | H36: =H32+H34 -> 37.55 | I36: =I34 -> Rs./Rft

Sheet Tuff Paver
A1: =+'Edge Stone'!A1 -> Project Name…..
A2: ='Concrete Rates'!A2 -> CIVIL INFRASTRUCTURE WORKS
A4: RATE ANALYSIS
B6: TUFF PAVER
B8: Measuring Unit | I8: Sft
B10: Item Desc. | C10: Providing and Fixing of 60mm tuff Paver,37mm thick sand cushion under TUFF PAVER including spreading ,leveling & compacting location as per drawing.
A13: A | B13: Material Cost :
B14: Tuff Paver | E14: 1 Sft x @ (55.44+42.23)/2*10.76 Rs./ Sq.m | I14: =(55.44+42.23)/2*10.76 -> 525.46 | J14: Rs./ Sq.m
A15: 1. | B15: Local Sand | D15: = | E15: 1.70 Cft x @ 25.00 Rs./ Cft | H15: = | I15: =1.7*25 -> 42.50 | J15: Rs./ Sq.m
A16: 2. | B16: Wastage | D16: = | E16: 5% | H16: = | I16: =I15*5% -> 2.13 | J16: Rs./ Sq.m
G18: Sub Total Cost A: | H18: = | I18: =SUM(I14:I16) -> 570.09 | J18: Rs./ Sq.m
A20: B | B20: Equipments Cost :
A21: 1. | B21: Wheel Barrow | D21: = | E21: 1 No. x 0.08 Hrs. @ 50.00 Rs. / Hr | H21: = | I21: =1*0.08*50 -> 4.00 | J21: Rs./ Sq.m
A22: 2. | B22: Plate Compactor | D22: = | E22: 1 No. x 0.16 Hrs. @ 278.00 Rs. / Hr | H22: = | I22: =1*0.16*278 -> 44.48 | J22: Rs./ Sq.m
A23: 3. | B23: T &P | D23: = | E23: Lumsum | H23: = | I23: 5.000 | J23: =J21 -> Rs./ Sq.m
G25: Sub Total Cost B: | H25: = | I25: =SUM(I21:I23) -> 53.48 | J25: =J18 -> Rs./ Sq.m
A27: C | B27: Labour Cost :
B28: Labor Fixing Charges for Tuff Paver | E28: 1 Sft. @ 8 x 10.76 | I28: =1*8*10.76 -> 86.08 | J28: =J23 -> Rs./ Sq.m
G30: Sub Total Cost C: | H30: = | I30: =SUM(I28:I29) -> 86.08 | J30: =J18 -> Rs./ Sq.m
A32: D | B32: Total Cost (A+B+C) | I32: =I18+I25+I30 -> 709.65 | J32: =J30 -> Rs./ Sq.m
A35: E | B35: Add 2 % Water Charges | H35: = | I35: =I32*2% -> 14.19 | J35: =J32 -> Rs./ Sq.m
A37: F | B37: Total Cost (D+E) | H37: = | I37: =SUM(I32:I36) -> 723.84 | J37: =J32 -> Rs./ Sq.m
A39: G | B39: Total Basic Cost (F/10.76) | H39: = | I39: =I37/10.76 -> 67.27 | J39: Rs./ Sft
A41: H | B41: Overheads (In-direct Cost) 25 % | H41: = | I41: =I39*25% -> 16.82 | J41: =J39 -> Rs./ Sft
A43: I | B43: Grand Total Cost (G+H) | H43: = | I43: =I41+I39 -> 84.09 | J43: =J41 -> Rs./ Sft

Sheet Excavation
A1: =+'Tuff Paver'!A1 -> Project Name…..
A2: ='Concrete Rates'!A2 -> CIVIL INFRASTRUCTURE WORKS | K2: =160/25 -> 6.4
A4: RATE ANALYSIS
B5: Excavation
B6: Item # 107a | F6: Unit | G6: 100.00 | H6: CM
B7: Item Desc. | C7: Structure Excavation in Common Material.
C8: Upto 1.5m Depth
A9: A | B9: Manpower
B10: Description | D10: No. | E10: Hours | F10: Rate (Rs.) | G10: Amount (Rs.)
B11: Site Engineer | D11: 1 | E11: 1.00 | F11: 267.07 | G11: =D11*E11*F11 -> 267.07
B12: Supervisor | D12: 1 | E12: 6.00 | F12: 169.95 | G12: =D12*E12*F12 -> 1,019.70
B13: Assistant.Surveyor | D13: 1 | E13: 2.00 | F13: 106.83 | G13: =D13*E13*F13 -> 213.66
B14: Helper | D14: 2 | E14: 2.00 | F14: 62.50 | G14: =D14*E14*F14 -> 250.00
B16: Total Manpower (A) | G16: =SUM(G11:G14) -> 1,750.43
A17: B | B17: Materials
D18: Unit | E18: Quantity | F18: Rate (Rs.) | G18: Amount
B21: Total Materials (B) | G21: =SUM(G19:G19) -> 0
A22: C | B22: Equipment /Machinery
D23: No. | E23: Hours | F23: Rate (Rs.) | G23: Amount (Rs.)
B24: Dumper 18 T | D24: 1 | E24: 6.00 | F24: 1,926.94 | G24: =D24*E24*F24 -> 11,561.64
B25: Excavator (Track Type) 100 H.P. | D25: 1 | E25: 4.00 | F25: 1,766.04 | G25: =D25*E25*F25 -> 7,064.16
B27: Total Equipment / Machinery ( C ) | G27: =SUM(G24:G25) -> 18,625.80
B28: Summary
B30: Basic Cost For 50.00 CM | G30: =G16+G21+G27 -> 20,376.23
B31: Basic Cost Per CM | G31: =ROUND(G30/100,2) -> 203.76 | I31: =G31/35.315 -> 5.77
B32: Basic Cost Per CFT | G32: =ROUND(G31/35.32,2) -> 5.77
B33: OverHead & Profit (10 + 15)Percentage | G33: =G32*0.25 -> 1.44
B34: Total Cost Per CFT | G34: =ROUND(SUM(G32:G33),2) -> 7.21

Sheet Excavation and Back Filling
A1: =Excavation!A1 -> Project Name…..
A2: =Excavation!A2 -> CIVIL INFRASTRUCTURE WORKS
A4: RATE ANALYSIS
B5: Excavation and Back Filling
B7: Item # 1 | F7: Unit | G7: 100.00 | H7: CM
B8: Item Desc. | C8: Excavation and Backfilling of trenches in all kind of soil upto required depth and width in Proper alignment and grade i/c site clearance timbering and shoring, stock piling ,back filling with suitable excavated earth , disposal of surplus earth up-to 1.0 km lead dewatering spot dressing watering ramming etc. as per drawing and according with the specification. Complete in all respect as per direction by the Engineer.
A10: A | B10: Manpower
B11: Description | D11: No. | E11: Hours | F11: Rate (Rs.) | G11: Amount (Rs.)
B12: Site Engineer | D12: 1 | E12: 1.00 | F12: 267.07 | G12: =D12*E12*F12 -> 267.07
B13: Forman EarthWorks | D13: 1 | E13: 3.55 | F13: 150.00 | G13: 532.50
B14: Supervisor | D14: 1 | E14: =6+7.1 -> 13.10 | F14: 169.95 | G14: 2,226.35
B15: Assistant.Surveyor | D15: 1 | E15: 2.00 | F15: 106.83 | G15: 213.66
B16: Labour | D16: 1 | E16: 21.30 | F16: 62.50 | G16: 1,331.25
B17: Helper | D17: 2 | E17: 2.00 | F17: 62.50 | G17: 250.00
B19: Total Manpower (A) | G19: =SUM(G12:G17) -> 4,820.83
A20: B | B20: Materials
D21: Unit | E21: Quantity | F21: Rate (Rs.) | G21: Amount
B22: Water | D22: 1000LIT | E22: 14.29 | F22: 120.00 | G22: =E22*F22 -> 1,714.80
B24: Total Materials (B) | G24: =SUM(G22:G22) -> 1,714.80
A25: C | B25: Equipment /Machinery
D26: No. | E26: Hours | F26: Rate (Rs.) | G26: Amount (Rs.)
B27: Dumper 18 T | D27: 1 | E27: 6.00 | F27: 1,926.94 | G27: 0
B28: Excavator (Track Type) 100 H.P. | D28: 1 | E28: 4.00 | F28: 1,766.04 | G28: =D28*E28*F28 -> 7,064.16
B29: Mini Roller | D29: 1 | E29: 6.45 | F29: 1,364.75 | G29: =D29*E29*F29 -> 8,802.64
B30: Water Tank Tow Type 4000 LTR.(INCLUDE.TRACTOR) | D30: 1 | E30: 4.84 | F30: 1,446.17 | G30: =D30*E30*F30 -> 6,999.46
B31: Pump 4'' Delivery (Diesel) | D31: 1 | E31: 1.61 | F31: 625.00 | G31: =D31*E31*F31 -> 1,006.25
B33: Total Equipment / Machinery ( C ) | G33: =SUM(G27:G31) -> 23,872.51
B34: Summary
B36: Basic Cost For 100.00 CM | G36: =G19+G24+G33 -> 30,408.14
B37: Basic Cost Per CM | G37: =ROUND(G36/100,2) -> 304.08 | I37: =G37/35.32 -> 8.61
B38: Basic Cost Per CFT | G38: =ROUND(G37/35.32,2) -> 8.61 | I38: =G38-5.77 -> 2.84
B39: OverHead & Profit (10 + 15)Percentage | G39: =G38*0.25 -> 2.15
B40: Total Cost Per CFT | G40: =ROUND(SUM(G38:G39),2) -> 10.76

Sheet Concrete Rates
A1: =+'Excavation and Back Filling'!A1 -> Project Name…..
A2: CIVIL INFRASTRUCTURE WORKS
A4: RATE ANALYSIS
B5: Lean Concrete
B6: Item # 401 f | F6: Unit | G6: 9.00 | H6: CM
B7: Item Desc. | C7: Lean Concrete Ratio 1:4:8 1500 PSI Cylinder Strength
A9: A | B9: Manpower
B10: Description | D10: No. | E10: Hours | F10: Rate (Rs.) | G10: Amount (Rs.)
B11: Forman Concrete | D11: 1 | E11: 2.00 | F11: 150.00 | G11: =D11*E11*F11 -> 300.00
B12: Supervisor | D12: 1 | E12: 7.00 | F12: 169.95 | G12: =D12*E12*F12 -> 1,189.65
B13: Assistant.Surveyor | D13: 1 | E13: 2.00 | F13: 106.83 | G13: 213.66
B14: Mason | D14: 1 | E14: 7.00 | F14: 118.75 | G14: =D14*E14*F14 -> 831.25
B15: Carpenter | D15: 1 | E15: 7.00 | F15: 125.00 | G15: =D15*E15*F15 -> 875.00
B16: Helper | D16: 3 | E16: 7.00 | F16: 62.50 | G16: =D16*E16*F16 -> 1,312.50
B17: Labour | D17: 10 | E17: 7.00 | F17: 62.50 | G17: 4,375.00
B19: Total Manpower (A) | G19: =SUM(G11:G17) -> 9,097.06
A20: B | B20: Materials
D21: Unit | E21: Quantity | F21: Rate (Rs.) | G21: Amount
B22: Cement | D22: Bag | E22: =(200/50)*9 -> 36.00 | F22: 535.00 | G22: =E22*F22 -> 19,260.00
B23: Local Sand | D23: Cft | E23: =19*9 -> 171.00 | F23: 25.00 | G23: =E23*F23 -> 4,275.00
B24: Crushed | D24: Cft | E24: =35*9 -> 315.00 | F24: 41.00 | G24: =E24*F24 -> 12,915.00
B25: Water | D25: 1000LIT | E25: 2.00 | F25: 120.00 | G25: =E25*F25 -> 240.00
B26: Shuttering (A) | D26: CM | E26: 9.00 | F26: 112.79 | G26: =E26*F26 -> 1,015.11
B28: Total Materials (B) | G28: =SUM(G22:G26) -> 37,705.11
A29: C | B29: Equipment /Machinery
D30: No. | E30: Hours | F30: Rate (Rs.) | G30: Amount (Rs.)
B31: Water Tank Tow Type 4000 LTR.(INCLUDE.TRACTOR) | D31: 1 | E31: 2.00 | F31: 1,446.17 | G31: =D31*E31*F31 -> 2,892.34
B32: Concrete Static Mixer 1/4 CUY | D32: 1 | E32: 5.00 | F32: 625.00 | G32: =D32*E32*F32 -> 3,125.00
B33: Pump 4'' Delivery (Diesel) | D33: 1 | E33: 1.00 | F33: 625.00 | G33: =D33*E33*F33 -> 625.00
B34: Tractor Trolley | D34: 1 | E34: 4.00 | F34: 466.03 | G34: =D34*E34*F34 -> 1,864.12
B36: Total Equipment / Machinery ( C ) | G36: =SUM(G31:G34) -> 8,506.46
B37: Summary
B39: Basic Cost For 9.00 CM | G39: =G19+G28+G36 -> 55,308.63
B40: Basic Cost Per CM | G40: =ROUND(G39/9,2) -> 6,145.40 | I40: =G40/35.315 -> 174.02
B41: Basic Cost Per CFT | G41: =ROUND(G40/35.32,2) -> 173.99
B42: OverHead & Profit (10 + 15)Percentage | G42: =G41*0.25 -> 43.50
B43: Total Cost Per CFT | G43: =ROUND(SUM(G41:G42),2) -> 217.49
A44: =A1 -> Project Name…..
A45: =A2 -> CIVIL INFRASTRUCTURE WORKS
A47: RATE ANALYSIS
B48: Concrete Class-A1
B49: Item # 401 a1 (i) | F49: Unit | G49: 72.00 | H49: CM
B50: Item Desc. | C50: Concrete Class-A1 (Under Ground) Ratio 1:2:4 3000 PSI Cylinder Strength
A52: A | B52: Manpower
B53: Description | D53: No. | E53: Hours | F53: Rate (Rs.) | G53: Amount (Rs.)
B54: Site Engineer | D54: 1 | E54: 20.00 | F54: 267.07 | G54: =D54*E54*F54 -> 5,341.40
B55: Concrete Plant Engineer | D55: 1 | E55: 4.00 | F55: 485.58 | G55: 1,942.32
B56: Forman Concrete | D56: 1 | E56: 24.00 | F56: 150.00 | G56: 3,600.00
B57: Supervisor | D57: 1 | E57: 24.00 | F57: 169.95 | G57: 4,078.80
B58: Surveyor | D58: 1 | E58: 20.00 | F58: 281.51 | G58: 5,630.20
B59: Assistant.Surveyor | D59: 1 | E59: 20.00 | F59: 106.83 | G59: 2,136.60
B60: Mason | D60: 8 | E60: 8.00 | F60: 118.75 | G60: 7,600.00
B61: Carpenter | D61: 10 | E61: 24.00 | F61: 125.00 | G61: 30,000.00
B62: Helper | D62: 15 | E62: 24.00 | F62: 62.50 | G62: 22,500.00
B63: Labour | D63: 10 | E63: 8.00 | F63: 62.50 | G63: 5,000.00
B65: Total Manpower (A) | G65: =SUM(G54:G63) -> 87,829.32
A66: B | B66: Materials
D67: Unit | E67: Quantity | F67: Rate (Rs.) | G67: Amount
B68: Cement | D68: Bag | E68: =(350/50)*72 -> 504.00 | F68: 535.00 | G68: =E68*F68 -> 269,640.00
B69: Local Sand | D69: Cft | E69: =17*72 -> 1224.00 | F69: 25.00 | G69: 30,600.00 | I69: =E69/35.32 -> 34.65458664
B70: Crushed | D70: Cft | E70: =32*72 -> 2304.00 | F70: 41.00 | G70: 94,464.00 | I70: =E70/35.32 -> 65.23216308
B71: Admixture | D71: Ltr | E71: =5.25*72 -> 378.00 | F71: 72.00 | G71: 27,216.00
B72: Water | D72: 1000LIT | E72: 15.45 | F72: 120.00 | G72: 1,854.00
B73: Shuttering (A) | D73: CM | E73: 72.00 | F73: 112.79 | G73: 8,120.88
B75: Total Materials (B) | G75: =SUM(G68:G73) -> 431,894.88
A76: C | B76: Equipment /Machinery
D77: No. | E77: Hours | F77: Rate (Rs.) | G77: Amount (Rs.)
B78: Front End Loader 1.50 Cu.m | D78: 1 | E78: 2.00 | F78: 1,364.75 | G78: =D78*E78*F78 -> 2,729.50
B79: Water Tank Tow Type 12000 LTR.(INCLUDE.TRACTOR) | D79: 1 | E79: 3.00 | F79: 1,446.17 | G79: 4,338.51
B80: Concrete Batching Plant.30 CUM/H | D80: 1 | E80: 3.00 | F80: 600.00 | G80: 1,800.00
B81: Concrete Transit mixer.6 Cu.m | D81: 6 | E81: 4.00 | F81: 1,605.14 | G81: 38,523.36
B82: Pump 4'' Delivery (Diesel) | D82: 1 | E82: 2.00 | F82: 625.00 | G82: 1,250.00
B83: Vibrator (Pocker 1.5") | D83: 2 | E83: 6.00 | F83: 152.57 | G83: 1,830.84
B84: Tractor Trolley | D84: 1 | E84: 4.00 | F84: 466.03 | G84: 1,864.12
B86: Total Equipment / Machinery ( C ) | G86: =SUM(G78:G84) -> 52,336.33
B87: Summary
B89: Basic Cost For 72.00 CM | G89: =G65+G75+G86 -> 572,060.53
B90: Basic Cost Per CM | G90: =ROUND(G89/72,2) -> 7,945.29 | I90: =G90/35.315 -> 224.98
B91: Basic Cost Per CFT | G91: =ROUND(G90/35.32,2) -> 224.95
B92: OverHead & Profit (10 + 15)Percentage | G92: =G91*0.25 -> 56.24
B93: Total Cost Per CFT | G93: =ROUND(SUM(G91:G92),2) -> 281.19
A94: =+A44 -> Project Name…..
A95: =A45 -> CIVIL INFRASTRUCTURE WORKS
A97: RATE ANALYSIS
B98: Concrete Class-A3
B99: Item # 401 a 3 (iii) | F99: Unit | G99: 72.00 | H99: CM
B100: Item Desc. | C100: Concrete Class-A3 (Elevated)Ratio 1:1.5:3 4000 PSI Cylinder Strength
A102: A | B102: Manpower
B103: Description | D103: No. | E103: Hours | F103: Rate (Rs.) | G103: Amount (Rs.)
B104: Site Engineer | D104: 1 | E104: 20.00 | F104: 267.07 | G104: =D104*E104*F104 -> 5,341.40
B105: Concrete Plant Engineer | D105: 1 | E105: 4.00 | F105: 485.58 | G105: 1,942.32
B106: Forman Concrete | D106: 1 | E106: 24.00 | F106: 150.00 | G106: 3,600.00
B107: Supervisor | D107: 1 | E107: 24.00 | F107: 169.95 | G107: 4,078.80
B108: Surveyor | D108: 1 | E108: 20.00 | F108: 281.51 | G108: 5,630.20
B109: Assistant.Surveyor | D109: 1 | E109: 20.00 | F109: 106.83 | G109: 2,136.60
B110: Mason | D110: 8 | E110: 8.00 | F110: 118.75 | G110: 7,600.00
B111: Carpenter | D111: 10 | E111: 24.00 | F111: 125.00 | G111: 30,000.00
B112: Helper | D112: 15 | E112: 24.00 | F112: 62.50 | G112: 22,500.00
B113: Labour | D113: 10 | E113: 8.00 | F113: 62.50 | G113: 5,000.00
B115: Total Manpower (A) | G115: =SUM(G104:G113) -> 87,829.32
A116: B | B116: Materials
D117: Unit | E117: Quantity | F117: Rate (Rs.) | G117: Amount
B118: Cement | D118: Bag | E118: =(450/50)*72 -> 648.00 | F118: 535.00 | G118: =E118*F118 -> 346,680.00
B119: Haro Sand | D119: Cft | E119: =16*72 -> 1152.00 | F119: 25.00 | G119: 28,800.00 | I119: =E119/35.32 -> 32.61608154
B120: Crushed | D120: Cft | E120: =30*72 -> 2160.00 | F120: 41.00 | G120: 88,560.00 | I120: =E120/35.32 -> 61.15515289
B121: Admixture | D121: Ltr | E121: =6.75*72 -> 486.00 | F121: 72.00 | G121: 34,992.00
B122: Water | D122: 1000LIT | E122: 15.00 | F122: 120.00 | G122: 1,800.00
B123: Shuttering (A) | D123: CM | E123: 72.00 | F123: 2,474.00 | G123: 178,128.00
B125: Total Materials (B) | G125: =SUM(G118:G123) -> 678,960.00
A126: C | B126: Equipment /Machinery
D127: No. | E127: Hours | F127: Rate (Rs.) | G127: Amount (Rs.)
B128: Front End Loader 1.50 Cu.m | D128: 1 | E128: 2.00 | F128: 1,364.75 | G128: =D128*E128*F128 -> 2,729.50
B129: Water Tank Tow Type 12000 LTR.(INCLUDE.TRACTOR) | D129: 1 | E129: 3.00 | F129: 1,446.17 | G129: 4,338.51
B130: Concrete Batching Plant.30 CUM/H | D130: 1 | E130: 3.00 | F130: 600.00 | G130: 1,800.00
B131: Concrete Transit mixer.6 Cu.m | D131: 6 | E131: 4.00 | F131: 1,605.14 | G131: 38,523.36
B132: Pump 4'' Delivery (Diesel) | D132: 1 | E132: 2.00 | F132: 625.00 | G132: 1,250.00
B133: Vibrator (Pocker 1.5") | D133: 2 | E133: 6.00 | F133: 152.57 | G133: 1,830.84
B134: Tractor Trolley | D134: 1 | E134: 4.00 | F134: 466.03 | G134: 1,864.12
B136: Total Equipment / Machinery ( C ) | G136: =SUM(G128:G134) -> 52,336.33
B137: Summary
B139: Basic Cost For 72.00 CM | G139: =G115+G125+G136 -> 819,125.65
B140: Basic Cost Per CM | G140: =ROUND(G139/72,2) -> 11,376.75 | I140: =G140/35.315 -> 322.15
B141: Basic Cost Per CFT | G141: =ROUND(G140/35.32,2) -> 322.11
B142: OverHead & Profit (10 + 15)Percentage | G142: =G141*0.25 -> 80.53
B143: Total Cost Per CFT | G143: =ROUND(SUM(G141:G142),2) -> 402.64

Sheet Steel G-60
A1: ='Concrete Rates'!A1 -> Project Name…..
A2: ='Concrete Rates'!A2 -> CIVIL INFRASTRUCTURE WORKS
A4: RATE ANALYSIS
B6: REINFORCEMENT
B7: Measuring Unit
B8: Item Desc. | C8: Reinforcement As per AASHTO M.31 GRADE 60 | H8: 1 Ton
A11: A | B11: Materials:
A12: 1. | B12: Re-bar Grade 40 | D12: = | E12: 1.00 Ton @82,500 Rs./Ton | G12: = | H12: =1*82500 -> 82,500.00 | I12: Rs./Ton
A13: 2. | B13: Lap percentage | D13: = | E13: 3.226% | G13: = | H13: =H12*E13 -> 2,661.45 | I13: Rs./ Ton
A14: 3. | B14: Concrete spacer block incl. binding wire
D15: = | E15: Lumsum | G15: = | H15: 0 | I15: Rs./ Ton
A16: 4. | B16: Binding Wire | D16: = | E16: 8 Kg/ Ton @120 Rs./ Kg | G16: = | H16: =8*120 -> 960.00 | I16: Rs./ Ton
A17: 5. | B17: Chalk for bar marking | D17: = | E17: 5 Nos/ Ton @ 1.50 Rs./ No | G17: = | H17: =5*1.5 -> 7.50 | I17: Rs./ Ton
A18: 6. | B18: Wastage | D18: = | E18: 5% | G18: = | H18: 2,000.00 | I18: Rs./Ton
F20: Sub-Total Cost A: | G20: = | H20: =SUM(H12:H18) -> 88,128.95 | I20: Rs./ Ton
A22: B | B22: Equipments:
A23: 1. | B23: Trali shifting for site | D23: = | E23: 1 Hr/ Ton @ 592.00 Rs./ Hr | G23: = | H23: =1*592 -> 592.00 | I23: Rs./ Ton
A24: 2. | B24: Cutting Machine | D24: = | E24: 1/2 Hr/ Ton @ 271.00 Rs./ Hr | G24: = | H24: =1/2*271 -> 135.50 | I24: Rs./ Ton
A25: 3. | B25: Bending Machine | D25: = | E25: 1/2 Hr/ Ton @ 271.00 Rs./ Hr | G25: = | H25: =0.5*271 -> 135.50 | I25: Rs./ Ton
A26: 4. | B26: Diesel Generator 60 KVA
E27: 1/2 Hr/ Ton @ 980.14 Rs./ Hr | G27: = | H27: =0.5*980.14 -> 490.07 | I27: Rs./ Ton
F29: Sub Total Cost B: | G29: = | H29: =SUM(H23:H28) -> 1,353.07 | I29: Rs./ Ton
A31: C | B31: Manpower:
A32: 1. | B32: Manpower for Cutting, bending
A33: 1.1. | B33: Steel Foreman | D33: = | E33: 0.25 Hr/ Ton @ 150.00 Rs./ Hr | G33: = | H33: =0.25*150 -> 37.50 | I33: Rs./ Ton
A34: 1.2. | B34: Steel Fixer (2 Nos) | D34: = | E34: 2 x 1 Hr/ Ton @ 75.00 Rs./ Hr | G34: = | H34: =2*1*75 -> 150.00 | I34: Rs./ Ton
A35: 1.3. | B35: Steel Helper (4 Nos) | D35: = | E35: 4 x 1 Hr/ Ton @ 62.50 Rs./ Hr | G35: = | H35: =4*1*62.5 -> 250.00 | I35: Rs./ Ton
A36: 2 | B36: Manpower for Fixing & shifting
A37: 2.1. | B37: Steel Foreman | D37: = | E37: 1x 6 Hr/ Ton @ 150.00 Rs./ Hr | G37: = | H37: =1*6*150 -> 900.00 | I37: Rs./ Ton
A38: 2.2. | B38: Steel Helper (4 Nos) for shifting | D38: = | E38: 4 x 6 Hr/ Ton @ 62.50 Rs./ Hr | G38: = | H38: =4*6*62.5 -> 1,500.00 | I38: Rs./ Ton
A39: 2.3. | B39: Steel Fixer (3 Nos) for Fixing | D39: = | E39: 3 x 6 Hr/ Ton @ 75.00 Rs./ Hr | G39: = | H39: =3*6*75 -> 1,350.00 | I39: Rs./ Ton
F41: Sub Total Cost C: | G41: = | H41: =SUM(H33:H39) -> 4,187.50 | I41: Rs./ Ton
A43: D | B43: Sub-Total Cost (A+B+C) | G43: = | H43: =H20+H29+H41 -> 93,669.52 | I43: Rs./ Ton
A45: E | B45: Add 0.50% Water Charges | G45: = | H45: 0 | I45: Rs./ Ton
A47: F | B47: Total Cost (D+E) | G47: = | H47: =H43+H45 -> 93,669.52 | I47: Rs./ Ton | K47: =H47/1000 -> 93.67
A49: G | B49: Overheads (In-direct Cost) 25 % | G49: = | H49: =H47*0.25 -> 23,417.38 | I49: Rs./ Ton
A51: H | B51: Net Cost for Reinforcement As per AASHTO M.31 GRADE 60 (F+G) | H51: =H47+H49 -> 117,086.90 | I51: Rs./ Ton

Sheet Brick Works
A1: ='Prime Coat'!A1 -> Project Name…..
A2: ='Prime Coat'!A2 -> CIVIL INFRASTRUCTURE WORKS
A4: RATE ANALYSIS
B5: Brick Masonry
B6: Item # 410 | F6: Unit | G6: 25.00 | H6: CM | I6: =+G6*0.225 -> 5.625
B7: Item Desc. | C7: Brick Work.
A9: A | B9: Manpower
B10: Description | D10: No. | E10: Hours | F10: Rate (Rs.) | G10: Amount (Rs.)
B11: Supervisor | D11: 1 | E11: 8.00 | F11: 169.95 | G11: =D11*E11*F11 -> 1,359.60
B12: Assistant.Surveyor | D12: 1 | E12: 2.00 | F12: 106.83 | G12: =D12*E12*F12 -> 213.66
B13: Mason | D13: 10 | E13: 8.00 | F13: 118.75 | G13: =D13*E13*F13 -> 9,500.00
B14: Labour | D14: 2 | E14: 2.00 | F14: 62.50 | G14: =D14*E14*F14 -> 250.00
B15: Helper | D15: 15 | E15: 8.00 | F15: 62.50 | G15: =D15*E15*F15 -> 7,500.00
B17: Total Manpower (A) | G17: =SUM(G11:G15) -> 18,823.26
A18: B | B18: Materials
D19: Unit | E19: Quantity | F19: Rate (Rs.) | G19: Amount
B20: Sand | D20: CM | E20: 8.00 | F20: =15*35.32 -> 529.80 | G20: =E20*F20 -> 4,238.40
B21: Brick Class A | D21: No | E21: 12,500.00 | F21: 7.00 | G21: =E21*F21 -> 87,500.00
B22: Cement | D22: Bag | E22: 55.00 | F22: 535.00 | G22: =E22*F22 -> 29,425.00
B23: Water | D23: 1000LIT | E23: 18.00 | F23: 120.00 | G23: =E23*F23 -> 2,160.00
B24: Scaffolding | D24: CM | E24: 25.00 | F24: 344.93 | G24: =E24*F24 -> 8,623.25
B26: Total Materials (B) | G26: =SUM(G20:G24) -> 131,946.65
A27: C | B27: Equipment /Machinery
D28: No. | E28: Hours | F28: Rate (Rs.) | G28: Amount (Rs.)
B29: Water Tank Tow Type 4000 LTR.(INCLUDE.TRACTOR) | D29: 1 | E29: 6.00 | F29: 1,446.17 | G29: =D29*E29*F29 -> 8,677.02
B30: Pump 4'' Delivery (Diesel) | D30: 1 | E30: 4.00 | F30: 625.00 | G30: =D30*E30*F30 -> 2,500.00
B31: Tractor Trolley | D31: 1 | E31: 6.00 | F31: 466.03 | G31: =D31*E31*F31 -> 2,796.18
B33: Total Equipment / Machinery ( C ) | G33: =SUM(G29:G31) -> 13,973.20
B34: Summary
B36: Basic Cost For 25.00 CM | G36: =G17+G26+G33 -> 164,743.11
B37: Basic Cost Per CM | G37: =ROUND(G36/25,2) -> 6,589.72 | I37: =G37/35.315 -> 186.60
B38: Basic Cost Per CFT | G38: =ROUND(G37/35.32,2) -> 186.57
B39: OverHead & Profit (10 + 15)Percentage | G39: =G38*0.25 -> 46.64
B40: Total Cost Per CFT | G40: =ROUND(SUM(G38:G39),2) -> 233.21
G41: =+G40/0.225 -> 1036.488889

Sheet C.Plaster 13mm
A2: RATE ANALYSIS
A4: CIVIL INFRASTRUCTURE WORKS
B7: 13mm Cement Ratio 1:4
B9: Measuring Unit
B11: Item Desc. | C11: 1/2'' (13 mm) thick cement plaster 1:4 on Ceiling, walls and columns etc. in basement plinth, mezzanine and ground floor including making edges, corners and curing etc. complete. | I11: Sq. M
B14: Crew Quantity for 100 Sft.
A16: A | B16: Material Analysis:
A17: 1. | B17: Wet volume of Mortar | D17: = | E17: 100 x 0.50/12 | F17: = | G17: 4.17 Cft
A18: 2. | B18: Add: 1/3rd for shrinkage | D18: = | E18: 4.17 x 1/3 | F18: = | G18: 1.39 Cft
A19: 3. | B19: Sub-Total (Sr. # 1 & 2) | D19: = | E19: 4.17 + 1.39 | F19: = | G19: 5.56 Cft
A20: 4. | B20: Add: 5% Wastage on Sr. # 3 | D20: = | E20: 5.56 x 5% | F20: = | G20: 0.28 Cft
A21: 5. | B21: G-Total (Sr. # 3 & 4) | D21: = | E21: 5.56 + 0.28 | F21: = | G21: 5.84 Cft
A23: a. | B23: Ratio of Mortar: | D23: = | E23: (1 : 4)
B24: Sum of Ratio | D24: = | E24: 1 + 4 = 5
A25: 1. | B25: Cement | D25: = | E25: (5.84/5)/1.25 | F25: = | G25: 0.93 Bags
A26: 2. | B26: Sand Local | D26: = | E26: (5.84/5) x 4 | F26: = | G26: 4.68 Cft
A28: B | B28: Material Cost :
A29: 1. | B29: Cement | D29: = | E29: 0.93 Bag @ 535 Rs./ Bag | H29: = | I29: =0.93*535 -> 497.55 | J29: Rs./ 100 Sft
A30: 2. | B30: Sand Local (Chenab) | D30: = | E30: 4.68 Cft @ 15.00 Rs./ Cft | H30: = | I30: =4.68*15 -> 70.20 | J30: Rs./ 100 Sft
G32: Sub Total Cost B: | H32: = | I32: =SUM(I29:I31) -> 567.75 | J32: Rs./ 100 Sft
A33: C | B33: Equipments Cost :
A34: 1. | B34: Scaffolding Charges | D34: = | E34: Lumsum | H34: = | I34: 0 | J34: Rs./ 100 Sft
G36: Sub Total Cost C: | H36: = | I36: =I34 -> 0 | J36: Rs./ 100 Sft
A37: D | B37: Manpower Cost :
A38: 1. | B38: Mason | D38: = | E38: 2 x 3.44 Hr/ 100 Sft @ 118.75 Rs./ Hr | H38: = | I38: =2*3.44*118.75 -> 817.00 | J38: Rs./ 100 Sft
A39: 2. | B39: Labour | D39: = | E39: 2 x 3.64 Hr/ 100 Sft @ 62.50 Rs./ Hr | H39: = | I39: =2*3.64*62.5 -> 455.00 | J39: Rs./ 100 Sft
A40: 3. | B40: Water Man | D40: = | E40: 1 x 0.64 Hr/ 100 Sft @ 62.50 Rs./ Hr | H40: = | I40: =1*0.64*62.5 -> 40.00 | J40: Rs./ 100 Sft
A41: 4. | B41: Sundries/Labor | D41: = | E41: Lump Sum | H41: = | I41: 21.00 | J41: Rs./ 100 Sft
G43: Sub Total Cost D: | H43: = | I43: =SUM(I38:I41) -> 1,333.00 | J43: Rs./ 100 Sft
A45: E | B45: Sub Total Cost (B+C+D) | H45: = | I45: =I32+I36+I43 -> 1,900.75 | J45: Rs./ 100 Sft
A47: F | B47: Add. 1.50% Water Charges | H47: = | I47: =I45*1.5% -> 28.51 | J47: Rs./ 100 Sft
A49: G | B49: Total Cost (E+F) | H49: = | I49: =I45+I47 -> 1,929.26 | J49: Rs./ 100 Sft | L49: =I49/100 -> 19.29
A51: H | B51: Total Basic Cost (G/100) | H51: = | I51: =I49/100 -> 19.29 | J51: Rs./ Sft | L51: =I51/100 -> 0.19
A53: I | B53: Overheads (In-direct Cost) 25 % | H53: = | I53: =I51*0.25 -> 4.82 | J53: Rs./Sft
A55: J | B55: Grand Total Cost (J = H+I) | H55: = | I55: =I51+I53 -> 24.12 | J55: Rs./Sft

Sheet C.Plaster 13mm-1
A2: RATE ANALYSIS
A4: CIVIL INFRASTRUCTURE WORKS
B7: 13mm Cement Ratio 1:4
B9: Measuring Unit
B11: Item Desc. | C11: 1/2'' (13 mm) thick cement plaster 1:4 on Ceiling, walls and columns etc. in basement plinth, mezzanine and ground floor including making edges, corners and curing etc. complete. | I11: Sq. M
B14: Crew Quantity for 100 Sft.
A16: A | B16: Material Analysis:
A17: 1. | B17: Wet volume of Mortar | D17: = | E17: 100 x 0.50/12 | F17: = | G17: 4.17 Cft
A18: 2. | B18: Add: 1/3rd for shrinkage | D18: = | E18: 4.17 x 1/3 | F18: = | G18: 1.39 Cft
A19: 3. | B19: Sub-Total (Sr. # 1 & 2) | D19: = | E19: 4.17 + 1.39 | F19: = | G19: 5.56 Cft
A20: 4. | B20: Add: 5% Wastage on Sr. # 3 | D20: = | E20: 5.56 x 5% | F20: = | G20: 0.28 Cft
A21: 5. | B21: G-Total (Sr. # 3 & 4) | D21: = | E21: 5.56 + 0.28 | F21: = | G21: 5.84 Cft
A23: a. | B23: Ratio of Mortar: | D23: = | E23: (1 : 4)
B24: Sum of Ratio | D24: = | E24: 1 + 4 = 5
A25: 1. | B25: Cement | D25: = | E25: (5.84/5)/1.25 | F25: = | G25: 0.93 Bags
A26: 2. | B26: Sand Local | D26: = | E26: (5.84/5) x 4 | F26: = | G26: 4.68 Cft
A28: B | B28: Material Cost :
A29: 1. | B29: Cement | D29: = | E29: 0.93 Bag @ 580 Rs./ Bag | H29: = | I29: =0.93*580 -> 539.40 | J29: Rs./ 100 Sft
A30: 2. | B30: Sand Local (Chenab) | D30: = | E30: 4.68 Cft @ 9.30 Rs./ Cft | H30: = | I30: =4.68*9.3 -> 43.52 | J30: Rs./ 100 Sft
G32: Sub Total Cost B: | H32: = | I32: =SUM(I29:I30) -> 582.92 | J32: Rs./ 100 Sft | L32: =I32/100 -> 5.83
A33: C | B33: Equipments Cost :
A34: 1. | B34: Scaffolding Charges | D34: = | E34: Lumsum | H34: = | I34: 0 | J34: Rs./ 100 Sft
N35: 1886.22 | O35: 108.5
G36: Sub Total Cost C: | H36: = | I36: =I34 -> 0 | J36: Rs./ 100 Sft | N36: 50 | O36: 50
A37: D | B37: Manpower Cost : | N37: =N35/N36 -> 37.7244 | O37: =O35/O36 -> 2.17 | P37: =O37*1000 -> 2170
A38: 1. | B38: Mason | D38: = | E38: 2 x 3.44 Hr/ 100 Sft @ 125.00 Rs./ Hr | H38: = | I38: =2*3.44*125 -> 860.00 | J38: Rs./ 100 Sft
A39: 2. | B39: Labour | D39: = | E39: 2 x 3.64 Hr/ 100 Sft @ 87.50 Rs./ Hr | H39: = | I39: =2*3.64*87.5 -> 637.00 | J39: Rs./ 100 Sft
A40: 3. | B40: Water Man | D40: = | E40: 1 x 0.64 Hr/ 100 Sft @ 37.50 Rs./ Hr | H40: = | I40: =1*0.64*87.5 -> 56.00 | J40: Rs./ 100 Sft | O40: 40
A41: 4. | B41: Sundries/Labor | D41: = | E41: Lump Sum | H41: = | I41: 21.00 | J41: Rs./ 100 Sft | O41: 32
O42: 21.82
G43: Sub Total Cost D: | H43: = | I43: =SUM(I38:I41) -> 1,574.00 | J43: Rs./ 100 Sft | L43: =I43/100 -> 15.74 | O43: =AVERAGE(O40:O42) -> 31.27333333
O44: =900/8 -> 112.50
A45: E | B45: Sub Total Cost (B+C+D) | H45: = | I45: =I32+I36+I43 -> 2,156.92 | J45: Rs./ 100 Sft | O45: =O43*O44 -> 3,518.25
A47: F | B47: Add. 1.50% Water Charges | H47: = | I47: 0 | J47: Rs./ 100 Sft | O47: =2.72*2*O44 -> 612.00 | P47: =0.14*8 -> 1.12
O48: =O47/50 -> 12.24
A49: G | B49: Total Cost (E+F) | H49: = | I49: =I45+I47 -> 2,156.92 | J49: Rs./ 100 Sft | L49: =I49/100 -> 21.57 | O49: =O48*1000 -> 12,240.00
O50: =O49/1000 -> 12.24
A51: H | B51: Total Basic Cost (G/100) | H51: = | I51: =I49/100 -> 21.57 | J51: Rs./ Sft | L51: =I51/100 -> 0.22
A53: I | B53: Overheads (In-direct Cost) 25 % | H53: = | I53: =I51*0.1 -> 2.16 | J53: Rs./Sft
A55: J | B55: Grand Total Cost (J = H+I) | H55: = | I55: =I51+I53 -> 23.73 | J55: Rs./Sft
I60: =5600/3.5 -> 1,600.00 | J60: =41*41*0.5 -> 840.50
I61: =7/0.5 -> 14
I62: =41*41 -> 1681
I63: =I62*14 -> 23534
I64: =41*41*3.5 -> 5883.5
I65: =I64*7 -> 41184.5

Sheet C.Plaster 13mm-1 Sub-Con
A2: RATE ANALYSIS
A4: CIVIL INFRASTRUCTURE WORKS
B7: 13mm Cement Ratio 1:4
B9: Measuring Unit
B11: Item Desc. | C11: 1/2'' (13 mm) thick cement plaster 1:4 on Ceiling, walls and columns etc. in basement plinth, mezzanine and ground floor including making edges, corners and curing etc. complete. | I11: Sq. M
B14: Crew Quantity for 100 Sft.
A16: A | B16: Material Analysis:
A17: 1. | B17: Wet volume of Mortar | D17: = | E17: 100 x 0.50/12 | F17: = | G17: =0.5/12*60 -> 2.50 | H17: Cft
A18: 2. | B18: Add: 1/3rd for shrinkage | D18: = | E18: 4.17 x 1/3 | F18: = | G18: =(1/3)*G17 -> 0.83 | H18: Cft
A19: 3. | B19: Sub-Total (Sr. # 1 & 2) | D19: = | E19: 2.50+0.83 | F19: = | G19: =G17+G18 -> 3.33 | H19: Cft
A20: 4. | B20: Add: 5% Wastage on Sr. # 3 | D20: = | E20: 3.33 x 5% | F20: = | G20: =G19*5% -> 0.17 | H20: Cft
A21: 5. | B21: G-Total (Sr. # 3 & 4) | D21: = | E21: 3.33 + 0.17 | F21: = | G21: =G19+G20 -> 3.50 | H21: Cft
A23: a. | B23: Ratio of Mortar: | D23: = | E23: (1 : 4)
B24: Sum of Ratio | D24: = | E24: 1 + 4 = 5
A25: 1. | B25: Cement | D25: = | E25: (5.84/5)/1.25 | F25: = | G25: =(G21/5)/1.25 -> 0.56 | H25: Bags
A26: 2. | B26: Sand Local | D26: = | E26: (5.84/5) x 4 | F26: = | G26: =G21/5*4 -> 2.80 | H26: Cft
A28: B | B28: Material Cost :
A29: 1. | B29: Cement | D29: = | E29: 0.93 Bag @ 580 Rs./ Bag | H29: = | I29: =G25*580 -> 324.80 | J29: Rs./ 60 Sft
A30: 2. | B30: Sand Local (Chenab) | D30: = | E30: 4.68 Cft @ 9.30 Rs./ Cft | H30: = | I30: =G26*9.3 -> 26.04 | J30: Rs./ 60 Sft
G32: Sub Total Cost B: | H32: = | I32: =SUM(I29:I30) -> 350.84 | J32: =J30 -> Rs./ 60 Sft | L32: 0
A33: C | B33: Equipments Cost :
A34: 1. | B34: Scaffolding Charges | D34: = | E34: Lumsum | H34: = | I34: 0 | J34: =J32 -> Rs./ 60 Sft
N35: 1886.22 | O35: 108.5
G36: Sub Total Cost C: | H36: = | I36: =I34 -> 0 | J36: =J34 -> Rs./ 60 Sft | N36: 50 | O36: 50
A37: D | B37: Manpower Cost : | N37: =N35/N36 -> 37.7244 | O37: =O35/O36 -> 2.17 | P37: =O37*1000 -> 2170
A38: 1. | B38: Mason | D38: = | E38: 1 x 8 Hr/ 60 Sft @ 125.00 Rs./ Hr | H38: = | I38: =1*8*125 -> 1,000.00 | J38: Rs./ 60 Sft
A39: 2. | B39: Labour | D39: = | E39: 1 x 8 Hr/ 60 Sft @ 75.00 Rs./ Hr | H39: = | I39: =1*8*75 -> 600.00 | J39: Rs./ 60 Sft
O40: 21.82
G41: Sub Total Cost D: | H41: = | I41: =SUM(I38:I39) -> 1,600.00 | J41: =J39 -> Rs./ 60 Sft | L41: =I41/60 -> 26.67 | O41: =AVERAGE(O40:O40) -> 21.82
O42: =900/8 -> 112.50
A43: E | B43: Sub Total Cost (B+C+D) | H43: = | I43: =I32+I36+I41 -> 1,950.84 | J43: Rs./ 60 Sft | O43: =O41*O42 -> 2,454.75
A45: F | B45: Add. 1.50% Water Charges | H45: = | I45: 0 | J45: =J43 -> Rs./ 60 Sft | O45: =2.72*2*O42 -> 612.00 | P45: =0.14*8 -> 1.12
O46: =O45/50 -> 12.24
A47: G | B47: Total Cost (E+F) | H47: = | I47: =I43+I45 -> 1,950.84 | J47: =J45 -> Rs./ 60 Sft | L47: 0 | O47: =O46*1000 -> 12,240.00
O48: =O47/1000 -> 12.24
A49: H | B49: Total Basic Cost (G/100) | H49: = | I49: =I47/60 -> 32.51 | J49: Rs./ Sft | L49: =L32+L41 -> 26.67
A51: I | B51: Overheads (In-direct Cost) 25 % | H51: = | I51: =I49*0.1 -> 3.25 | J51: Rs./Sft
A53: J | B53: Grand Total Cost (J = H+I) | H53: = | I53: =I49+I51 -> 35.77 | J53: Rs./Sft

Sheet Stucking
A2: RATE ANALYSIS
A4: CIVIL INFRASTRUCTURE WORKS SECTOR - C
B7: Stucking
B9: Measuring Unit
B11: Item Desc. | C11: 1/2'' (13 mm) thick cement plaster 1:6 on Manhole Stucking. and curing etc. complete. | I11: Sq. M
B14: Crew Quantity for 100 Sft.
A16: A | B16: Material Analysis:
A17: 1. | B17: Wet volume of Mortar | D17: = | E17: 100 x 0.50/12 | F17: = | G17: 4.17 Cft
A18: 2. | B18: Add: 1/3rd for shrinkage | D18: = | E18: 4.17 x 1/3 | F18: = | G18: 1.39 Cft
A19: 3. | B19: Sub-Total (Sr. # 1 & 2) | D19: = | E19: 4.17 + 1.39 | F19: = | G19: 5.56 Cft
A20: 4. | B20: Add: 5% Wastage on Sr. # 3 | D20: = | E20: 5.56 x 5% | F20: = | G20: 0.28 Cft
A21: 5. | B21: G-Total (Sr. # 3 & 4) | D21: = | E21: 5.56 + 0.28 | F21: = | G21: 5.84 Cft
A23: a. | B23: Ratio of Mortar: | D23: = | E23: (1 : 6)
B24: Sum of Ratio | D24: = | E24: 1 + 6 = 7
A25: 1. | B25: Cement | D25: = | E25: (5.84/6)/1.25 | F25: = | G25: 0.67 Bags
A26: 2. | B26: Sand Local | D26: = | E26: (5.84/7) x 6 | F26: = | G26: 5.01 Cft
A28: B | B28: Material Cost :
A29: 1. | B29: Cement | D29: = | E29: 0.67 Bag @ 535 Rs./ Bag | H29: = | I29: =0.67*535 -> 358.45 | J29: Rs./ 100 Sft
A30: 2. | B30: Sand Local (Chenab) | D30: = | E30: 5.01 Cft @ 9 Rs./ Cft | H30: = | I30: =5.01*9 -> 45.09 | J30: Rs./ 100 Sft
G32: Sub Total Cost B: | H32: = | I32: =SUM(I29:I31) -> 403.54 | J32: Rs./ 100 Sft
A33: C | B33: Equipments Cost :
A34: 1. | B34: Scaffolding Charges | D34: = | E34: Lumsum | H34: = | I34: 0 | J34: Rs./ 100 Sft
G36: Sub Total Cost C: | H36: = | I36: =I34 -> 0 | J36: Rs./ 100 Sft
A37: D | B37: Manpower Cost :
A38: 1. | B38: Mason | D38: = | E38: 100 Sft @ 4.00 Rs./ Sft | H38: = | I38: =100*4 -> 400.00 | J38: Rs./ 100 Sft
G40: Sub Total Cost D: | H40: = | I40: =SUM(I38:I39) -> 400.00 | J40: Rs./ 100 Sft
A42: E | B42: Sub Total Cost (B+C+D) | H42: = | I42: =I32+I36+I40 -> 803.54 | J42: Rs./ 100 Sft
A44: F | B44: Add. 1.50% Water Charges | H44: = | I44: =I42*1.5% -> 12.05 | J44: Rs./ 100 Sft
A46: G | B46: Total Cost (E+F) | H46: = | I46: =I42+I44 -> 815.59 | J46: Rs./ 100 Sft | L46: =I46/100 -> 8.16
A48: H | B48: Total Basic Cost (G/100) | H48: = | I48: =I46/100 -> 8.16 | J48: Rs./ Sft | L48: =I48/100 -> 0.08
A50: I | B50: Overheads (In-direct Cost) 25 % | H50: = | I50: =I48*0.25 -> 2.04 | J50: Rs./Sft
A52: J | B52: Grand Total Cost (J = H+I) | H52: = | I52: =I48+I50 -> 10.19 | J52: Rs./Sft

Sheet Fountain TILE
A1: ='Concrete Rates'!A1 -> Project Name…..
A2: ='Concrete Rates'!A2 -> CIVIL INFRASTRUCTURE WORKS
A4: RATE ANALYSIS
B7: CRAMIC SPAIN TILE FLOORING IN FOUNTAIN
B9: Measuring Unit | H9: SFT
B11: Item Desc. | C11: Providing and laying 1 inch (25mm ) thick floor of mosaic marble chips tiles 13'' x 13'' 1'' in grey cement in (FOUTAIN) over 2'' (50mm) cement mortar 1:2 (one cement two sand ) setting the tile with grey cement slurry over cement mortar, jointing and washing the tiles with cement slurry of matching color completer in all respect.
B14: DETAIL OF COST FOR 100 SQFT. OR 9.28 SQM.
A15: A | B15: Materials:
A16: 1. | B16: Mosaics PAIN tiles 12'' x 12'' | D16: = | E16: 9.28 M² @ 2500 Rs. / M² | G16: = | H16: =9.28*430.4 -> 3,994.11 | I16: Rs. / 9.28 M²
A17: 2. | B17: Cement for mortar | D17: = | E17: 6.125 Bag @ 535.00 Rs./ Bag | G17: = | H17: =6.125*535 -> 3,276.88 | I17: Rs. / 9.28 M²
A18: 3. | B18: Local Sand | D18: = | E18: 15.13 Cft @ 25.00 Rs./ Cft | G18: = | H18: =15.13*25 -> 378.25 | I18: Rs. / 9.28 M²
A19: 4. | B19: Cartridge of Cement from Market to Site | D19: = | E19: Lumsum | G19: = | H19: 200.00 | I19: Rs. / 9.28 M²
A20: 5. | B20: Cartridge of Mosaic Tile from Islamabad to Site | D20: = | E20: Detail attach | G20: = | H20: 0 | I20: Rs. / 9.28 M²
F22: Sub Total Cost A: | G22: = | H22: =SUM(H16:H20) -> 7,849.24 | I22: Rs. / 9.28 M²
A24: B | B24: Equipments:
A25: 1. | B25: Sundries/ Miscellaneous. | D25: = | E25: Lumsum | G25: = | H25: 220.00 | I25: Rs. / 9.28 M²
F27: Sub Total Cost B: | G27: = | H27: =SUM(H25:H25) -> 220.00 | I27: Rs. / 9.28 M²
A29: C | B29: Manpower :
A30: 1. | B30: Mason Fixing Charges for Mosaic Tiles | D30: = | E30: 2 x 7.48 Hrs @ 121.00 Rs./ Hr | G30: = | H30: =2*7.48*121 -> 1,810.16 | I30: Rs. / 9.28 M²
A31: 2. | B31: Labor Fixing Charges for Mosaic Tiles | D31: = | E31: 2 x 5.48 Hrs @ 67.31 Rs./ Hr | G31: = | H31: =2*5.48*67.31 -> 737.72 | I31: Rs. / 9.28 M²
A32: 3. | B32: Labour rate for grinding /polishing of Mosaic Tiles | D32: = | E32: 9.28 M² @ 204.44.00 Rs. / M² | G32: = | H32: 0 | I32: Rs. / 9.28 M²
A33: 4. | B33: Labour rate for Chipping of concrete floor | D33: = | E33: 9.28 M² @ 21.52.00 Rs. / M² | G33: = | H33: 0 | I33: Rs. / 9.28 M²
F35: Sub Total Cost C: | G35: = | H35: =SUM(H30:H33) -> 2,547.88 | I35: Rs. / 9.28 M²
A37: D | B37: Total Cost (A+B+C) | G37: = | H37: =H22+H27+H35 -> 10,617.11 | I37: Rs. / 9.28 M²
A39: E | B39: Add 1.5 % Water Charges | G39: = | H39: =H37*1.5% -> 159.26 | I39: =I16 -> Rs. / 9.28 M²
A41: F | B41: Total Cost (D+E) | G41: = | H41: =H37+H39 -> 10,776.37 | I41: =I22 -> Rs. / 9.28 M² | J41: =(H41/9.28)/10.76 -> 107.92 | K41: Rs./Sft | L41: =H41/9.28 -> 1,161.25 | M41: Rs./Sft
A43: G | B43: Total Basic Cost (G = F /9.28) | G43: = | H43: =H41/9.28 -> 1,161.25 | I43: Rs./M²
A45: H | B45: Total Basic Cost (I = G /10.76) | G45: = | H45: =H43/10.76 -> 107.92 | I45: Rs./Sft
A47: I | B47: Overheads (In-direct Cost) 25 % | G47: = | H47: =H45*0.25 -> 26.98 | I47: =I45 -> Rs./Sft
A49: J | B49: Grand Total Cost (H = H+I) | G49: = | H49: =H45+H47 -> 134.90 | I49: =I47 -> Rs./Sft

Sheet SAND CUSHION
A1: ='Concrete Rates'!A1 -> Project Name…..
A2: ='Concrete Rates'!A2 -> CIVIL INFRASTRUCTURE WORKS
A4: RATE ANALYSIS
B6: 37MM SAND CUSHION UNDER TUFF PAVER
B8: Measuring Unit | I8: Sq.m
B10: Item Desc. | C10: Providing of Local sand 37mm thick sand cushion under TUFF PAVER including spreading ,leveling & compacting location as per drawing.
A13: A | B13: Material Cost :
A14: 1. | B14: Local Sand | D14: = | E14: 1.70 Cft x @ 9.00 Rs./ Cft | H14: = | I14: =1.7*9 -> 15.30 | J14: Rs./ Sq.m
A15: 2. | B15: Wastage | D15: = | E15: 5% | H15: = | I15: =I14*5% -> 0.77 | J15: Rs./ Sq.m
G17: Sub Total Cost A: | H17: = | I17: =SUM(I14:I15) -> 16.07 | J17: Rs./ Sq.m
A19: B | B19: Equipments Cost :
A20: 1. | B20: Wheel Barrow | D20: = | E20: 1 No. x 0.08 Hrs. @ 50.00 Rs. / Hr | H20: = | I20: =1*0.08*50 -> 4.00 | J20: Rs./ Sq.m
A21: 2. | B21: Plate Compactor | D21: = | E21: 1 No. x 0.16 Hrs. @ 278.00 Rs. / Hr | H21: = | I21: =1*0.16*278 -> 44.48 | J21: Rs./ Sq.m
A22: 3. | B22: T &P | D22: = | E22: Lumsum | H22: = | I22: 5.000 | J22: =J20 -> Rs./ Sq.m
G24: Sub Total Cost B: | H24: = | I24: =SUM(I20:I22) -> 53.48 | J24: =J17 -> Rs./ Sq.m
A26: C | B26: Labour Cost :
A27: 1. | B27: Labour for shifting Sand | D27: = | E27: 1 x 0.08 Hrs @ 47.12 Rs./ Hr | H27: = | I27: =1*0.08*47.12 -> 3.77 | J27: =J22 -> Rs./ Sq.m
A28: 2. | B28: Labour Sperading & leveling | D28: = | E28: 1 x 0.16 Hrs @ 47.12 Rs./ Hr | H28: = | I28: =1*0.16*47.12 -> 7.54 | J28: =J27 -> Rs./ Sq.m
A29: 3. | B29: Plate Compactor operator | D29: = | E29: 1 x 0.16 Hrs @ 47.12 Rs./ Hr | H29: = | I29: =1*0.16*47.12 -> 7.54 | J29: =J28 -> Rs./ Sq.m
A30: 4. | B30: Water Man | D30: = | E30: 1 x 0.16 Hrs @ 47.12 Rs./ Hr | H30: = | I30: =1*0.16*47.12 -> 7.54 | J30: =J28 -> Rs./ Sq.m
G32: Sub Total Cost C: | H32: = | I32: =SUM(I27:I31) -> 26.39 | J32: =J17 -> Rs./ Sq.m
A34: D | B34: Total Cost (A+B+C) | I34: =I17+I24+I32 -> 95.93 | J34: =J32 -> Rs./ Sq.m
A37: E | B37: Add 2 % Water Charges | H37: = | I37: =I34*2% -> 1.92 | J37: =J34 -> Rs./ Sq.m
A39: F | B39: Total Cost (D+E) | H39: = | I39: =SUM(I34:I38) -> 97.85 | J39: =J34 -> Rs./ Sq.m | L39: =I39/10.76 -> 9.09 | M39: Rs.Sft
A41: G | B41: Basic Cost | H41: = | I41: =I39/10.76 -> 9.09 | J41: Rs./ Sft | L41: =I41/10.76 -> 0.85 | M41: Rs.Sft
A43: H | B43: Overheads (In-direct Cost) 25 % | H43: = | I43: =I41*25% -> 2.27 | J43: =J41 -> Rs./ Sft
A45: I | B45: Grand Total Cost (G+H) | H45: = | I45: =I43+I41 -> 11.37 | J45: =J43 -> Rs./ Sft

Sheet SAND FILLING IN PARK
A1: ='Concrete Rates'!A1 -> Project Name…..
A2: ='Concrete Rates'!A2 -> CIVIL INFRASTRUCTURE WORKS
A4: RATE ANALYSIS
B6: SAND FILLING IN PARKS
B7: Measuring Unit | I7: CFT
B9: Item Desc. | C9: Harrow Sand Filling in PARKS
B11: Crew Qty for 100 Cft
A13: A | B13: Material
A14: 1. | B14: Harrow Sand Filling | D14: = | E14: 100*1.05=105 | K14: =100*1.05 -> 105
D15: = | E15: 105 Cft @ 25 Rs./Cft | G15: = | H15: =105*25 -> 2,625.00 | I15: Rs./ 100 Cft
F17: Sub Total Cost A: | G17: = | H17: =SUM(H15:H16) -> 2,625.00 | I17: Rs./100 Cft
A19: B | B19: Equipments:
A20: 1. | D20: = | G20: = | H20: 0 | I20: Rs./ 100 Cft
F22: Sub Total Cost B: | G22: = | H22: =SUM(H20:H20) -> 0 | I22: Rs./100 Cft
A24: C | B24: Manpower:
A25: 1. | B25: Earthwork Foreman | D25: = | E25: 0.05 Hr @ 144.23 Rs./ Hr | G25: = | H25: =0.05*144.23 -> 7.21 | I25: Rs./ 100 Cft
A26: 2. | B26: Surveyor | D26: = | E26: 0.05 Hr @ 168.26 Rs./ Hr | G26: = | H26: =0.05*168.26 -> 8.41 | I26: Rs./ 100 Cft
A27: 3. | B27: Surveyor Helper | D27: = | E27: 0.05 Hr @ 62.50 Rs./ Hr | G27: = | H27: =0.05*62.5 -> 3.13 | I27: Rs./ 100 Cft
F29: Sub Total Cost C: | G29: = | H29: =SUM(H25:H27) -> 18.75 | I29: Rs./100 Cft
A31: D | B31: Sub-Total Cost (A+B+C) | G31: = | H31: =H17+H22+H29 -> 2,643.75 | I31: Rs./100 Cft
A33: E | B33: Add 5% Water Charges | G33: = | H33: =H31*5% -> 132.19 | I33: =I31 -> Rs./100 Cft
A35: F | B35: Total Cost (D+E) | G35: = | H35: =H31+H33 -> 2,775.94 | I35: Rs./100 Cft
A37: G | B37: Basic Cost (D+E) | G37: = | H37: =H35/100 -> 27.76 | I37: Rs./Cft
A39: H | B39: Overhead / Profit 25 % | G39: = | H39: =ROUND(H37*25%,0) -> 7.00 | I39: =I37 -> Rs./Cft
A41: I | B41: Grand Total Cost (G+H) | G41: = | H41: =H37+H39 -> 34.76 | I41: =I39 -> Rs./Cft

Sheet Filling of Earth in Park
A1: ='Concrete Rates'!A1 -> Project Name…..
A2: ='Concrete Rates'!A2 -> CIVIL INFRASTRUCTURE WORKS
A4: RATE ANALYSIS
B7: FILLING OF EARTH IN GREEN BELT/PARKS
B8: Measuring Unit | I8: CFT
B10: Item Desc. | C10: Filling of earthen taken from borrow excavation in common material including leveling dressing top in GREEN BELT/ PARKS,
B12: Crew Qty for 100 Cft
A14: A | B14: Material
A15: 1. | B15: Borrow Earth with compaction | D15: = | E15: 100 x 1.25 = 125.00
D16: = | E16: 125.00 Cft @ 4.75 Rs./Cft | G16: = | H16: =125*4.75 -> 593.75 | I16: Rs./ 100 Cft
F18: Sub Total Cost A: | G18: = | H18: =SUM(H16:H17) -> 593.75 | I18: Rs./100 Cft
A20: B | B20: Equipments:
A21: 1. | B21: Grader for leveling | D21: = | E21: 0.05 Hr @ 3433.00 Rs./ Hr | G21: = | H21: =0.05*3433 -> 171.65 | I21: Rs./ 100 Cft
F23: Sub Total Cost B: | G23: = | H23: =SUM(H21:H21) -> 171.65 | I23: Rs./100 Cft
A25: C | B25: Manpower:
A26: 1. | B26: Earthwork Foreman | D26: = | E26: 0.05 Hr @ 144.23 Rs./ Hr | G26: = | H26: =0.05*144.23 -> 7.21 | I26: Rs./ 100 Cft
A27: 2. | B27: Surveyor | D27: = | E27: 0.05 Hr @ 168.26 Rs./ Hr | G27: = | H27: =0.05*168.26 -> 8.41 | I27: Rs./ 100 Cft
A28: 3. | B28: Surveyor Helper | D28: = | E28: 0.05 Hr @ 62.50 Rs./ Hr | G28: = | H28: =0.05*62.5 -> 3.13 | I28: Rs./ 100 Cft
F30: Sub Total Cost C: | G30: = | H30: =SUM(H26:H28) -> 18.75 | I30: Rs./100 Cft
A32: D | B32: Sub-Total Cost (A+B+C) | G32: = | H32: =H18+H23+H30 -> 784.15 | I32: Rs./100 Cft
A34: E | B34: Add 5% Water Charges | G34: = | H34: =H32*5% -> 39.21 | I34: =I32 -> Rs./100 Cft
A36: F | B36: Total Cost (D+E) | G36: = | H36: =H32+H34 -> 823.36 | I36: Rs./100 Cft | K36: =H36/100 -> 8.23
A38: G | B38: Basic Cost (G = F/100) | G38: = | H38: =H36/100 -> 8.23 | I38: Rs./Cft | K38: =H38/100 -> 0.08
A40: H | B40: Overhead / Profit 25 % | G40: = | H40: =ROUND(H38*25%,0) -> 2.00 | I40: =I38 -> Rs./Cft
A42: I | B42: Grand Total Cost (G+H) | G42: = | H42: =SUM(H38:H40) -> 10.23 | I42: =I38 -> Rs./Cft

Sheet Marble Tiles
A1: ='Concrete Rates'!A1 -> Project Name…..
A2: ='Concrete Rates'!A2 -> CIVIL INFRASTRUCTURE WORKS
A4: RATE ANALYSIS
B7: Marble Size (24" x 12" x 1/2")
B9: Measuring Unit | H9: Sq.M
B11: Item Desc. | C11: Providing and laying 1/2" inch (12.5mm ) thick floor of Marble size 24'' x 12'' x 1/2'' in grey cement over 2'' (50mm) cement mortar 1:2 (one cement two sand )setting the marble with grey cement slurry over cement mortar, jointing and washing the marble with cement slurry of matching color completer in all respect.
B14: DETAIL OF COST FOR 100 SQFT. OR 9.28 SQM.
A15: A | B15: Materials:
A16: 1. | B16: Marble Size (24" x 12" x 1/2") | D16: = | E16: 9.28 M² @ (66/2) x 1 = 33 x 10.76 = 355.08 Rs. / M² | G16: = | H16: =9.28*355.08 -> 3,295.14 | I16: Rs. / 9.28 M²
A17: 2. | B17: Cement for mortar | D17: = | E17: 6.125 Bag @ 535.00 Rs./ Bag | G17: = | H17: =6.125*535 -> 3,276.88 | I17: Rs. / 9.28 M²
A18: 3. | B18: Local Sand | D18: = | E18: 15.13 Cft @ 25.00 Rs./ Cft | G18: = | H18: =15.13*25 -> 378.25 | I18: Rs. / 9.28 M²
A19: 4. | B19: Cartridge of Cement from Market to Site | D19: = | E19: Lumsum | G19: = | H19: 200.00 | I19: Rs. / 9.28 M²
F21: Sub Total Cost A: | G21: = | H21: =SUM(H16:H19) -> 7,150.27 | I21: Rs. / 9.28 M²
A23: B | B23: Equipments:
A24: 1. | B24: Sundries/ Miscellaneous. | D24: = | E24: Lumsum | G24: = | H24: 220.00 | I24: Rs. / 9.28 M²
F26: Sub Total Cost B: | G26: = | H26: =SUM(H24:H24) -> 220.00 | I26: Rs. / 9.28 M²
A28: C | B28: Manpower :
A29: 1. | B29: Mason Fixing Charges for Marble | D29: = | E29: 9.28 M² @ (25.00 x 10.76 = 269.00 Rs./ M²) | G29: = | H29: =9.28*(25*10.76) -> 2,496.32 | I29: Rs. / 9.28 M²
A30: 2. | B30: Labour rate for grinding /polishing of Marble | D30: = | E30: 9.28 M² @ (20.00 x 10.76 = 215.20 Rs./ M²) | G30: = | H30: =9.28*(20*10.76) -> 1,997.06 | I30: Rs. / 9.28 M²
F32: Sub Total Cost C: | G32: = | H32: =SUM(H29:H30) -> 4,493.38 | I32: Rs. / 9.28 M²
A34: D | B34: Total Cost (A+B+C) | G34: = | H34: =H21+H26+H32 -> 11,863.64 | I34: Rs. / 9.28 M²
A36: E | B36: Add 1.5 % Water Charges | G36: = | H36: =H34*1.5% -> 177.95 | I36: =I16 -> Rs. / 9.28 M²
A38: F | B38: Total Cost (D+E) | G38: = | H38: =H34+H36 -> 12,041.60 | I38: =I21 -> Rs. / 9.28 M² | J38: =(H38/9.28)/10.76 -> 120.59 | K38: Rs./Sft | L38: =H38/9.28 -> 1,297.59 | M38: Rs./Sft
A40: G | B40: Total Basic Cost (G = F /9.28) | G40: = | H40: =H38/9.28 -> 1,297.59 | I40: Rs./M²
A42: H | B42: Total Basic Cost (I = G /10.76) | G42: = | H42: =H40/10.76 -> 120.59 | I42: Rs./Sft
A44: I | B44: Overheads (In-direct Cost) 25 % | G44: = | H44: =H42*0.25 -> 30.15 | I44: =I42 -> Rs./Sft
A46: J | B46: Grand Total Cost (H = H+I) | G46: = | H46: =H42+H44 -> 150.74 | I46: =I44 -> Rs./Sft

Sheet BRICK BAT
A1: DHA MULTAN
A2: CIVIL INFRASTRUCTURE WORKS SECTOR - C
A4: RATE ANALYSIS
B6: BIRCK BATS
B8: Crew Qty = 100 Cft or 2.831 Cu.m
B9: Measuring Unit | H9: M³
B10: Item Desc. | C10: Suppying, stacking and filling bricks bats from outside source in depth 6.883 from ground level for soakage pit .
A13: A | B13: Material
A14: 1. | B14: Brick bats | D14: = | E14: 2.831 M³ @ Rs. 1,000 / M³ | G14: = | H14: =2.831*1000 -> 2,831.00 | I14: Rs./ 2.831M³
A15: 2. | B15: Transportation from 18 KM to Site | E15: Lumsum | G15: = | H15: 200.00 | I15: Rs./ 2.831M³
F17: Sub Total Cost A: | G17: = | H17: =SUM(H14:H16) -> 3,031.00 | I17: Rs./ 2.831M³
A19: B | B19: Manpower :
A20: 1. | B20: Labour | D20: = | E20: 2 x 8.0 Hr/ No. @ 62.50 Rs./ Hr | G20: = | H20: =2*8*62.5 -> 1,000.00 | I20: Rs./ 2.831M³
F22: Sub Total Cost B: | G22: = | H22: =SUM(H20:H20) -> 1,000.00 | I22: Rs./ 2.831M³
A24: C | B24: Sub Total Cost (A+B) | G24: = | H24: =H17+H22 -> 4,031.00 | I24: Rs./ 2.831M³
A26: D | B26: Add 0.5% Water Charges (C x 0.5%) | G26: = | H26: =H24*0.5% -> 20.16 | I26: Rs./ 2.831M³
A28: E | B28: Total Cost (C+D) | G28: = | H28: =H24+H26 -> 4,051.16 | I28: Rs./ 2.831M³
A30: F | B30: Total Cost Basic Cost | G30: = | H30: =H28/2.831 -> 1,431.00 | I30: Rs./M³
A32: G | B32: Total Cost Basic Cost | G32: = | H32: =H30/35.32 -> 40.52 | I32: Rs./Cft
A34: H | B34: Overhead / Profit 25 % | G34: = | H34: =H32*0.25 -> 10.13 | I34: Rs./Cft
A36: I | B36: Grand Total Cost (G+H) | G36: = | H36: =SUM(H32:H34) -> 50.64 | I36: =I32 -> Rs./Cft

Sheet Granite,. Tiles Floor & Walll
A1: ='Concrete Rates'!A1 -> Project Name…..
A2: ='Concrete Rates'!A2 -> CIVIL INFRASTRUCTURE WORKS
A4: RATE ANALYSIS
B6: Building Name:-
B7: Floor Tile Size (33" x 8" ) Make Master
B9: Measuring Unit | H9: Sq.M
B11: Item Desc. | C11: Floor Tile colour wooden pattern size 33'' x 8'' Make ''Master''
B14: DETAIL OF COST FOR 100 SQFT. OR 9.28 SQM.
A15: A | B15: Materials:
A16: 1. | B16: Tile (Wooden Pattren) | D16: = | E16: 9.28 Sq.m @ 1400.00 Rs./m² | G16: = | H16: =9.29*1400 -> 13,006.00 | I16: Rs. / 9.28 M²
A17: 2. | B17: Tile Bond | D17: = | E17: 9.28 x 6.666 Kg @ 13.75 Rs./ Kg | G17: = | H17: =9.28*6.666*13.7 -> 847.49 | I17: Rs. / 9.28 M²
A18: 3. | B18: Grout Joint Filling Material | D18: = | E18: 9.28 x 0.077 Kg @ 150.00 Rs./ Kg | G18: = | H18: =9.28*0.077*150 -> 107.18 | I18: Rs. / 9.28 M²
A19: 4. | B19: Wastage | D19: = | E19: 5% | G19: = | H19: =SUM(H16:H18)*E19 -> 698.03 | I19: Rs. / 9.28 M²
A20: 5. | B20: Carridge from Market to Site | D20: = | E20: 9.28 Sq.m @ 6.73 Rs./m² | G20: = | H20: =9.28*6.73 -> 62.45 | I20: Rs. / 9.28 M²
F22: Sub Total Cost A: | G22: = | H22: =SUM(H16:H20) -> 14,721.16 | I22: Rs. / 9.28 M² | J22: =H22/9.28 -> 1,586.33
A24: B | B24: Equipments:
A25: 1. | D25: = | E25: Lumsum | G25: = | H25: 0 | I25: Rs. / 9.28 M²
A26: 2. | G26: = | H26: 0 | I26: Rs. / 9.28 M²
A27: 3. | G27: = | H27: 0 | I27: Rs. / 9.28 M²
A28: 4. | G28: = | H28: 0 | I28: Rs. / 9.28 M²
F30: Sub Total Cost B: | G30: = | H30: =SUM(H25:H25) -> 0 | I30: Rs. / 9.28 M²
A32: C | B32: Manpower :
A33: 1. | B33: Fixing Charges as sub-contractor | D33: = | E33: 9.28 M² @ 25.00 x 10.76 = 269.00 Rs./ M²) | G33: = | H33: =9.28*(25*10.76) -> 2,496.32 | I33: Rs. / 9.28 M²
F35: Sub Total Cost C: | G35: = | H35: =SUM(H33:H33) -> 2,496.32 | I35: Rs. / 9.28 M² | J35: =H35/9.28 -> 269.00
A37: D | B37: Total Cost (A+B+C) | G37: = | H37: =H22+H30+H35 -> 17,217.48 | I37: Rs. / 9.28 M²
A39: E | B39: Add 0.5. % Water Charges | G39: = | H39: =H37*0.5% -> 86.09 | I39: =I16 -> Rs. / 9.28 M²
A41: F | B41: Total Cost (D+E) | G41: = | H41: =H37+H39 -> 17,303.57 | I41: =I22 -> Rs. / 9.28 M²
A43: G | B43: Total Basic Cost (G = F /9.28) | G43: = | H43: =H41/9.28 -> 1,864.61 | I43: Rs./M²
A45: H | B45: Total Basic Cost (I = G /10.76) | G45: = | H45: =H43/10.76 -> 173.29 | I45: Rs./Sft
A47: I | B47: Overheads (In-direct Cost) 25 % | G47: = | H47: =H45*0.25 -> 43.32 | I47: =I45 -> Rs./Sft
A49: J | B49: Grand Total Cost (H = H+I) | G49: = | H49: =H45+H47 -> 216.61 | I49: =I47 -> Rs./Sft
A50: =A1 -> Project Name…..
A51: =A2 -> CIVIL INFRASTRUCTURE WORKS
A53: RATE ANALYSIS
B55: Building Name:-
B56: Wall Tile Size (12" x 36" ) Make Imported (UAE)
B58: Measuring Unit | H58: Sq.M
B60: Item Desc. | C60: Floor Tile colour size 12'' x 36'' Make ''Imported (UAE)''
B63: DETAIL OF COST FOR 100 SQFT. OR 9.28 SQM.
A64: A | B64: Materials:
A65: 1. | B65: Tile (Importred) | D65: = | E65: 9.28 Sq.m @ 3100.00 Rs./m² | G65: = | H65: =9.29*3100 -> 28,799.00 | I65: Rs. / 9.28 M²
A66: 2. | B66: Tile Bond | D66: = | E66: 9.28 x 6.666 Kg @ 13.75 Rs./ Kg | G66: = | H66: =9.28*6.666*13.7 -> 847.49 | I66: Rs. / 9.28 M²
A67: 3. | B67: Grout Joint Filling Material | D67: = | E67: 9.28 x 0.077 Kg @ 150.00 Rs./ Kg | G67: = | H67: =9.28*0.077*150 -> 107.18 | I67: Rs. / 9.28 M²
A68: 4. | B68: Wastage | D68: = | E68: 5% | G68: = | H68: =SUM(H65:H67)*E68 -> 1,487.68 | I68: Rs. / 9.28 M²
A69: 5. | B69: Carridge from Market to Site | D69: = | E69: 9.28 Sq.m @ 6.73 Rs./m² | G69: = | H69: =9.28*6.73 -> 62.45 | I69: Rs. / 9.28 M²
F71: Sub Total Cost A: | G71: = | H71: =SUM(H65:H69) -> 31,303.81 | I71: Rs. / 9.28 M² | J71: =H71/9.28 -> 3,373.26
A73: B | B73: Equipments:
A74: 1. | D74: = | E74: Lumsum | G74: = | H74: 0 | I74: Rs. / 9.28 M²
A75: 2. | G75: = | H75: 0 | I75: Rs. / 9.28 M²
A76: 3. | G76: = | H76: 0 | I76: Rs. / 9.28 M²
A77: 4. | G77: = | H77: 0 | I77: Rs. / 9.28 M²
F79: Sub Total Cost B: | G79: = | H79: =SUM(H74:H74) -> 0 | I79: Rs. / 9.28 M²
A81: C | B81: Manpower :
A82: 1. | B82: Fixing Charges as sub-contractor | D82: = | E82: 9.28 M² @ 25.00 x 10.76 = 269.00 Rs./ M²) | G82: = | H82: =9.28*(25*10.76) -> 2,496.32 | I82: Rs. / 9.28 M²
F84: Sub Total Cost C: | G84: = | H84: =SUM(H82:H82) -> 2,496.32 | I84: Rs. / 9.28 M²
A86: D | B86: Total Cost (A+B+C) | G86: = | H86: =H71+H79+H84 -> 33,800.13 | I86: Rs. / 9.28 M²
A88: E | B88: Add 0.5. % Water Charges | G88: = | H88: =H86*0.5% -> 169.00 | I88: =I65 -> Rs. / 9.28 M²
A90: F | B90: Total Cost (D+E) | G90: = | H90: =H86+H88 -> 33,969.13 | I90: =I71 -> Rs. / 9.28 M²
A92: G | B92: Total Basic Cost (G = F /9.28) | G92: = | H92: =H90/9.28 -> 3,660.47 | I92: Rs./M²
A94: H | B94: Total Basic Cost (I = G /10.76) | G94: = | H94: =H92/10.76 -> 340.19 | I94: Rs./Sft
A96: I | B96: Overheads (In-direct Cost) 25 % | G96: = | H96: =H94*0.25 -> 85.05 | I96: =I94 -> Rs./Sft
A98: J | B98: Grand Total Cost (H = H+I) | G98: = | H98: =H94+H96 -> 425.24 | I98: =I96 -> Rs./Sft
A99: =A50 -> Project Name…..
A100: =A51 -> CIVIL INFRASTRUCTURE WORKS
A102: RATE ANALYSIS
B104: Building Name:- Marquee
B105: Floor Granite Light Size (48" x 4" )
B107: Measuring Unit | H107: Sq.M
B109: Item Desc. | C109: Floor Granite perpolish Light colur size 48'' x 4' for desiging border
B112: DETAIL OF COST FOR 100 SQFT. OR 9.28 SQM.
A113: A | B113: Materials: | J113: Add Mortor
A114: 1. | B114: Granite | D114: = | E114: 9.28 Sq.m @ 6,456.00 Rs./m² | G114: = | H114: =9.29*6456 -> 59,976.24 | I114: Rs. / 9.28 M²
A115: 2. | B115: Cement for mortar | D115: = | E115: 6.125 Bag @ 535.00 Rs./ Bag | G115: = | H115: =6.125*535 -> 3,276.88 | I115: Rs. / 9.28 M²
A116: 3. | B116: Local Sand | D116: = | E116: 15.13 Cft @ 25.00 Rs./ Cft | G116: = | H116: =15.13*25 -> 378.25 | I116: Rs. / 9.28 M²
A117: 6. | B117: Grout Joint Filling Material | D117: = | E117: 9.28 x 0.077 Kg @ 150.00 Rs./ Kg | G117: = | H117: 0 | I117: Rs. / 9.28 M²
A118: 7. | B118: Wastage | D118: = | E118: 5% | G118: = | H118: =SUM(H114:H117)*E118 -> 3,181.57 | I118: Rs. / 9.28 M²
B119: Carridge from Market to Site | D119: = | E119: 9.28 Sq.m @ 6.73 Rs./m² | G119: = | H119: =9.28*6.73 -> 62.45 | I119: Rs. / 9.28 M²
F121: Sub Total Cost A: | G121: = | H121: =SUM(H114:H119) -> 66,875.39 | I121: Rs. / 9.28 M² | J121: =H121/9.28 -> 7,206.40
A123: B | B123: Equipments:
A124: 1. | D124: = | E124: Lumsum | G124: = | H124: 0 | I124: Rs. / 9.28 M²
A125: 2. | G125: = | H125: 0 | I125: Rs. / 9.28 M²
A126: 3. | G126: = | H126: 0 | I126: Rs. / 9.28 M²
A127: 4. | G127: = | H127: 0 | I127: Rs. / 9.28 M²
F129: Sub Total Cost B: | G129: = | H129: =SUM(H124:H124) -> 0 | I129: Rs. / 9.28 M²
A131: C | B131: Manpower :
A132: 1. | B132: Fixing Charges as sub-contractor | D132: = | E132: 9.28 M² @ 45.00 x 10.76 = 484.20 Rs./ M²) | G132: = | H132: =9.28*(45*10.76) -> 4,493.38 | I132: Rs. / 9.28 M² | J132: =H132/9.28 -> 484.20
F134: Sub Total Cost C: | G134: = | H134: =SUM(H132:H132) -> 4,493.38 | I134: Rs. / 9.28 M²
A136: D | B136: Total Cost (A+B+C) | G136: = | H136: =H121+H129+H134 -> 71,368.76 | I136: Rs. / 9.28 M²
A138: E | B138: Add 0.5. % Water Charges | G138: = | H138: =H136*0.5% -> 356.84 | I138: =I114 -> Rs. / 9.28 M²
A140: F | B140: Total Cost (D+E) | G140: = | H140: =H136+H138 -> 71,725.61 | I140: =I121 -> Rs. / 9.28 M²
A142: G | B142: Total Basic Cost (G = F /9.28) | G142: = | H142: =H140/9.28 -> 7,729.05 | I142: Rs./M²
A144: H | B144: Total Basic Cost (I = G /10.76) | G144: = | H144: =H142/10.76 -> 718.31 | I144: Rs./Sft | J144: =H144*10.76 -> 7,729.05
A146: I | B146: Overheads (In-direct Cost) 25 % | G146: = | H146: =H144*0.25 -> 179.58 | I146: =I144 -> Rs./Sft
A148: J | B148: Grand Total Cost (H = H+I) | G148: = | H148: =H144+H146 -> 897.89 | I148: =I146 -> Rs./Sft
A149: =A99 -> Project Name…..
A150: =A100 -> CIVIL INFRASTRUCTURE WORKS
A152: RATE ANALYSIS
B154: Building Name:- Marquee
B155: Floor Granite Size (48" x 24" )
B157: Measuring Unit | H157: Sq.M
B159: Item Desc. | C159: Floor Granite prepolish colour Dark size 48'' x 24''
B162: DETAIL OF COST FOR 100 SQFT. OR 9.28 SQM.
A163: A | B163: Materials:
A164: 1. | B164: Granite Dark | D164: = | E164: 9.28 Sq.m @ 10,652.00 Rs./m² | G164: = | H164: =9.29*10652 -> 98,957.08 | I164: Rs. / 9.28 M²
A165: 2. | B165: Cement for mortar | D165: = | E165: 6.125 Bag @ 535.00 Rs./ Bag | G165: = | H165: =6.125*535 -> 3,276.88 | I165: Rs. / 9.28 M²
A166: 3. | B166: Local Sand | D166: = | E166: 15.13 Cft @ 25.00 Rs./ Cft | G166: = | H166: =15.13*25 -> 378.25 | I166: Rs. / 9.28 M²
A167: 6. | B167: Grout Joint Filling Material | D167: = | E167: 9.28 x 0.077 Kg @ 150.00 Rs./ Kg | G167: = | H167: 0 | I167: Rs. / 9.28 M²
A168: 7. | B168: Wastage | D168: = | E168: 5% | G168: = | H168: =SUM(H164:H167)*E168 -> 5,130.61 | I168: Rs. / 9.28 M²
B169: Carridge from Market to Site | D169: = | E169: 9.28 Sq.m @ 6.73 Rs./m² | G169: = | H169: =9.28*6.73 -> 62.45 | I169: Rs. / 9.28 M²
F171: Sub Total Cost A: | G171: = | H171: =SUM(H164:H169) -> 107,805.27 | I171: Rs. / 9.28 M² | J171: =H171/9.28 -> 11,616.95
A173: B | B173: Equipments:
A174: 1. | D174: = | E174: Lumsum | G174: = | H174: 0 | I174: Rs. / 9.28 M²
A175: 2. | G175: = | H175: 0 | I175: Rs. / 9.28 M²
A176: 3. | G176: = | H176: 0 | I176: Rs. / 9.28 M²
A177: 4. | G177: = | H177: 0 | I177: Rs. / 9.28 M²
F179: Sub Total Cost B: | G179: = | H179: =SUM(H174:H174) -> 0 | I179: Rs. / 9.28 M²
A181: C | B181: Manpower :
A182: 1. | B182: Fixing Charges as sub-contractor | D182: = | E182: 9.28 M² @ 45.00 x 10.76 = 484.20 Rs./ M²) | G182: = | H182: =9.28*(45*10.76) -> 4,493.38 | I182: Rs. / 9.28 M²
F184: Sub Total Cost C: | G184: = | H184: =SUM(H182:H182) -> 4,493.38 | I184: Rs. / 9.28 M²
A186: D | B186: Total Cost (A+B+C) | G186: = | H186: =H171+H179+H184 -> 112,298.65 | I186: Rs. / 9.28 M²
A188: E | B188: Add 0.5. % Water Charges | G188: = | H188: =H186*0.5% -> 561.49 | I188: =I164 -> Rs. / 9.28 M²
A190: F | B190: Total Cost (D+E) | G190: = | H190: =H186+H188 -> 112,860.14 | I190: =I171 -> Rs. / 9.28 M²
A192: G | B192: Total Basic Cost (G = F /9.28) | G192: = | H192: =H190/9.28 -> 12,161.65 | I192: Rs./M²
A194: H | B194: Total Basic Cost (I = G /10.76) | G194: = | H194: =H192/10.76 -> 1,130.27 | I194: Rs./Sft | J194: =H194*10.76 -> 12,161.65
A196: I | B196: Overheads (In-direct Cost) 25 % | G196: = | H196: =H194*0.25 -> 282.57 | I196: =I194 -> Rs./Sft
A198: J | B198: Grand Total Cost (H = H+I) | G198: = | H198: =H194+H196 -> 1,412.83 | I198: =I196 -> Rs./Sft
A199: =A149 -> Project Name…..
A200: =A150 -> CIVIL INFRASTRUCTURE WORKS
A202: RATE ANALYSIS
B204: Building Name:- Marquee
B205: Granite Stair Steps
B207: Measuring Unit | H207: Sq.M
B209: Item Desc. | C209: Granite prepolish colour Dark For Stair Steps
B211: DETAIL OF COST FOR 100 SQFT. OR 9.28 SQM.
A212: A | B212: Materials:
A213: 1. | B213: Granite Dark | D213: = | E213: 9.28 Sq.m @ 10,652.00 Rs./m² | G213: = | H213: =9.29*10652 -> 98,957.08 | I213: Rs. / 9.28 M²
A214: 2. | B214: Cement for mortar | D214: = | E214: 6.125 Bag @ 535.00 Rs./ Bag | G214: = | H214: =6.125*535 -> 3,276.88 | I214: Rs. / 9.28 M²
A215: 3. | B215: Local Sand | D215: = | E215: 15.13 Cft @ 25.00 Rs./ Cft | G215: = | H215: =15.13*25 -> 378.25 | I215: Rs. / 9.28 M²
A216: 6. | B216: Grout Joint Filling Material | D216: = | E216: 9.28 x 0.077 Kg @ 150.00 Rs./ Kg | G216: = | H216: 0 | I216: Rs. / 9.28 M²
A217: 7. | B217: Wastage | D217: = | E217: 5% | G217: = | H217: =SUM(H213:H216)*E217 -> 5,130.61 | I217: Rs. / 9.28 M²
B218: Carridge from Market to Site | D218: = | E218: 9.28 Sq.m @ 6.73 Rs./m² | G218: = | H218: =9.28*6.73 -> 62.45 | I218: Rs. / 9.28 M²
F220: Sub Total Cost A: | G220: = | H220: =SUM(H213:H218) -> 107,805.27 | I220: Rs. / 9.28 M² | J220: =H220/9.28 -> 11,616.95
A222: B | B222: Equipments:
A223: 1. | D223: = | E223: Lumsum | G223: = | H223: 0 | I223: Rs. / 9.28 M²
A224: 2. | G224: = | H224: 0 | I224: Rs. / 9.28 M²
A225: 3. | G225: = | H225: 0 | I225: Rs. / 9.28 M²
A226: 4. | G226: = | H226: 0 | I226: Rs. / 9.28 M²
F228: Sub Total Cost B: | G228: = | H228: =SUM(H223:H223) -> 0 | I228: Rs. / 9.28 M²
A230: C | B230: Manpower :
A231: 1. | B231: Fixing Charges as sub-contractor | D231: = | E231: 9.28 M² @ 53.74 x 10.76 = 578.46 Rs./ M²) | G231: = | H231: =9.28*(53.76*10.76) -> 5,368.09 | I231: Rs. / 9.28 M² | J231: =H231/9.28 -> 578.46
A232: 1. | B232: Labour Chargess | D232: = | E232: 59.56 Rft @ 30.00 Rs/ Sft | G232: = | H232: =59.56*30 -> 1,786.80 | I232: Rs. / 9.28 M² | J232: =H232/9.28 -> 192.54 | K232: =J232/10.76 -> 17.89 | L232: =K232*114 -> 2,039.95 | M232: =(L232/114)*100 -> 1789.434047
J233: =68*30 -> 2,040.00 | K233: =(J233/114)*100 -> 1789.473684
F234: Sub Total Cost C: | G234: = | H234: =SUM(H231:H232) -> 7,154.89 | I234: Rs. / 9.28 M²
A236: D | B236: Total Cost (A+B+C) | G236: = | H236: =H220+H228+H234 -> 114,960.16 | I236: Rs. / 9.28 M²
A238: E | B238: Add 0.5. % Water Charges | G238: = | H238: =H236*0.5% -> 574.80 | I238: =I213 -> Rs. / 9.28 M²
A240: F | B240: Total Cost (D+E) | G240: = | H240: =H236+H238 -> 115,534.96 | I240: =I220 -> Rs. / 9.28 M²
A242: G | B242: Total Basic Cost (G = F /9.28) | G242: = | H242: =H240/9.28 -> 12,449.89 | I242: Rs./M²
A244: H | B244: Total Basic Cost (I = G /10.76) | G244: = | H244: =H242/10.76 -> 1,157.05 | I244: Rs./Sft | J244: =H244*10.76 -> 12,449.89
A246: I | B246: Overheads (In-direct Cost) 25 % | G246: = | H246: =H244*0.25 -> 289.26 | I246: =I244 -> Rs./Sft
A248: J | B248: Grand Total Cost (H = H+I) | G248: = | H248: =H244+H246 -> 1,446.32 | I248: =I246 -> Rs./Sft
A249: =A99 -> Project Name…..
A250: =A100 -> CIVIL INFRASTRUCTURE WORKS
A252: RATE ANALYSIS
B254: Building Name:- Marquee
B255: Floor Tile Size (24" x 24" ) Make Imported (Malaysia)
B257: Measuring Unit | H257: Sq.M
B259: Item Desc. | C259: Floor Tile Colour light size 24'' x 24'' Make ''Imported(Malaysia)''
B262: DETAIL OF COST FOR 100 SQFT. OR 9.28 SQM.
A263: A | B263: Materials:
A264: 1. | B264: Tile Clour | D264: = | E264: 9.28 Sq.m @ 1650.00 Rs./m² | G264: = | H264: =9.29*1650 -> 15,328.50 | I264: Rs. / 9.28 M²
A265: 2. | B265: Tile Bond | D265: = | E265: 9.28 x 6.666 Kg @ 13.75 Rs./ Kg | G265: = | H265: =9.28*6.666*13.7 -> 847.49 | I265: Rs. / 9.28 M²
A266: 3. | B266: Grout Joint Filling Material | D266: = | E266: 9.28 x 0.077 Kg @ 150.00 Rs./ Kg | G266: = | H266: =9.28*0.077*150 -> 107.18 | I266: Rs. / 9.28 M²
A267: 4. | B267: Wastage | D267: = | E267: 5% | G267: = | H267: =SUM(H264:H266)*E267 -> 814.16 | I267: Rs. / 9.28 M²
A268: 5. | B268: Carridge from Market to Site | D268: = | E268: 9.28 Sq.m @ 6.73 Rs./m² | G268: = | H268: =9.28*6.73 -> 62.45 | I268: Rs. / 9.28 M²
F270: Sub Total Cost A: | G270: = | H270: =SUM(H264:H268) -> 17,159.79 | I270: Rs. / 9.28 M² | J270: =H270/9.28 -> 1,849.11
A272: B | B272: Equipments:
A273: 1. | D273: = | E273: Lumsum | G273: = | H273: 0 | I273: Rs. / 9.28 M²
A274: 2. | G274: = | H274: 0 | I274: Rs. / 9.28 M²
A275: 3. | G275: = | H275: 0 | I275: Rs. / 9.28 M²
A276: 4. | G276: = | H276: 0 | I276: Rs. / 9.28 M²
F278: Sub Total Cost B: | G278: = | H278: =SUM(H273:H273) -> 0 | I278: Rs. / 9.28 M²
A280: C | B280: Manpower :
A281: 1. | B281: Fixing Charges as sub-contractor | D281: = | E281: 9.28 M² @ 25.00 x 10.76 = 269.00 Rs./ M²) | G281: = | H281: =9.28*(25*10.76) -> 2,496.32 | I281: Rs. / 9.28 M²
F283: Sub Total Cost C: | G283: = | H283: =SUM(H281:H281) -> 2,496.32 | I283: Rs. / 9.28 M²
A285: D | B285: Total Cost (A+B+C) | G285: = | H285: =H270+H278+H283 -> 19,656.11 | I285: Rs. / 9.28 M²
A287: E | B287: Add 0.5. % Water Charges | G287: = | H287: =H285*0.5% -> 98.28 | I287: =I264 -> Rs. / 9.28 M²
A289: F | B289: Total Cost (D+E) | G289: = | H289: =H285+H287 -> 19,754.39 | I289: =I270 -> Rs. / 9.28 M²
A291: G | B291: Total Basic Cost (G = F /9.28) | G291: = | H291: =H289/9.28 -> 2,128.71 | I291: Rs./M²
A293: H | B293: Total Basic Cost (I = G /10.76) | G293: = | H293: =H291/10.76 -> 197.84 | I293: Rs./Sft
A295: I | B295: Overheads (In-direct Cost) 25 % | G295: = | H295: =H293*0.25 -> 49.46 | I295: =I293 -> Rs./Sft
A297: J | B297: Grand Total Cost (H = H+I) | G297: = | H297: =H293+H295 -> 247.29 | I297: =I295 -> Rs./Sft
A298: =A249 -> Project Name…..
A299: =A250 -> CIVIL INFRASTRUCTURE WORKS
A301: RATE ANALYSIS
B303: Building Name:- Marquee
B304: Bathroom Floor & Wall Tile Size (26" x 9" ) Make Master
B306: Measuring Unit | H306: Sq.M
B308: Item Desc. | C308: Floor & Wall Tiles for Bathroom Colour. Dark & light size 26'' x 9'' Make ''Master''
B311: DETAIL OF COST FOR 100 SQFT. OR 9.28 SQM.
A312: A | B312: Materials:
... 115 more rows

Sheet Bitumen Coating
A1: =+' Granite,. Tiles Floor & Walll '!A1 -> Project Name…..
A2: =+' Granite,. Tiles Floor & Walll '!A2 -> CIVIL INFRASTRUCTURE WORKS
A3: RATE ANALYSIS
F5: Unit | G5: 100.00 | H5: Sft
B6: Item Desc. | C6: Bitumen Coating
A9: A | B9: Manpower
B10: Description | D10: No. | E10: Hours | F10: Rate (Rs.) | G10: Amount (Rs.)
B11: Painter | D11: 1 | E11: =0.17*8 -> 1.36 | F11: =800/8 -> 100.00 | G11: =D11*E11*F11 -> 136.00
B12: Belder | D12: 1 | E12: =0.17*8 -> 1.36 | F12: =500/8 -> 62.50 | G12: =D12*E12*F12 -> 85.00
B14: Total Manpower (A) | G14: =SUM(G11:G12) -> 221.00
A15: B | B15: Materials
D16: Unit | E16: Quantity | F16: Rate (Rs.) | G16: Amount
B17: Bitumen emulsion | D17: Ibs | E17: 10.00 | F17: 25.25 | G17: =E17*F17 -> 252.50
B18: Sundries/Labour | D18: Lum | G18: 20.00
B20: Total Materials (B) | G20: =SUM(G17:G18) -> 272.50
B21: Summary | J21: =73/10.76 -> 6.784386617
B23: Basic Cost For 100 Sft | G23: =G14+G20 -> 493.50
B24: Basic Cost Per Sft | G24: =G23/100 -> 4.94 | I24: =G24*10.76 -> 53.10
B25: OverHead & Profit (10 + 15)Percentage | G25: =G24*0.25 -> 1.23
B26: Total Cost Per Sft | G26: =ROUND(SUM(G24:G25),2) -> 6.17 | I26: =+G26*10.76 -> 66.39

Sheet Aprom jali
A1: =+'Bitumen Coating'!A1:H1 -> Project Name…..
A2: =+'Bitumen Coating'!A2:H2 -> CIVIL INFRASTRUCTURE WORKS
A3: =+'Bitumen Coating'!A3:H3 -> RATE ANALYSIS
B4: Apron Jali
B6: Measuring Unit | I6: 1 Sft
B8: Item Desc. | C8: Providing and Fixing of Apron Jali
A10: A | B10: Material Cost : | M10: =3.5*3.25 -> 11.375
B11: Apron Jali (3.50' x 3.25')=450 Rs./No
A12: 1. | B12: Apron Jali Qty= 3.50' x 3.25'=11.375Sft | D12: = | E12: 450/11.375 | H12: = | I12: =(450/11.375)*100 -> 3,956.04 | J12: Rs./100 Sft
A13: 2. | B13: Cement | D13: = | E13: 2.800 Bag @ 550.00 Rs./ No | H13: = | I13: =2.8*550 -> 1,540.00 | J13: Rs./100 Sft | M13: =450/M10 -> 39.56043956
A14: 3. | B14: Sand | D14: = | E14: 14.00 Cft @ 9.00 Rs./Cft | H14: = | I14: =14*9 -> 126.00 | J14: =J13 -> Rs./100 Sft
A15: 4. | B15: Wastage | D15: = | E15: 5% | H15: = | I15: =SUM(I12:I14)*E15 -> 281.10 | J15: =J14 -> Rs./100 Sft
G17: Sub Total Cost A: | H17: = | I17: =SUM(I12:I15) -> 5,903.15 | J17: =J15 -> Rs./100 Sft
A19: B | B19: Manpower
A20: 1 | B20: Mason | D20: = | E20: 1 No @ 580.00 Rs./ Day | H20: = | I20: =1*580 -> 580.00 | J20: =J15 -> Rs./100 Sft
A21: 2 | B21: Labour | D21: = | E21: 2 No @ 280.00 Rs./ Day | H21: = | I21: =2*300 -> 600.00 | J21: =J20 -> Rs./100 Sft
A22: 3 | B22: Foreman/Supervisor | D22: = | E22: 1 No @ 500.00 Rs./ Day | H22: = | I22: =1*500 -> 500.00 | J22: =J21 -> Rs./100 Sft
G24: Sub Total Cost B: | H24: = | I24: =SUM(I20:I23) -> 1,680.00 | J24: =J22 -> Rs./100 Sft | M24: =I24/10.76 -> 156.13
A26: C | B26: Total Cost (A+B) | I26: =I17+I24 -> 7,583.15 | J26: =J24 -> Rs./100 Sft
A29: D | B29: Add 1.5 % Water Charges | H29: = | I29: =I26*2% -> 151.66 | J29: =J26 -> Rs./100 Sft
A31: E | B31: Total Cost (C+D) | H31: = | I31: =SUM(I26:I30) -> 7,734.81 | J31: =J26 -> Rs./100 Sft
A33: F | B33: Overheads (In-direct Cost) 25 % | H33: = | I33: 0 | J33: =J29 -> Rs./100 Sft
A35: G | B35: Providing and Fixing of Apron Jali | I35: =I31+I33 -> 7,734.81 | J35: =J33 -> Rs./100 Sft
B36: Rate per Sft | I36: =I35/100 -> 77.35 | J36: Rs./Sft

Sheet R.C.C PIPE
A1: ='Excavation and Back Filling'!A1 -> Project Name…..
A2: ='Excavation and Back Filling'!A2 -> CIVIL INFRASTRUCTURE WORKS
A4: RATE ANALYSIS
B5: R.C.C Pipe
B6: Item # 3 | C6: 6" (150mm) dia | F6: Unit | G6: 20.00 | H6: M
B7: Item Desc. | C7: Providing and Laying approved R.C.C Pipe manufactured using SRC conforming to ASTM C-76 Class II wall "B" (or relevent BS Code) in trenches upto required depth in proper alignment and gradient, including Jointing, fixing ,testing, cost of rubber rings joints etc as per drawing and in accordance with the specification. Complete in all respect as direction by the Engineer.
C8: 6" (150mm) dia
A10: A | B10: Manpower
B11: Description | D11: No. | E11: Hours | F11: Rate (Rs.) | G11: Amount (Rs.)
B12: Supervisor | D12: 1 | E12: 10.00 | F12: 169.95 | G12: =D12*E12*F12 -> 1,699.50 | J12: 4.5 | K12: =J12*0.25 -> 1.125 | L12: =J12+K12 -> 5.625
B13: Assistant Surveyor | D13: 1 | E13: 2.00 | F13: 106.83 | G13: =D13*E13*F13 -> 213.66
B14: Mason | D14: 1 | E14: 8.00 | F14: 118.75 | G14: =D14*E14*F14 -> 950.00
B15: Helper | D15: 2 | E15: 2.00 | F15: 62.50 | G15: =D15*E15*F15 -> 250.00
B16: Labour | D16: 12 | E16: 10.00 | F16: 62.50 | G16: =D16*E16*F16 -> 7,500.00
B18: Total Manpower (A) | G18: =SUM(G12:G16) -> 10,613.16
A19: B | B19: Materials
D20: Unit | E20: Quantity | F20: Rate (Rs.) | G20: Amount
B21: R.C.C Pipe ASTM C-76 Class II wall "B" | D21: M | E21: 20.00 | F21: =875/2.438 -> 358.90 | G21: =E21*F21 -> 7,178.01 | I21: 8 | J21: =I21/3.281 -> 2.438281012
B22: Cement | D22: Bag | E22: 1.80 | F22: 535.00 | G22: =E22*F22 -> 963.00
B23: Add. Wastage | D23: 5.00% | G23: =SUM(G21:G22)*D23 -> 407.05
B24: Water | D24: 1000LIT | E24: 5.00 | F24: 120.00 | G24: =E24*F24 -> 600.00
B25: Hydro testing | D25: M | E25: 20.00 | F25: 20.00 | G25: =E25*F25 -> 400.00
B26: Rubber Ring | D26: No. | E26: 9.00 | F26: 20.00 | G26: =E26*F26 -> 180.00
B28: Total Materials (B) | G28: =SUM(G21:G26) -> 9,728.07
A29: C | B29: Equipment /Machinery
D30: No. | E30: Hours | F30: Rate (Rs.) | G30: Amount (Rs.)
B31: Crane.20 T | D31: 1 | E31: 4.00 | F31: 2,167.32 | G31: =D31*E31*F31 -> 8,669.28
B32: Tractor Trolley | D32: 1 | E32: 1.00 | F32: 144.23 | G32: =D32*E32*F32 -> 144.23
B34: Total Equipment / Machinery ( C ) | G34: =SUM(G31:G32) -> 8,813.51
B35: Summary
B37: Basic Cost For 20.00 M | G37: =G18+G28+G34 -> 29,154.74
B38: Basic Cost Per M | G38: =ROUND(G37/20,2) -> 1,457.74 | I38: =G38/3.281 -> 444.30
B39: Basic Cost Per Rft | G39: =ROUND(G38/3.281,2) -> 444.30
B40: OverHead & Profit (10 + 15)Percentage | G40: =G39*0.25 -> 111.08
B41: Total Cost Per RFT | G41: =ROUND(SUM(G39:G40),2) -> 555.38
A42: =A1 -> Project Name…..
A43: =A2 -> CIVIL INFRASTRUCTURE WORKS
A45: RATE ANALYSIS
B46: R.C.C Pipe
B47: Item # 3 | C47: 9" (225mm) dia | F47: Unit | G47: 20.00 | H47: M
B48: Item Desc. | C48: Providing and Laying approved R.C.C Pipe manufactured using SRC conforming to ASTM C-76 Class II wall "B" (or relevent BS Code) in trenches upto required depth in proper alignment and gradient, including Jointing, fixing ,testing, cost of rubber rings joints etc as per drawing and in accordance with the specification. Complete in all respect as direction by the Engineer.
C49: 9" (225mm) dia
A51: A | B51: Manpower
B52: Description | D52: No. | E52: Hours | F52: Rate (Rs.) | G52: Amount (Rs.)
B53: Supervisor | D53: 1 | E53: 10.00 | F53: 169.95 | G53: =D53*E53*F53 -> 1,699.50
B54: Assistant Surveyor | D54: 1 | E54: 2.00 | F54: 106.83 | G54: =D54*E54*F54 -> 213.66
B55: Mason | D55: 1 | E55: 8.00 | F55: 118.75 | G55: =D55*E55*F55 -> 950.00
B56: Helper | D56: 2 | E56: 2.00 | F56: 62.50 | G56: =D56*E56*F56 -> 250.00
B57: Labour | D57: 12 | E57: 10.00 | F57: 62.50 | G57: =D57*E57*F57 -> 7,500.00
B59: Total Manpower (A) | G59: =SUM(G53:G57) -> 10,613.16
A60: B | B60: Materials
D61: Unit | E61: Quantity | F61: Rate (Rs.) | G61: Amount
B62: R.C.C Pipe ASTM C-76 Class II wall "B" | D62: M | E62: 20.00 | F62: =1300/2.438 -> 533.22 | G62: =E62*F62 -> 10,664.48
B63: Cement | D63: Bag | E63: 2.00 | F63: 535.00 | G63: =E63*F63 -> 1,070.00
B64: Add. Wastage | D64: 5.00% | G64: =SUM(G62:G63)*D64 -> 586.72
B65: Water | D65: 1000LIT | E65: 5.00 | F65: 120.00 | G65: =E65*F65 -> 600.00
B66: Rubber Ring | D66: No. | E66: 9.00 | F66: 20.00 | G66: =E66*F66 -> 180.00
B67: Hydro testing | D67: M | E67: 20.00 | F67: 20.00 | G67: =E67*F67 -> 400.00
B69: Total Materials (B) | G69: =SUM(G62:G67) -> 13,501.20
A70: C | B70: Equipment /Machinery
D71: No. | E71: Hours | F71: Rate (Rs.) | G71: Amount (Rs.)
B72: Crane.20 T | D72: 1 | E72: 4.00 | F72: 2,167.32 | G72: =D72*E72*F72 -> 8,669.28
B73: Tractor Trolley | D73: 1 | E73: 1.00 | F73: 144.23 | G73: =D73*E73*F73 -> 144.23
B75: Total Equipment / Machinery ( C ) | G75: =SUM(G72:G73) -> 8,813.51
B76: Summary
B78: Basic Cost For 20.00 M | G78: =G59+G69+G75 -> 32,927.87
B79: Basic Cost Per M | G79: =ROUND(G78/20,2) -> 1,646.39 | I79: =G79/3.281 -> 501.80
B80: Basic Cost Per Rft | G80: =ROUND(G79/3.281,2) -> 501.80
B81: OverHead & Profit (10 + 15)Percentage | G81: =G80*0.25 -> 125.45
B82: Total Cost Per RFT | G82: =ROUND(SUM(G80:G81),2) -> 627.25
A83: =A42 -> Project Name…..
A84: =A43 -> CIVIL INFRASTRUCTURE WORKS
A86: RATE ANALYSIS
B87: R.C.C Pipe
B88: Item # 3 | C88: 12" (300mm) dia | F88: Unit | G88: 20.00 | H88: M
B89: Item Desc. | C89: Providing and Laying approved R.C.C Pipe manufactured using SRC conforming to ASTM C-76 Class II wall "B" (or relevent BS Code) in trenches upto required depth in proper alignment and gradient, including Jointing, fixing ,testing, cost of rubber rings joints etc as per drawing and in accordance with the specification. Complete in all respect as direction by the Engineer.
C90: 12" (300mm) dia
A92: A | B92: Manpower
B93: Description | D93: No. | E93: Hours | F93: Rate (Rs.) | G93: Amount (Rs.)
B94: Supervisor | D94: 1 | E94: 10.00 | F94: 169.95 | G94: =D94*E94*F94 -> 1,699.50
B95: Assistant Surveyor | D95: 1 | E95: 2.00 | F95: 106.83 | G95: =D95*E95*F95 -> 213.66
B96: Mason | D96: 1 | E96: 8.00 | F96: 118.75 | G96: =D96*E96*F96 -> 950.00
B97: Helper | D97: 2 | E97: 2.00 | F97: 62.50 | G97: =D97*E97*F97 -> 250.00
B98: Labour | D98: 12 | E98: 10.00 | F98: 62.50 | G98: =D98*E98*F98 -> 7,500.00
B100: Total Manpower (A) | G100: =SUM(G94:G98) -> 10,613.16
A101: B | B101: Materials
D102: Unit | E102: Quantity | F102: Rate (Rs.) | G102: Amount
B103: R.C.C Pipe ASTM C-76 Class II wall "B" | D103: M | E103: 20.00 | F103: =1900/2.438 -> 779.33 | G103: =E103*F103 -> 15,586.55
B104: Cement | D104: Bag | E104: 2.30 | F104: 535.00 | G104: =E104*F104 -> 1,230.50
B105: Add. Wastage | D105: 5.00% | G105: =SUM(G103:G104)*D105 -> 840.85
B106: Water | D106: 1000LIT | E106: 5.50 | F106: 120.00 | G106: =E106*F106 -> 660.00
B107: Hydro testing | D107: M | E107: 20.00 | F107: 20.00 | G107: =E107*F107 -> 400.00
B108: Rubber Ring | D108: No. | E108: 9.00 | F108: 25.00 | G108: =E108*F108 -> 225.00
B110: Total Materials (B) | G110: =SUM(G103:G108) -> 18,942.90
A111: C | B111: Equipment /Machinery
D112: No. | E112: Hours | F112: Rate (Rs.) | G112: Amount (Rs.)
B113: Crane.20 T | D113: 1 | E113: 4.00 | F113: 2,167.32 | G113: =D113*E113*F113 -> 8,669.28
B114: Tractor Trolley | D114: 1 | E114: 1.00 | F114: 144.23 | G114: =D114*E114*F114 -> 144.23
B116: Total Equipment / Machinery ( C ) | G116: =SUM(G113:G114) -> 8,813.51
B117: Summary
B119: Basic Cost For 20.00 M | G119: =G100+G110+G116 -> 38,369.57
B120: Basic Cost Per M | G120: =ROUND(G119/20,2) -> 1,918.48 | I120: =G120/3.281 -> 584.72
B121: Basic Cost Per Rft | G121: =ROUND(G120/3.281,2) -> 584.72
B122: OverHead & Profit (10 + 15)Percentage | G122: =G121*0.25 -> 146.18
B123: Total Cost Per RFT | G123: =ROUND(SUM(G121:G122),2) -> 730.90
A124: =A83 -> Project Name…..
A125: =A84 -> CIVIL INFRASTRUCTURE WORKS
A127: RATE ANALYSIS
B128: R.C.C Pipe
B129: Item # 3 | C129: 15" (375mm) dia | F129: Unit | G129: 20.00 | H129: M
B130: Item Desc. | C130: Providing and Laying approved R.C.C Pipe manufactured using SRC conforming to ASTM C-76 Class II wall "B" (or relevent BS Code) in trenches upto required depth in proper alignment and gradient, including Jointing, fixing ,testing, cost of rubber rings joints etc as per drawing and in accordance with the specification. Complete in all respect as direction by the Engineer.
C131: 15" (375mm) dia
A133: A | B133: Manpower
B134: Description | D134: No. | E134: Hours | F134: Rate (Rs.) | G134: Amount (Rs.)
B135: Supervisor | D135: 1 | E135: 10.00 | F135: 169.95 | G135: =D135*E135*F135 -> 1,699.50
B136: Assistant Surveyor | D136: 1 | E136: 2.00 | F136: 106.83 | G136: =D136*E136*F136 -> 213.66
B137: Mason | D137: 1 | E137: 8.00 | F137: 118.75 | G137: =D137*E137*F137 -> 950.00
B138: Helper | D138: 2 | E138: 2.00 | F138: 62.50 | G138: =D138*E138*F138 -> 250.00
B139: Labour | D139: 12 | E139: 10.00 | F139: 62.50 | G139: =D139*E139*F139 -> 7,500.00
B141: Total Manpower (A) | G141: =SUM(G135:G139) -> 10,613.16
A142: B | B142: Materials
D143: Unit | E143: Quantity | F143: Rate (Rs.) | G143: Amount
B144: R.C.C Pipe ASTM C-76 Class II wall "B" | D144: M | E144: 20.00 | F144: =2650/2.438 -> 1,086.96 | G144: =E144*F144 -> 21,739.13
B145: Cement | D145: Bag | E145: 2.75 | F145: 535.00 | G145: =E145*F145 -> 1,471.25
B146: Add. Wastage | D146: 5.00% | G146: =SUM(G144:G145)*D146 -> 1,160.52
B147: Water | D147: 1000LIT | E147: 6.00 | F147: 120.00 | G147: =E147*F147 -> 720.00
B148: Hydro testing | D148: M | E148: 20.00 | F148: 20.00 | G148: =E148*F148 -> 400.00
B149: Rubber Ring | D149: No. | E149: 9.00 | F149: 33.00 | G149: =E149*F149 -> 297.00
B151: Total Materials (B) | G151: =SUM(G144:G149) -> 25,787.90
A152: C | B152: Equipment /Machinery
D153: No. | E153: Hours | F153: Rate (Rs.) | G153: Amount (Rs.)
B154: Crane.20 T | D154: 1 | E154: 4.00 | F154: 2,167.32 | G154: =D154*E154*F154 -> 8,669.28
B155: Tractor Trolley | D155: 1 | E155: 2.00 | F155: 144.23 | G155: =D155*E155*F155 -> 288.46
B157: Total Equipment / Machinery ( C ) | G157: =SUM(G154:G155) -> 8,957.74
B158: Summary
B160: Basic Cost For 20.00 M | G160: =G141+G151+G157 -> 45,358.80
B161: Basic Cost Per M | G161: =ROUND(G160/20,2) -> 2,267.94 | I161: =G161/3.281 -> 691.23
B162: Basic Cost Per Rft | G162: =ROUND(G161/3.281,2) -> 691.23
B163: OverHead & Profit (10 + 15)Percentage | G163: =G162*0.25 -> 172.81
B164: Total Cost Per RFT | G164: =ROUND(SUM(G162:G163),2) -> 864.04
A165: =A124 -> Project Name…..
A166: =A125 -> CIVIL INFRASTRUCTURE WORKS
A168: RATE ANALYSIS
B169: R.C.C Pipe
B170: Item # 3 | C170: 18" (450mm) dia | F170: Unit | G170: 20.00 | H170: M
B171: Item Desc. | C171: Providing and Laying approved R.C.C Pipe manufactured using SRC conforming to ASTM C-76 Class II wall "B" (or relevent BS Code) in trenches upto required depth in proper alignment and gradient, including Jointing, fixing ,testing, cost of rubber rings joints etc as per drawing and in accordance with the specification. Complete in all respect as direction by the Engineer.
C172: 18" (450mm) dia
A174: A | B174: Manpower
B175: Description | D175: No. | E175: Hours | F175: Rate (Rs.) | G175: Amount (Rs.)
B176: General Forman | D176: 1 | E176: 4.00 | F176: 150.00 | G176: =D176*E176*F176 -> 600.00
B177: Supervisor | D177: 1 | E177: 8.00 | F177: 169.95 | G177: 1,359.60
B178: Assistant Surveyor | D178: 1 | E178: 4.00 | F178: 106.83 | G178: 427.32
B179: Mason | D179: 1 | E179: 8.00 | F179: 118.75 | G179: 950.00
B180: Helper | D180: 2 | E180: 4.00 | F180: 62.50 | G180: 500.00
B181: Labour | D181: 12 | E181: 8.00 | F181: 62.50 | G181: 6,000.00
B183: Total Manpower (A) | G183: =SUM(G176:G181) -> 9,836.92
A184: B | B184: Materials
D185: Unit | E185: Quantity | F185: Rate (Rs.) | G185: Amount
B186: R.C.C Pipe ASTM C-76 Class II wall "B" | D186: M | E186: 20.00 | F186: =3100/2.438 -> 1,271.53 | G186: =E186*F186 -> 25,430.68
B187: Cement | D187: Bag | E187: 3.00 | F187: 535.00 | G187: =E187*F187 -> 1,605.00
B188: Add. Wastage | D188: 5.00% | G188: =SUM(G186:G187)*D188 -> 1,351.78
B189: Water | D189: 1000LIT | E189: 7.00 | F189: 120.00 | G189: =E189*F189 -> 840.00
B190: Hydro testing | D190: M | E190: 20.00 | F190: 20.00 | G190: =E190*F190 -> 400.00
B191: Rubber Ring | D191: No. | E191: 9.00 | F191: 42.00 | G191: =E191*F191 -> 378.00
B193: Total Materials (B) | G193: =SUM(G186:G191) -> 30,005.46
A194: C | B194: Equipment /Machinery
D195: No. | E195: Hours | F195: Rate (Rs.) | G195: Amount (Rs.)
B196: Crane.20 T | D196: 1 | E196: 4.00 | F196: 2,167.32 | G196: =D196*E196*F196 -> 8,669.28
B197: Tractor Trolley | D197: 1 | E197: 2.00 | F197: 144.23 | G197: =D197*E197*F197 -> 288.46
B199: Total Equipment / Machinery ( C ) | G199: =SUM(G196:G197) -> 8,957.74
B200: Summary
B202: Basic Cost For 20.00 M | G202: =G183+G193+G199 -> 48,800.12
B203: Basic Cost Per M | G203: =ROUND(G202/20,2) -> 2,440.01 | I203: =G203/3.281 -> 743.68
B204: Basic Cost Per Rft | G204: =ROUND(G203/3.281,2) -> 743.68
B205: OverHead & Profit (10 + 15)Percentage | G205: =G204*0.25 -> 185.92
B206: Total Cost Per RFT | G206: =ROUND(SUM(G204:G205),2) -> 929.60
A207: =A165 -> Project Name…..
A208: =A166 -> CIVIL INFRASTRUCTURE WORKS
A210: RATE ANALYSIS
B211: R.C.C Pipe
B212: Item # 3 | C212: 21" (525mm) dia | F212: Unit | G212: 20.00 | H212: M
B213: Item Desc. | C213: Providing and Laying approved R.C.C Pipe manufactured using SRC conforming to ASTM C-76 Class II wall "B" (or relevent BS Code) in trenches upto required depth in proper alignment and gradient, including Jointing, fixing ,testing, cost of rubber rings joints etc as per drawing and in accordance with the specification. Complete in all respect as direction by the Engineer.
C214: 21" (525mm) dia
A216: A | B216: Manpower
B217: Description | D217: No. | E217: Hours | F217: Rate (Rs.) | G217: Amount (Rs.)
B218: General Forman | D218: 1 | E218: 4.00 | F218: 150.00 | G218: =D218*E218*F218 -> 600.00
B219: Supervisor | D219: 1 | E219: 8.00 | F219: 169.95 | G219: 1,359.60
B220: Assistant Surveyor | D220: 1 | E220: 4.00 | F220: 106.83 | G220: 427.32
B221: Mason | D221: 1 | E221: 8.00 | F221: 118.75 | G221: 950.00
B222: Helper | D222: 2 | E222: 4.00 | F222: 62.50 | G222: 500.00
B223: Labour | D223: 12 | E223: 8.00 | F223: 62.50 | G223: 6,000.00
B225: Total Manpower (A) | G225: =SUM(G218:G223) -> 9,836.92
A226: B | B226: Materials
D227: Unit | E227: Quantity | F227: Rate (Rs.) | G227: Amount
B228: R.C.C Pipe ASTM C-76 Class II wall "B" | D228: M | E228: 20.00 | F228: =3550/2.438 -> 1,456.11 | G228: =E228*F228 -> 29,122.23
B229: Cement | D229: Bag | E229: 3.50 | F229: 535.00 | G229: =E229*F229 -> 1,872.50
B230: Add. Wastage | D230: 5.00% | G230: =SUM(G228:G229)*D230 -> 1,549.74
B231: Water | D231: 1000LIT | E231: 7.00 | F231: 120.00 | G231: =E231*F231 -> 840.00
B232: Hydro testing | D232: M | E232: 20.00 | F232: 20.00 | G232: =E232*F232 -> 400.00
B233: Rubber Ring | D233: No. | E233: 9.00 | F233: 60.00 | G233: =E233*F233 -> 540.00
... 122 more rows

Sheet Water Supply
A1: =A37 -> Project Name…..
A2: =A38 -> CIVIL INFRASTRUCTURE WORKS
A4: RATE ANALYSIS
B5: Water Supply Pipe
B6: Item # 3 | C6: 3/4" dia (20 mm) | F6: Unit | G6: =100/3.281 -> 30.48 | H6: RM
B7: Item Desc. | C7: Providing and laying approved class uPVC PE Pipe or equivalent in trenches up-to required depth proper aligments and gradient, including all types of fittings (socket, tee, elbow, reducing socket etc.) jointing, fixing, testing, cost of Z jointing with rubber rings etc, as per drawings and in accordance with the specification. Complete in all respect as directed by the Engineer.
C8: a. 3/4" dia (20 mm)
A10: A | B10: Manpower
B11: Description | D11: No. | E11: Hours | F11: Rate (Rs.) | G11: Amount (Rs.)
B12: Plumber | D12: 1 | E12: 5.00 | F12: 125.00 | G12: =D12*E12*F12 -> 625.00
B13: Helper | D13: 2 | E13: 5.00 | F13: 62.50 | G13: =D13*E13*F13 -> 625.00
B15: Total Manpower (A) | G15: =SUM(G12:G13) -> 1,250.00
A16: B | B16: Materials
D17: Unit | E17: Quantity | F17: Rate (Rs.) | G17: Amount
B18: Upvc Pipe Class C | D18: RM | E18: 30.48 | F18: =49 -> 49.00 | G18: =E18*F18 -> 1,493.52
B19: Fittings
B20: (socket , tee, elbow , reducing socket etc ) | D20: 20% | G20: =D20*G18 -> 298.70
B21: Cartage of material | D21: LUMSUM | G21: 100.00
B22: Wastage | D22: 3% | G22: =(G18+G20)*D22 -> 53.77
B24: Total Materials (B) | G24: =SUM(G18:G22) -> 1,945.99
A25: C | B25: Equipment /Machinery
D26: No. | E26: Hours | F26: Rate (Rs.) | G26: Amount (Rs.)
B29: Total Equipment / Machinery ( C ) | G29: =SUM(G27:G27) -> 0
B30: Summary
B32: Basic Cost For 328.10 RM | G32: =G15+G24+G29 -> 3,195.99
B33: Basic Cost Per RM | G33: =G32/30.48 -> 104.86
B34: Basic Cost Per Rft | G34: =G33/3.281 -> 31.96
B35: Overhead & Profit (10 + 15)Percentage | G35: =G34*0.25 -> 7.99
B36: Total Cost PerRft | G36: =ROUND(SUM(G34:G35),2) -> 39.95
A37: ='Prime Coat'!A1 -> Project Name…..
A38: ='Prime Coat'!A2 -> CIVIL INFRASTRUCTURE WORKS
A40: RATE ANALYSIS
B41: Water Supply Pipe
B42: Item # 3 | C42: 2" dia (50 mm) | F42: Unit | G42: =100/3.281 -> 30.48 | H42: RM
B43: Item Desc. | C43: Providing and laying approved class uPVC PE Pipe or equivalent in trenches up-to required depth proper aligments and gradient, including all types of fittings (socket, tee, elbow, reducing socket etc.) jointing, fixing, testing, cost of Z jointing with rubber rings etc, as per drawings and in accordance with the specification. Complete in all respect as directed by the Engineer.
C44: a.2" dia (50 mm)
A46: A | B46: Manpower
B47: Description | D47: No. | E47: Hours | F47: Rate (Rs.) | G47: Amount (Rs.)
B48: Plumber | D48: 1 | E48: 5.00 | F48: 125.00 | G48: =D48*E48*F48 -> 625.00
B49: Helper | D49: 2 | E49: 5.00 | F49: 62.50 | G49: =D49*E49*F49 -> 625.00
B51: Total Manpower (A) | G51: =SUM(G48:G49) -> 1,250.00
A52: B | B52: Materials
D53: Unit | E53: Quantity | F53: Rate (Rs.) | G53: Amount
B54: Upvc Pipe Class C | D54: RM | E54: 30.48 | F54: =299/63*50 -> 237.30 | G54: =E54*F54 -> 7,232.95
B55: Fittings
B56: (socket , tee, elbow , reducing socket etc ) | D56: 20% | G56: =D56*G54 -> 1,446.59
B57: Cartage of material | D57: LUMSUM | G57: 100.00
B58: Wastage | D58: 3% | G58: =(G54+G56)*D58 -> 260.39
B60: Total Materials (B) | G60: =SUM(G54:G58) -> 9,039.93
A61: C | B61: Equipment /Machinery
D62: No. | E62: Hours | F62: Rate (Rs.) | G62: Amount (Rs.)
B65: Total Equipment / Machinery ( C ) | G65: =SUM(G63:G63) -> 0
B66: Summary
B68: Basic Cost For 328.10 RM | G68: =G51+G60+G65 -> 10,289.93
B69: Basic Cost Per RM | G69: =G68/30.48 -> 337.60
B70: Basic Cost Per Rft | G70: =G69/3.281 -> 102.89
B71: Overhead & Profit (10 + 15)Percentage | G71: =G70*0.25 -> 25.72
B72: Total Cost PerRft | G72: =ROUND(SUM(G70:G71),2) -> 128.62
A73: =A37 -> Project Name…..
A74: =A38 -> CIVIL INFRASTRUCTURE WORKS
A76: RATE ANALYSIS
B77: Water Supply Pipe
B78: Item # 3 | C78: 3" dia (75 mm) | F78: Unit | G78: =100/3.281 -> 30.48 | H78: RM
B79: Item Desc. | C79: Providing and laying approved class uPVC PE Pipe or equivalent in trenches up-to required depth proper aligments and gradient, including all types of fittings (socket, tee, elbow, reducing socket etc.) jointing, fixing, testing, cost of Z jointing with rubber rings etc, as per drawings and in accordance with the specification. Complete in all respect as directed by the Engineer.
C80: a.3" dia (75 mm)
A82: A | B82: Manpower
B83: Description | D83: No. | E83: Hours | F83: Rate (Rs.) | G83: Amount (Rs.)
B84: Plumber | D84: 1 | E84: 5.00 | F84: 125.00 | G84: =D84*E84*F84 -> 625.00
B85: Helper | D85: 2 | E85: 5.00 | F85: 62.50 | G85: =D85*E85*F85 -> 625.00
B87: Total Manpower (A) | G87: =SUM(G84:G85) -> 1,250.00
A88: B | B88: Materials
D89: Unit | E89: Quantity | F89: Rate (Rs.) | G89: Amount
B90: Upvc Pipe Class C | D90: RM | E90: 30.48 | F90: =608/90*75 -> 506.67 | G90: =E90*F90 -> 15,443.20
B91: Fittings
B92: (socket , tee, elbow , reducing socket etc ) | D92: 20% | G92: =D92*G90 -> 3,088.64
B93: Cartage of material | D93: LUMSUM | G93: 100.00
B94: Wastage | D94: 3% | G94: =(G90+G92)*D94 -> 555.96
B96: Total Materials (B) | G96: =SUM(G90:G94) -> 19,187.80
A97: C | B97: Equipment /Machinery
D98: No. | E98: Hours | F98: Rate (Rs.) | G98: Amount (Rs.)
B101: Total Equipment / Machinery ( C ) | G101: =SUM(G99:G99) -> 0
B102: Summary
B104: Basic Cost For 328.10 RM | G104: =G87+G96+G101 -> 20,437.80
B105: Basic Cost Per RM | G105: =G104/30.48 -> 670.53
B106: Basic Cost Per Rft | G106: =G105/3.281 -> 204.37
B107: Overhead & Profit (10 + 15)Percentage | G107: =G106*0.25 -> 51.09
B108: Total Cost PerRft | G108: =ROUND(SUM(G106:G107),2) -> 255.46
A109: =A37 -> Project Name…..
A110: =A38 -> CIVIL INFRASTRUCTURE WORKS
A112: RATE ANALYSIS
B113: Water Supply Pipe
B114: Item # 3 | C114: 4" dia (100 mm) | F114: Unit | G114: =100/3.281 -> 30.48 | H114: RM
B115: Item Desc. | C115: Providing and laying approved class uPVC PE Pipe or equivalent in trenches up-to required depth proper aligments and gradient, including all types of fittings (socket, tee, elbow, reducing socket etc.) jointing, fixing, testing, cost of Z jointing with rubber rings etc, as per drawings and in accordance with the specification. Complete in all respect as directed by the Engineer.
C116: a. 4" dia (100 mm)
A118: A | B118: Manpower
B119: Description | D119: No. | E119: Hours | F119: Rate (Rs.) | G119: Amount (Rs.)
B120: Plumber | D120: 1 | E120: 5.00 | F120: 125.00 | G120: =D120*E120*F120 -> 625.00
B121: Helper | D121: 2 | E121: 5.00 | F121: 62.50 | G121: =D121*E121*F121 -> 625.00
B123: Total Manpower (A) | G123: =SUM(G120:G121) -> 1,250.00
A124: B | B124: Materials
D125: Unit | E125: Quantity | F125: Rate (Rs.) | G125: Amount
B126: Upvc Pipe Class C | D126: RM | E126: 30.48 | F126: 904.00 | G126: =E126*F126 -> 27,553.92
B127: Fittings
B128: (socket , tee, elbow , reducing socket etc ) | D128: 20% | G128: =D128*G126 -> 5,510.78
B129: Cartage of material | D129: LUMSUM | G129: 100.00
B130: Wastage | D130: 3% | G130: =(G126+G128)*D130 -> 991.94
B132: Total Materials (B) | G132: =SUM(G126:G130) -> 34,156.65
A133: C | B133: Equipment /Machinery
D134: No. | E134: Hours | F134: Rate (Rs.) | G134: Amount (Rs.)
B137: Total Equipment / Machinery ( C ) | G137: =SUM(G135:G135) -> 0
B138: Summary
B140: Basic Cost For 328.10 RM | G140: =G123+G132+G137 -> 35,406.65
B141: Basic Cost Per RM | G141: =G140/30.48 -> 1,161.64
B142: Basic Cost Per Rft | G142: =G141/3.281 -> 354.05
B143: Overhead & Profit (10 + 15)Percentage | G143: =G142*0.25 -> 88.51
B144: Total Cost PerRft | G144: =ROUND(SUM(G142:G143),2) -> 442.56
A145: =A37 -> Project Name…..
A146: =A38 -> CIVIL INFRASTRUCTURE WORKS
A148: RATE ANALYSIS
B149: Water Supply Pipe
B150: Item # 3 | C150: 6" dia (150 mm) | F150: Unit | G150: =100/3.281 -> 30.48 | H150: RM
B151: Item Desc. | C151: Providing and laying approved class uPVC PE Pipe or equivalent in trenches up-to required depth proper aligments and gradient, including all types of fittings (socket, tee, elbow, reducing socket etc.) jointing, fixing, testing, cost of Z jointing with rubber rings etc, as per drawings and in accordance with the specification. Complete in all respect as directed by the Engineer.
C152: a. 6" dia (150 mm)
A154: A | B154: Manpower
B155: Description | D155: No. | E155: Hours | F155: Rate (Rs.) | G155: Amount (Rs.)
B156: Plumber | D156: 1 | E156: 4.00 | F156: 125.00 | G156: =D156*E156*F156 -> 500.00
B157: Helper | D157: 4 | E157: 4.00 | F157: 62.50 | G157: =D157*E157*F157 -> 1,000.00
B159: Total Manpower (A) | G159: =SUM(G156:G157) -> 1,500.00
A160: B | B160: Materials
D161: Unit | E161: Quantity | F161: Rate (Rs.) | G161: Amount
B162: Upvc Pipe Class C | D162: RM | E162: 30.48 | F162: 1,892.00 | G162: =E162*F162 -> 57,668.16
B163: Fittings
B164: (socket , tee, elbow , reducing socket etc ) | D164: 20% | G164: =D164*G162 -> 11,533.63
B165: Cartage of material | D165: LUMSUM | G165: 100.00
B166: Wastage | D166: 3% | G166: =(G162+G164)*D166 -> 2,076.05
B168: Total Materials (B) | G168: =SUM(G162:G166) -> 71,377.85
A169: C | B169: Equipment /Machinery
D170: No. | E170: Hours | F170: Rate (Rs.) | G170: Amount (Rs.)
B173: Total Equipment / Machinery ( C ) | G173: =SUM(G171:G171) -> 0
B174: Summary
B176: Basic Cost For 328.10 RM | G176: =G159+G168+G173 -> 72,877.85
B177: Basic Cost Per RM | G177: =ROUND(G176/30.48,2) -> 2,391.01
B178: Basic Cost Per Rft | G178: =G177/3.281 -> 728.74
B179: Overhead & Profit (10 + 15)Percentage | G179: =G178*0.25 -> 182.19
B180: Total Cost Per Rft | G180: =ROUND(SUM(G178:G179),2) -> 910.93
A181: =A145 -> Project Name…..
A182: =A146 -> CIVIL INFRASTRUCTURE WORKS
A184: RATE ANALYSIS
B185: Water Supply Pipe
B186: Item # 3 | C186: 8" dia (200 mm) | F186: Unit | G186: =100/3.281 -> 30.48 | H186: RM
B187: Item Desc. | C187: Providing and laying approved class uPVC PE Pipe or equivalent in trenches up-to required depth proper aligments and gradient, including all types of fittings (socket, tee, elbow, reducing socket etc.) jointing, fixing, testing, cost of Z jointing with rubber rings etc, as per drawings and in accordance with the specification. Complete in all respect as directed by the Engineer.
C188: a. 8" dia (200 mm)
A190: A | B190: Manpower
B191: Description | D191: No. | E191: Hours | F191: Rate (Rs.) | G191: Amount (Rs.)
B192: Plumber | D192: 1 | E192: 4.00 | F192: 125.00 | G192: =D192*E192*F192 -> 500.00
B193: Helper | D193: 4 | E193: 4.00 | F193: 62.50 | G193: =D193*E193*F193 -> 1,000.00
B195: Total Manpower (A) | G195: =SUM(G192:G193) -> 1,500.00
A196: B | B196: Materials
D197: Unit | E197: Quantity | F197: Rate (Rs.) | G197: Amount
B198: Upvc Pipe Class C | D198: RM | E198: 30.48 | F198: =1892/160*200 -> 2,365.00 | G198: =E198*F198 -> 72,085.20
B199: Fittings
B200: (socket , tee, elbow , reducing socket etc ) | D200: 20% | G200: =D200*G198 -> 14,417.04
B201: Cartage of material | D201: LUMSUM | G201: 100.00
B202: Wastage | D202: 3% | G202: =(G198+G200)*D202 -> 2,595.07
B204: Total Materials (B) | G204: =SUM(G198:G202) -> 89,197.31
A205: C | B205: Equipment /Machinery
D206: No. | E206: Hours | F206: Rate (Rs.) | G206: Amount (Rs.)
B209: Total Equipment / Machinery ( C ) | G209: =SUM(G207:G207) -> 0
B210: Summary
B212: Basic Cost For 328.10 RM | G212: =G195+G204+G209 -> 90,697.31
B213: Basic Cost Per RM | G213: =ROUND(G212/30.48,2) -> 2,975.63
B214: Basic Cost Per Rft | G214: =G213/3.281 -> 906.93
B215: Overhead & Profit (10 + 15)Percentage | G215: =G214*0.25 -> 226.73
B216: Total Cost Per Rft | G216: =ROUND(SUM(G214:G215),2) -> 1,133.66
A217: =A181 -> Project Name…..
A218: =A182 -> CIVIL INFRASTRUCTURE WORKS
A220: RATE ANALYSIS
B221: Tube well
B222: Item | F222: Unit | G222: 1.00 | H222: No
B223: Item Desc. | C223: Providing all labour Tools, Plants and materials to construct 2 (two) nos. Tube well, work consisting mechanical boring 300 to 400 feet deep (or as required after hydrogeological investifation), having capacity of 1.5 cusescs each. 16" dia boring, PVC encasing Class "D" with strainer, including the Cost of Submersible pump (Grandfos or equivalent) capacity 1.5 cusecs each with all accessories (Valves, piping etc.), construction of Electric and Control Room, including electrical panel, as per drawings and in accordance with the specifications. Complete in all respect as directed by the Engineer. | K223: =3400-900 -> 2500
A226: A | B226: Manpower
B227: Description | D227: No. | E227: Hours | F227: Rate (Rs.) | G227: Amount (Rs.)
B230: Total Manpower (A) | G230: =SUM(G228:G228) -> 0
A231: B | B231: Materials
D232: Unit | E232: Quantity | F232: Rate (Rs.) | G232: Amount
B233: Tube well With out Civil Works | D233: No | E233: =+G222 -> 1.00 | F233: 1,794,360.00 | G233: =E233*F233 -> 1,794,360.00
B234: construction of Tube well Room | D234: No | E234: =+E233 -> 1.00 | F234: 1,300,000.00 | G234: =E234*F234 -> 1,300,000.00
B235: Testing of soil investigation/Bore Log | D235: No | E235: =+E234 -> 1.00 | F235: 100,000.00 | G235: =E235*F235 -> 100,000.00
B237: Total Materials (B) | G237: =SUM(G233:G235) -> 3,194,360.00
A238: C | B238: Equipment /Machinery
D239: No. | E239: Hours | F239: Rate (Rs.) | G239: Amount (Rs.)
B242: Total Equipment / Machinery ( C ) | G242: =SUM(G240:G240) -> 0
B243: Summary
B245: Basic Cost For 2 No. | G245: =G230+G237+G242 -> 3,194,360.00
B246: Basic Cost Per No | G246: =ROUND(G245/2,2) -> 1,597,180.00
B247: Overhead & Profit (10 + 15)Percentage | G247: =G246*0.25 -> 399,295.00
B248: Total Cost Per No. | G248: =ROUND(SUM(G246:G247),2) -> 1,996,475.00
A249: =A217 -> Project Name…..
A250: =A218 -> CIVIL INFRASTRUCTURE WORKS
A252: RATE ANALYSIS
... 18 more rows

Sheet Plumbing Items
A1: =+'Water Supply'!A1 -> Project Name…..
A2: =+'Water Supply'!A2 -> CIVIL INFRASTRUCTURE WORKS
A4: =+'Water Supply'!A4 -> RATE ANALYSIS
B6: INDIAN STYLE WC PORTA MAKE
B8: Measuring Unit | H8: No.
B10: Item Desc. | C10: Providing and fixing squatting type white glazed earthenware Indian Style W.C Pan imported code HD 70 (Porta make) complete with and including the cost of 13.6 liter flushing cistern code HD-3 hang type with wall at low level including plastic with enternal fitting complete, P.V.C flushig pipe suitable, PVC trap 4 inches (100 mm) dia (Dadex) and making requisite number of holes in walls, plinth & floor for pipe connection and making good in cement concrete 1:2:4.
A13: A | B13: Materials:
A14: 1. | B14: Indian Style W.C pan HD 70 (Porta) | D14: = | E14: 1 No. @ 3500 Rs./ No. | G14: = | H14: =1*3500 -> 3,500.00 | I14: Rs./ No.
A15: 2. | B15: Flushing cistern (Porta) with internal fitting | D15: = | E15: 1 No. @ 0.000 Rs./ No. | G15: = | H15: 0 | I15: Rs./ No.
A16: 3. | B16: PVC waste flush pipe in low level cistern | D16: = | E16: 1 No. @ 0.000 Rs./ No. | G16: = | H16: 0 | I16: Rs./ No.
A17: 4. | B17: PVC Trap 4 '' = 100mm dia Dadex | D17: = | E17: 1 No. @ 670.00 Rs./ No. | G17: = | H17: 670.00 | I17: Rs./ No.
A18: 5. | B18: C.C 1:2:4 for making good holes in wall / floor | D18: = | E18: Lumsum | G18: = | H18: 0 | I18: Rs./ No.
A19: 6. | B19: Wastage | D19: = | E19: 5% | G19: = | H19: 0 | I19: Rs./ No.
A20: 7. | B20: Carriage Multan Market to Site | D20: = | E20: Lumsum | G20: = | H20: 0 | I20: Rs./ No.
F22: Sub Total Cost A: | G22: = | H22: =SUM(H14:H20) -> 4,170.00 | I22: Rs./ No.
A23: B | B23: Equipments:
A24: 1. | B24: Tool & Tackles | D24: = | E24: Lumsum | G24: = | H24: 0 | I24: Rs./ No.
F26: Sub Total Cost B: | G26: = | H26: =SUM(H24:H24) -> 0 | I26: Rs./ No.
A27: C | B27: Manpower :
A28: 1. | B28: Labour Charges as per market | D28: = | E28: 1.00 No. @ 2,200.00 Rs./ No. | G28: = | H28: =1*2200 -> 2,200.00 | I28: Rs./ No.
F30: Sub Total Cost C: | G30: = | H30: =SUM(H28:H28) -> 2,200.00 | I30: Rs./ No.
A32: D | B32: Total Cost (A+B+C) | G32: = | H32: =H22+H26+H30 -> 6,370.00 | I32: Rs./ No.
A34: E | B34: Add 0.5% Water Charges | G34: = | H34: 0 | I34: Rs./ No.
A36: F | B36: Total Cost (D+E) | G36: = | H36: =H32+H34 -> 6,370.00 | I36: Rs./ No.
A38: G | B38: Overheads (In-direct Cost) 25 % | G38: = | H38: 0 | I38: Rs./ No.
A40: I | B40: Add 2 % Testing & Commissioning Charges (F+G) x 2% | G40: = | H40: 0 | I40: =I34 -> Rs./ No.
A42: J | B42: Grand Total Cost (G+I) | G42: = | H42: =SUM(H36:H39) -> 6,370.00 | I42: Rs./ No.
A44: K | B44: Contractor Profit 10 % | G44: = | H44: 0 | I44: Rs./ No.
A46: L | B46: Add Income Tax 6% | G46: = | H46: 0 | I46: Rs./ No.
A48: M | B48: Net Cost Providing and fixing squatting type white glazed earthenware Indian Style W.C Pan imported code HD 70 (Porta make) complete with and including the cost of 13.6 liter flushing cistern code HD-3 hang type with wall at low level including plastic with enternal fitting complete, P.V.C flushig pipe suitable, PVC trap 4 inches (100 mm) dia (Dadex) and making requisite number of holes in walls, plinth & floor for pipe connection and making good in cement concrete 1:2:4. . (M =J+K+L) | H48: =H42 -> 6,370.00 | I48: Rs./ No.
A50: =+A1 -> Project Name…..
A51: =+A2 -> CIVIL INFRASTRUCTURE WORKS
A53: RATE ANALYSIS
B55: EUROPEAN W.C PORTA MAKE
B56: Measuring Unit | H56: No.
B58: Item Desc. | C58: Providing and fixing squatting type white glazed earthenware Europen Style W.C Pan imported code HD 102 (Porta make) complete with and including the cost of making requisite number of holes in walls, plinth & floor for pipe connection and making good in cement concrete 1:2:4.
A61: A | B61: Materials:
A62: 1. | B62: European Style W.C pan HD 102 (Porta) | D62: = | E62: 1 No. @ 15675 Rs./ No. | G62: = | H62: =1*15675 -> 15,675.00 | I62: Rs./ No.
A63: 5. | B63: C.C 1:2:4 for making good holes in wall / floor | D63: = | E63: Lumsum | G63: = | H63: 0 | I63: Rs./ No.
A64: 6. | B64: Wastage | D64: = | E64: 5% | G64: = | H64: 0 | I64: Rs./ No.
A65: 7. | B65: Carriage Multan Market to Site | D65: = | E65: Lumsum | G65: = | H65: 0 | I65: Rs./ No.
F67: Sub Total Cost A: | G67: = | H67: =SUM(H62:H65) -> 15,675.00 | I67: Rs./ No.
A68: B | B68: Equipments:
A69: 1. | B69: Tool & Tackles | D69: = | E69: Lumsum | G69: = | H69: 0 | I69: Rs./ No.
F71: Sub Total Cost B: | G71: = | H71: =SUM(H69:H69) -> 0 | I71: Rs./ No.
A72: C | B72: Manpower :
A73: 1. | B73: Labour Charges as per market | D73: = | E73: 1.00 No. @ 2,200.00 Rs./ No. | G73: = | H73: =1*2200 -> 2,200.00 | I73: Rs./ No.
F75: Sub Total Cost C: | G75: = | H75: =SUM(H73:H73) -> 2,200.00 | I75: Rs./ No.
A77: D | B77: Total Cost (A+B+C) | G77: = | H77: =H67+H71+H75 -> 17,875.00 | I77: Rs./ No.
A79: E | B79: Add 0.5% Water Charges | G79: = | H79: 0 | I79: Rs./ No.
A81: F | B81: Total Cost (D+E) | G81: = | H81: =H77+H79 -> 17,875.00 | I81: Rs./ No.
A83: G | B83: Overheads (In-direct Cost) 25 % | G83: = | H83: 0 | I83: Rs./ No.
A85: I | B85: Add 2 % Testing & Commissioning Charges (F+G) x 2% | G85: = | H85: 0 | I85: =I79 -> Rs./ No.
A87: J | B87: Grand Total Cost (G+I) | G87: = | H87: =SUM(H81:H84) -> 17,875.00 | I87: Rs./ No.
A89: K | B89: Contractor Profit 10 % | G89: = | H89: 0 | I89: Rs./ No.
A91: L | B91: Add Income Tax 6% | G91: = | H91: 0 | I91: Rs./ No.
A93: M | B93: Net Cost Providing and fixing squatting type white glazed earthenware European Style W.C Pan imported code HD 102 (Porta make) complete with and including the cost of making requisite number of holes in walls, plinth & floor for pipe connection and making good in cement concrete 1:2:4. (M =J+K+L) | H93: =H87 -> 17,875.00 | I93: Rs./ No.
A95: RATE ANALYSIS
A96: DEVELOPMENT OF ROYAL ORCHARD MULTAN
B99: PPRC PIPE DIA 1 INCH DIA
B100: Measuring Unit | I100: Rft
B101: Item Desc. | C101: Providing and Laying approved class PPR by Minhas in trenches up-to required depth in proper alignment and gradient , including all types of fittings ( socket , tee, elbow , Y single and double , reducing socket etc ) jointing, fixing , testing , cost of jointing solution etc, as per drawings and in accordance with the specification. Complete in all respect as directed by the Engineer. a. 1" dia
B103: Crew Qty for 100 Rft
A104: A | B104: Materials:
A105: 1. | B105: 1'' dia PPR pipe | D105: = | E105: 100 Rft @ 28.00 Rs./ Rft | G105: = | H105: =100*28 -> 2,800.00 | I105: Rs./ 100 Rft
A106: 2. | B106: Fittings
B107: (socket , tee, elbow , Y single and double , reducing socket etc ) | D107: = | E107: 15 % Sr.No.1 | G107: = | H107: =H105*15% -> 420.00 | I107: Rs./ 100 Rft
A108: 3. | B108: Cartage of material | D108: = | E108: Lumsum | G108: = | H108: =H105*0.1% -> 2.80 | I108: Rs./ 100 Rft
A109: 4. | B109: Scaffolding charges | D109: = | E109: Lumsum | G109: = | H109: 0 | I109: Rs./ 100 Rft
A110: 5. | B110: Wastage | D110: = | E110: 5% Sr. No 1 & 2 | G110: = | H110: =(H105+H107)*5% -> 161.00 | I110: Rs./ 100 Rft
A111: 6. | B111: Store Handling | D111: = | E111: 0.5% Sr. No 1 & 2 | G111: = | H111: 0 | I111: Rs./ 100 Rft
F112: Sub Total Cost A: | G112: = | H112: =SUM(H105:H111) -> 3,383.80 | I112: Rs./100 Rft
A114: B | B114: Equipments:
A115: 1. | B115: Tool & Tackles | D115: = | E115: Lumsum | G115: = | H115: 10.00 | I115: Rs./ 100 Rft
F117: Sub Total Cost B: | G117: = | H117: =SUM(H115:H115) -> 10.00 | I117: Rs./100 Rft
A118: C | B118: Manpower:
A119: 1. | B119: Plumber | D119: = | E119: 8.00 Hr @ 98.74 Rs./ Hr | G119: = | H119: =8*98.74 -> 789.92 | I119: Rs./ 100 Rft
A120: 2. | B120: Helper | D120: = | E120: 5 x 8.00 Hr @ 80.77 Rs./ Hr | G120: = | H120: =8*5*80.77 -> 3,230.80 | I120: Rs./ 100 Rft
F122: Sub Total Cost C: | G122: = | H122: =SUM(H119:H120) -> 4,020.72 | I122: Rs./100 Rft
A124: D | B124: Sub-Total Cost (A+B+C) | G124: = | H124: =H112+H117+H122 -> 7,414.52 | I124: Rs./100 Rft
A126: E | B126: Add 0.5% Water Charges | G126: = | H126: 0 | I126: =I124 -> Rs./100 Rft
A128: F | B128: Total Cost (D+E) | G128: = | H128: =SUM(H124:H126) -> 7,414.52 | I128: Rs./100 Rft
A130: G | B130: Overheads (In-direct Cost) 25 % | G130: = | H130: 0 | I130: =I128 -> Rs./100 Rft
A132: H | B132: Grand Total Cost (F+G) | G132: = | H132: =SUM(H128:H130) -> 7,414.52 | I132: Rs./100 Rft
A134: I | B134: Add. Income Tax 7.5% | G134: = | H134: 0 | I134: =I132 -> Rs./100 Rft
A136: J | B136: Net cost for Providing and Laying approved class PPR by Minhas in trenches up-to required depth in proper alignment and gradient , including all types of fittings ( socket , tee, elbow , Y single and double , reducing socket etc ) jointing, fixing , testing , cost of jointing solution etc, as per drawings and in accordance with the specification. Complete in all respect as directed by the Engineer. a. 1" dia (G+H) | H136: =H132 -> 7,414.52 | I136: =I134 -> Rs./100 Rft
H137: =H136/100 -> 74.15 | I137: Rs / Rft
A138: RATE ANALYSIS
A139: DEVELOPMENT OF ROYAL ORCHARD MULTAN
B141: PPR PIPE DIA 3/4'' INCH DIA
B142: Measuring Unit | I142: Rft
B144: Item Desc. | C144: Providing and Laying approved class PPR by Minhas or equivalent in trenches up-to required depth in proper alignment and gradient , including all types of fittings ( socket , tee, elbow , Y single and double , reducing socket etc ) jointing, fixing , testing , cost of jointing solution etc, as per drawings and in accordance with the specification. Complete in all respect as directed by the Engineer. a. 32mm dia
B146: Crew Qty for 100 Rft
A148: A | B148: Materials:
A149: 1. | B149: 32 mm dia PPR pipe | D149: = | E149: 100 Rft @ 48 Rs./ Rft | G149: = | H149: =100*48 -> 4,800.00 | I149: Rs./ 100 Rft
A150: 2. | B150: Fittings
B151: (socket , tee, elbow , Y single and double , reducing socket etc ) | D151: = | E151: 15 % Sr.No.1 | G151: = | H151: =H149*15% -> 720.00 | I151: Rs./ 100 Rft
A152: 3. | B152: Cartage of material | D152: = | E152: Lumsum | G152: = | H152: =H149*0.151% -> 7.25 | I152: Rs./ 100 Rft
A153: 4. | B153: Scaffolding charges | D153: = | E153: Lumsum | G153: = | H153: 0 | I153: Rs./ 100 Rft
A154: 5. | B154: Wastage | D154: = | E154: 5% Sr. No 1 & 2 | G154: = | H154: =(H149+H151)*5% -> 276.00 | I154: Rs./ 100 Rft
A155: 6. | B155: Store Handling | D155: = | E155: 0.5% Sr. No 1 & 2 | G155: = | H155: 0 | I155: Rs./ 100 Rft
F156: Sub Total Cost A: | G156: = | H156: =SUM(H149:H155) -> 5,803.25 | I156: Rs./100 Rft
A158: B | B158: Equipments:
A159: 1. | B159: Tool & Tackles | D159: = | E159: Lumsum | G159: = | H159: 25.00 | I159: Rs./ 100 Rft
F161: Sub Total Cost B: | G161: = | H161: =SUM(H159:H159) -> 25.00 | I161: Rs./100 Rft
A163: C | B163: Manpower:
A164: 1. | B164: Plumber | D164: = | E164: 2 x 7.00 Hr @ 98.74 Rs./ Hr | G164: = | H164: =2*7*98.74 -> 1,382.36 | I164: Rs./ 100 Rft
A165: 2. | B165: Helper | D165: = | E165: 6 x 8.00 Hr @ 80.77 Rs./ Hr | G165: = | H165: =6*8*80.77 -> 3,876.96 | I165: Rs./ 100 Rft
F167: Sub Total Cost C: | G167: = | H167: =SUM(H164:H165) -> 5,259.32 | I167: Rs./100 Rft
A169: D | B169: Sub-Total Cost (A+B+C) | G169: = | H169: =H156+H161+H167 -> 11,087.57 | I169: Rs./100 Rft
A171: E | B171: Add 0.5% Water Charges | G171: = | H171: 0 | I171: =I169 -> Rs./100 Rft
A173: F | B173: Total Cost (D+E) | G173: = | H173: =SUM(H169:H171) -> 11,087.57 | I173: Rs./100 Rft
A175: G | B175: Overheads (In-direct Cost) 25 % | G175: = | H175: 0 | I175: =I173 -> Rs./100 Rft
A177: H | B177: Grand Total Cost (F+G) | G177: = | H177: =SUM(H173:H175) -> 11,087.57 | I177: Rs./100 Rft
A179: I | B179: Add. Income Tax 7.5% | G179: = | H179: 0 | I179: =I177 -> Rs./100 Rft
A181: J | B181: Net cost for Providing and Laying approved class PPR by Dadex or equivalent in trenches up-to required depth in proper alignment and gradient , including all types of fittings ( socket , tee, elbow , Y single and double , reducing socket etc ) jointing, fixing , testing , cost of jointing solution etc, as per drawings and in accordance with the specification. Complete in all respect as directed by the Engineer. a. 32 mm dia (G+H) | H181: =H177 -> 11,087.57 | I181: =I179 -> Rs./100 Rft
H182: =H181/100 -> 110.88 | I182: Rs / Rft
A183: RATE ANALYSIS
A184: DEVELOPMENT OF ROYAL ORCHARD MULTAN
B186: PPR PIPE DIA 50 mm DIA
B187: Measuring Unit | I187: Rft
B189: Item Desc. | C189: Providing and Laying approved class PPR by Minhas or equivalent in trenches up-to required depth in proper alignment and gradient , including all types of fittings ( socket , tee, elbow , Y single and double , reducing socket etc ) jointing, fixing , testing , cost of jointing solution etc, as per drawings and in accordance with the specification. Complete in all respect as directed by the Engineer. a. 50mm dia
B191: Crew Qty for 100 Rft
A193: A | B193: Materials:
A194: 1. | B194: 50 mm dia PPR pipe | D194: = | E194: 100 Rft @ 75.00 Rs./ Rft | G194: = | H194: =100*75 -> 7,500.00 | I194: Rs./ 100 Rft
A195: 2. | B195: Fittings
B196: (socket , tee, elbow , Y single and double , reducing socket etc ) | D196: = | E196: 15 % Sr.No.1 | G196: = | H196: =H194*15% -> 1,125.00 | I196: Rs./ 100 Rft
A197: 3. | B197: Cartage of material | D197: = | E197: Lumsum | G197: = | H197: =H194*0.151% -> 11.33 | I197: Rs./ 100 Rft
A198: 4. | B198: Scaffolding charges | D198: = | E198: Lumsum | G198: = | H198: 0 | I198: Rs./ 100 Rft
A199: 5. | B199: Wastage | D199: = | E199: 5% Sr. No 1 & 2 | G199: = | H199: =(H194+H196)*5% -> 431.25 | I199: Rs./ 100 Rft
A200: 6. | B200: Store Handling | D200: = | E200: 0.5% Sr. No 1 & 2 | G200: = | H200: 0 | I200: Rs./ 100 Rft
F201: Sub Total Cost A: | G201: = | H201: =SUM(H194:H200) -> 9,067.58 | I201: Rs./100 Rft
A203: B | B203: Equipments:
A204: 1. | B204: Tool & Tackles | D204: = | E204: Lumsum | G204: = | H204: 25.00 | I204: Rs./ 100 Rft
F206: Sub Total Cost B: | G206: = | H206: =SUM(H204:H204) -> 25.00 | I206: Rs./100 Rft
A208: C | B208: Manpower:
A209: 1. | B209: Plumber | D209: = | E209: 2 x 7.00 Hr @ 98.74 Rs./ Hr | G209: = | H209: =2*7*98.74 -> 1,382.36 | I209: Rs./ 100 Rft
A210: 2. | B210: Helper | D210: = | E210: 6 x 8.00 Hr @ 80.77 Rs./ Hr | G210: = | H210: =6*8*80.77 -> 3,876.96 | I210: Rs./ 100 Rft
F212: Sub Total Cost C: | G212: = | H212: =SUM(H209:H210) -> 5,259.32 | I212: Rs./100 Rft
A214: D | B214: Sub-Total Cost (A+B+C) | G214: = | H214: =H201+H206+H212 -> 14,351.90 | I214: Rs./100 Rft
A216: E | B216: Add 0.5% Water Charges | G216: = | H216: 0 | I216: =I214 -> Rs./100 Rft
A218: F | B218: Total Cost (D+E) | G218: = | H218: =SUM(H214:H216) -> 14,351.90 | I218: Rs./100 Rft
A220: G | B220: Overheads (In-direct Cost) 25 % | G220: = | H220: 0 | I220: =I218 -> Rs./100 Rft
A222: H | B222: Grand Total Cost (F+G) | G222: = | H222: =SUM(H218:H220) -> 14,351.90 | I222: Rs./100 Rft
A224: I | B224: Add. Income Tax 7.5% | G224: = | H224: 0 | I224: =I222 -> Rs./100 Rft
A226: J | B226: Net cost for Providing and Laying approved class PPR by Dadex or equivalent in trenches up-to required depth in proper alignment and gradient , including all types of fittings ( socket , tee, elbow , Y single and double , reducing socket etc ) jointing, fixing , testing , cost of jointing solution etc, as per drawings and in accordance with the specification. Complete in all respect as directed by the Engineer. a. 50 mm dia (G+H) | H226: =H222 -> 14,351.90 | I226: =I224 -> Rs./100 Rft
H227: =H226/100 -> 143.52 | I227: Rs / Rft
A229: RATE ANALYSIS
A230: DEVELOPMENT OF ROYAL ORCHARD MULTAN
B233: UPVC PIPE 4 inch dia
B234: Measuring Unit | I234: No.
B236: Item Desc. | C236: Providing and fixing 4" dia(UPVC) socket bend of any degree for pipe with clamps, bolts and nuts in cement concrete 1:2:4 etc. complete..
A238: A | B238: Materials:
A239: 1. | B239: 4'' dia uPvc Class-C rain water down pipe | D239: = | E239: 12 Rft. @ 81.00Rs./ No. | G239: = | H239: =12*81 -> 972.00 | I239: Rs./ 12Rft
A240: 2. | B240: Fittings
A241: 3. | B241: (socket , tee, elbow , Y single and double , reducing socket etc ) | D241: = | E241: 15 % Sr.No.1 | G241: = | H241: =H239*15% -> 145.80 | I241: Rs./ 100 Rft
A242: 4. | B242: C.C 1:2:4 for making good holes in walls and plinth and floor, etc. | D242: = | E242: Lumsum | G242: = | H242: 20.00 | I242: Rs./ 12Rft
A243: 6. | B243: Carriage Multan Market to Site | D243: = | E243: Lumsum | G243: = | H243: =5*1 -> 5.00 | I243: Rs./ 12Rft
F245: Sub Total Cost A: | G245: = | H245: =SUM(H239:H243) -> 1,142.80 | I245: Rs./ 12 Rft
A247: B | B247: Equipments:
A248: 1. | B248: Formwork and Tool and Tackle | D248: = | E248: Lumsum | G248: = | H248: 0 | I248: =I243 -> Rs./ 12Rft
F250: Sub Total Cost B: | G250: = | H250: 0 | I250: =I245 -> Rs./ 12 Rft
A251: C | B251: Manpower :
A252: 1. | B252: Plumber | D252: = | E252: 4.00 Hrs. @112.00 Rs./ No. | G252: = | H252: =4*112 -> 448.00 | I252: =I248 -> Rs./ 12Rft
A253: 2. | B253: Mason (2nd class for block, brick and concrete work). | D253: = | E253: 1.00 Hrs. @112.00 Rs./ No. | G253: = | H253: =1*112 -> 112.00 | I253: =I248 -> Rs./ 12Rft
A254: 3. | B254: Lahour | D254: = | E254: 2 x 4 Hrs. @ 66.66.00 Rs./ No. | G254: = | H254: =2*4*66.66 -> 533.28 | I254: =I253 -> Rs./ 12Rft
F255: Sub Total Cost C: | G255: = | H255: =SUM(H252:H254) -> 1,093.28 | I255: =I250 -> Rs./ 12 Rft
A257: D | B257: Sub-Total Cost (A+B+C) | G257: = | H257: =H245+H250+H255 -> 2,236.08 | I257: =I255 -> Rs./ 12 Rft
A259: E | B259: Add 0.5% Water Charges | G259: = | H259: 0 | I259: =I257 -> Rs./ 12 Rft
A261: F | B261: Total Cost (D+E) | G261: = | H261: =SUM(H257:H260) -> 2,236.08 | I261: =I257 -> Rs./ 12 Rft
A263: G | B263: Overheads (In-direct Cost) 25 % | G263: = | H263: 0 | I263: =I261 -> Rs./ 12 Rft
A265: H | B265: Grand Total Cost (F+G) | G265: = | H265: =SUM(H261:H264) -> 2,236.08 | I265: =I261 -> Rs./ 12 Rft
A267: I | B267: Add. Income Tax 7.5% | G267: = | H267: 0 | I267: =I265 -> Rs./ 12 Rft
A269: J | B269: Net Providing and fixing 4" dia(UPVC) socket bend of any degree for pipe with clamps, bolts and nuts in cement concrete 1:2:4 etc. complete..(H+I) | H269: =H265 -> 2,236.08 | I269: =I267 -> Rs./ 12 Rft
H270: =ROUND(H269/12,0) -> 186.00 | I270: Rs./ Rft

Sheet MS PIPE
A1: ='Concrete Rates'!A1 -> Project Name…..
A2: ='Concrete Rates'!A2 -> CIVIL INFRASTRUCTURE WORKS
A4: RATE ANALYSIS
B6: 6'' DIA MS PIPE
B8: Measuring Unit | H8: Rft
B10: Item Desc. | C10: Supply laying, fixing of 6'' dia MS PIPE
B13: Crew Qty. for 50 Ru.meter
A14: A | B14: Materials:
A16: 1. | B16: MS pipe 6'' dia | D16: = | E16: 50 Mtr @ 2066.00 Rs. / Mtr. | G16: = | H16: =50*2066 -> 103,300.00 | I16: Rs./50 Mtr.
A17: 2. | B17: Welding Rod | D17: = | E17: lumsum | G17: = | H17: 300.00 | I17: Rs./50 Mtr.
A18: 3. | B18: Angle iron for sport | D18: = | E18: lumsum | G18: = | H18: 600.00 | I18: Rs./50 Mtr.
A19: 4. | B19: Wastage | D19: = | E19: 5% | G19: = | H19: =H16*0.05 -> 5,165.00 | I19: Rs./50 Mtr.
A20: 5. | B20: Store Handling Charges incl. unloading | D20: = | E20: 2% | G20: = | H20: 10.00 | I20: Rs./50 Mtr.
F22: Sub Total Cost A: | G22: = | H22: =SUM(H16:H20) -> 109,375.00 | I22: Rs. /50 Mtr. | L22: =H22/50 -> 2,187.50
A23: B | B23: Equipments:
A24: 1. | B24: Tools & Tackles | D24: = | E24: Lumsum | G24: = | H24: 700.00 | I24: =I22 -> Rs. /50 Mtr. | K24: =H24/50 -> 14.00
F26: Sub Total Cost B: | G26: = | H26: =SUM(H24:H24) -> 700.00 | I26: =I22 -> Rs. /50 Mtr.
A27: C | B27: Manpower :
A28: 1. | B28: Foreman/Supervisor | D28: = | E28: 6 Hr/ Mtr @ 121.15 Rs./ Hr | G28: = | H28: =6*121.15 -> 726.90 | I28: =I24 -> Rs. /50 Mtr.
A29: 2. | B29: Welder | D29: = | E29: 6 Hr/ Mtr. @ 80.77 Rs./ Hr | G29: = | H29: =6*80.77 -> 484.62 | I29: =I28 -> Rs. /50 Mtr.
A30: 3. | B30: Helper | E30: 2x 6 Hr/ No @ 47.12 Rs./ Hr | G30: = | H30: =2*6*47.12 -> 565.44 | I30: =I26 -> Rs. /50 Mtr.
F32: Sub Total Cost C: | G32: = | H32: =SUM(H28:H30) -> 1,776.96 | I32: =I29 -> Rs. /50 Mtr. | K32: =H32/50 -> 35.54
A34: D | B34: Total Cost (A+B+C) | G34: = | H34: =H22+H26+H32 -> 111,851.96 | I34: =I32 -> Rs. /50 Mtr.
A36: E | B36: Add 0.5 % Water Charges | G36: = | H36: =H34*0.5% -> 559.26 | I36: =I32 -> Rs. /50 Mtr.
A38: F | B38: Add 5% Testing & Commissioning Charges (D+E)x 5% | G38: = | H38: =(H34+H36)*5% -> 5,620.56 | I38: =I32 -> Rs. /50 Mtr.
A40: G | B40: Total Cost (D+E+F) | G40: = | H40: =H34+H36+H38 -> 118,031.78 | I40: =I34 -> Rs. /50 Mtr. | K40: =(H40/50) -> 2,360.64 | L40: =K40/3.281 -> 719.49
A42: H | B42: Total Basic Cost (H = G /50) | G42: = | H42: =H40/50 -> 2,360.64 | I42: Rs./Mtr
A44: I | B44: Total Basic Cost (I = H /3.281) | G44: = | H44: =H42/3.281 -> 719.49 | I44: Rs./Rft
A46: J | B46: Overheads (In-direct Cost) 25 % | G46: = | H46: =H44*0.25 -> 179.87 | I46: =I44 -> Rs./Rft
A48: K | B48: Grand Total Cost (K = I+J) | G48: = | H48: =H44+H46 -> 899.36 | I48: =I46 -> Rs./Rft
A50: =+A1 -> Project Name…..
A51: =+A2 -> CIVIL INFRASTRUCTURE WORKS
A53: RATE ANALYSIS
B55: 8'' DIA MS PIPE
B57: Measuring Unit | H57: Rft
B59: Item Desc. | C59: Supply laying, fixing of 8'' dia MS PIPE
B62: Crew Qty. for 50 Ru.meter
A63: A | B63: Materials:
A65: 1. | B65: MS pipe 8'' dia | D65: = | E65: 50 Mtr @ 3083.00 Rs. / Mtr. | G65: = | H65: =50*3083 -> 154,150.00 | I65: Rs./50 Mtr.
A66: 2. | B66: Welding Rod | D66: = | E66: lumsum | G66: = | H66: 300.00 | I66: Rs./50 Mtr.
A67: 3. | B67: Angle iron for sport | D67: = | E67: lumsum | G67: = | H67: 600.00 | I67: Rs./50 Mtr.
A68: 4. | B68: Wastage | D68: = | E68: 5% | G68: = | H68: =H65*0.05 -> 7,707.50 | I68: Rs./50 Mtr.
A69: 5. | B69: Store Handling Charges incl. unloading | D69: = | E69: 2% | G69: = | H69: 10.00 | I69: Rs./50 Mtr.
F71: Sub Total Cost A: | G71: = | H71: =SUM(H65:H69) -> 162,767.50 | I71: Rs. /50 Mtr. | L71: =H71/50 -> 3,255.35
A72: B | B72: Equipments:
A73: 1. | B73: Tools & Tackles | D73: = | E73: Lumsum | G73: = | H73: 700.00 | I73: =I71 -> Rs. /50 Mtr. | K73: =H73/50 -> 14.00
F75: Sub Total Cost B: | G75: = | H75: =SUM(H73:H73) -> 700.00 | I75: =I71 -> Rs. /50 Mtr.
A76: C | B76: Manpower :
A77: 1. | B77: Foreman/Supervisor | D77: = | E77: 8 Hr/ Mtr @ 121.15 Rs./ Hr | G77: = | H77: =8*121.15 -> 969.20 | I77: =I73 -> Rs. /50 Mtr.
A78: 2. | B78: Welder | D78: = | E78: 8 Hr/ Mtr. @ 80.77 Rs./ Hr | G78: = | H78: =8*80.77 -> 646.16 | I78: =I77 -> Rs. /50 Mtr.
A79: 3. | B79: Helper | E79: 8x 6 Hr/ No @ 47.12 Rs./ Hr | G79: = | H79: =2*8*47.12 -> 753.92 | I79: =I75 -> Rs. /50 Mtr.
F81: Sub Total Cost C: | G81: = | H81: =SUM(H77:H79) -> 2,369.28 | I81: =I78 -> Rs. /50 Mtr. | K81: =H81/50 -> 47.39
A83: D | B83: Total Cost (A+B+C) | G83: = | H83: =H71+H75+H81 -> 165,836.78 | I83: =I81 -> Rs. /50 Mtr.
A85: E | B85: Add 0.5 % Water Charges | G85: = | H85: =H83*0.5% -> 829.18 | I85: =I81 -> Rs. /50 Mtr.
A87: F | B87: Add 5% Testing & Commissioning Charges (D+E)x 5% | G87: = | H87: =(H83+H85)*5% -> 8,333.30 | I87: =I81 -> Rs. /50 Mtr.
A89: G | B89: Total Cost (D+E+F) | G89: = | H89: =H83+H85+H87 -> 174,999.26 | I89: =I83 -> Rs. /50 Mtr. | K89: =(H89/50) -> 3,499.99 | L89: =K89/3.281 -> 1,066.74
A91: H | B91: Total Basic Cost (H = G /50) | G91: = | H91: =H89/50 -> 3,499.99 | I91: Rs./Mtr
A93: I | B93: Total Basic Cost (I = H /3.281) | G93: = | H93: =H91/3.281 -> 1,066.74 | I93: Rs./Rft
A95: J | B95: Overheads (In-direct Cost) 25 % | G95: = | H95: =H93*0.25 -> 266.69 | I95: =I93 -> Rs./Rft
A97: K | B97: Grand Total Cost (K = I+J) | G97: = | H97: =H93+H95 -> 1,333.43 | I97: =I95 -> Rs./Rft

Sheet Light Pole Foundation
A1: Composite Rate Light Pole Foundation (12m)
A3: Sr No | B3: Description | C3: No | D3: L | E3: B | F3: H | G3: Quantity | I3: Rate (Rs.) | J3: Amount (Rs.) | K3: Remarks
A4: 1 | B4: PCC Concrete(2'x2'x6')
C5: 1 | D5: 2.000 | E5: 2.000 | F5: 6.000 | G5: =C5*D5*E5*F5 -> 24.000
C6: Total Qty. | G6: =SUM(G5:G5) -> 24.000 | H6: Cft | I6: 360.00 | J6: =G6*I6 -> 8,640.00
A7: 2 | B7: J bolt & Nut (22mm & 54"long)
C8: 4 | D8: - | E8: - | F8: - | G8: =C8 -> 4.000 | H8: No
C9: Total Qty. | G9: =SUM(G8:G8) -> 4.000 | H9: No | I9: 340.00 | J9: =G9*I9 -> 1,360.00
A10: 3 | B10: PVC Pipe (75mm)
C11: 2 | D11: =4.5*2+1*2 -> 11.000 | E11: - | F11: - | G11: =C11*D11 -> 22.000 | H11: Rft
C12: Total Qty. | G12: =SUM(G11:G11) -> 22.000 | H12: Rft | I12: 27.44 | J12: =G12*I12 -> 603.66
B13: Total Amount.(Rs.) | J13: =SUM(J4:J12) -> 10,603.66
A14: Composite Rate Light Pole Foundation (8m & 10m-Solar Pole)
A16: Sr No | B16: Description | C16: No | D16: L | E16: B | F16: H | G16: Quantity | I16: Rate (Rs.) | J16: Amount (Rs.) | K16: Remarks
A17: 1 | B17: PCC Concrete(1.75'x1.75'x5')
C18: 1 | D18: 1.750 | E18: 1.750 | F18: 5.000 | G18: =C18*D18*E18*F18 -> 15.313
C19: Total Qty. | G19: =SUM(G18:G18) -> 15.313 | H19: Cft | I19: =+I6 -> 360.00 | J19: =G19*I19 -> 5,512.50
A20: 2 | B20: J bolt & Nut (22mm & 37"long)
C21: 4 | D21: - | E21: - | F21: - | G21: =C21 -> 4.000 | H21: No
C22: Total Qty. | G22: =SUM(G21:G21) -> 4.000 | H22: No | I22: 320.00 | J22: =G22*I22 -> 1,280.00
A23: 3 | B23: PVC Pipe (75mm)
C24: 2 | D24: =3.08*2+0.875*2 -> 7.910 | E24: - | F24: - | G24: =C24*D24 -> 15.820 | H24: Rft
C25: Total Qty. | G25: =SUM(G24:G24) -> 15.820 | H25: Rft | I25: 27.44 | J25: =G25*I25 -> 434.08
B26: Total Amount.(Rs.) | J26: =SUM(J17:J25) -> 7,226.58
A27: Composite Rate Light Pole Foundation (6m)
A29: Sr No | B29: Description | C29: No | D29: L | E29: B | F29: H | G29: Quantity | I29: Rate (Rs.) | J29: Amount (Rs.) | K29: Remarks
A30: 1 | B30: PCC Concrete(1.5'x1.5'x5')
C31: 1 | D31: 1.500 | E31: 1.500 | F31: 5.000 | G31: =C31*D31*E31*F31 -> 11.250
C32: Total Qty. | G32: =SUM(G31:G31) -> 11.250 | H32: Cft | I32: =+I19 -> 360.00 | J32: =G32*I32 -> 4,050.00
A33: 2 | B33: J bolt & Nut (22mm & 37"long)
C34: 4 | D34: - | E34: - | F34: - | G34: =C34 -> 4.000 | H34: No
C35: Total Qty. | G35: =SUM(G34:G34) -> 4.000 | H35: No | I35: 320.00 | J35: =G35*I35 -> 1,280.00
A36: 3 | B36: PVC Pipe (75mm)
C37: 2 | D37: =3.08*2+0.875*2 -> 7.910 | E37: - | F37: - | G37: =C37*D37 -> 15.820 | H37: Rft
C38: Total Qty. | G38: =SUM(G37:G37) -> 15.820 | H38: Rft | I38: 27.44 | J38: =G38*I38 -> 434.10
B39: Total Amount.(Rs.) | J39: =SUM(J30:J38) -> 5,764.10

Sheet CABLES RATE
A1: ='Concrete Rates'!A1 -> Project Name…..
A2: ='Concrete Rates'!A2 -> CIVIL INFRASTRUCTURE WORKS
A4: RATE ANALYSIS
B5: HT CABLE 3 CORE 120mm²
B8: Measuring Unit | H8: Ru. Meter
B10: Item Desc. | C10: Supply laying, connecting, testing and commissioning of HT 3 Core x 120mm sq.Aluminum Armoured cable for Transformer laid in trench as per routes shown in drawings.
B13: Crew Qty. for 50 Ru.meter
A14: A | B14: Materials:
A16: 1. | B16: HT 3 Core x 120mm sq.Aluminum Armoured cable | D16: = | E16: 1,998.00 Rs./Mtr
B17: Add GST 17 % | D17: = | E17: 1,998.00 x 17 % = 339.66 Rs./Mtr.
B18: Rate per Mtr | D18: = | E18: 1,998.00+339.66 = 2,337.66 Rs.Mtr.
A19: 2. | B19: HT 3 Core x 120mm sq.Aluminum Armoured cable | D19: = | E19: 50 Mtr @ 2,337.66 Rs. / Mtr. | G19: = | H19: =50*2337.66 -> 116,883.00 | I19: Rs./50 Mtr.
A20: 3. | B20: Copper Aluminum Lugs incl. GST (KLAUKE GERMANY) | D20: = | E20: 6 Nos. @ 30.00+ 30.00 x 17% = 35.10 Rs./Mtr. | G20: = | H20: =6*35.1 -> 210.60 | I20: Rs./50 Mtr.
A21: 4. | B21: Bricks | D21: = | E21: 434.00 No,s @ 6.50 Rs / Nos | G21: = | H21: =434*6.5 -> 2,821.00 | I21: Rs./50 Mtr.
A22: 5. | B22: Wastage | D22: = | E22: 5% | G22: = | H22: =SUM(H19:H21)*E22 -> 5,995.73 | I22: Rs./50 Mtr.
F24: Sub Total Cost A: | G24: = | H24: =SUM(H19:H22) -> 125,910.33 | I24: Rs. /50 Mtr.
A25: B | B25: Equipments:
A26: 1. | B26: Plate Compacter | D26: = | E26: 1.00 Hr @ 211.48 Rs./Hrs | G26: = | H26: =1*211.48 -> 211.48 | I26: =I22 -> Rs./50 Mtr.
F28: Sub Total Cost B: | G28: = | H28: =SUM(H26:H26) -> 211.48 | I28: =I24 -> Rs. /50 Mtr.
A29: C | B29: Manpower :
A30: 1. | B30: Labour for Cable laying as sub-Contractor | D30: = | E30: 50.00 Mtr @ 20.00 Rs./ Ru.m | G30: = | H30: =20*50 -> 1,000.00 | I30: =I26 -> Rs./50 Mtr.
A31: 2. | B31: Labour for Excavtion,Backfilling & Brick Laying | D31: = | E31: 476.820 @ 9.00 Rs./Cft | G31: = | H31: =476.82*9 -> 4,291.38 | I31: =I26 -> Rs./50 Mtr.
D32: = | E32: 50 x 0.3 x 0.9 = 13.500/35.32 = 476.820 Cft
F34: Sub Total Cost C: | G34: = | H34: =SUM(H30:H31) -> 5,291.38 | I34: =I31 -> Rs./50 Mtr.
A36: D | B36: Total Cost (A+B+C) | G36: = | H36: =H24+H28+H34 -> 131,413.19 | I36: =I34 -> Rs./50 Mtr.
A39: E | B39: Total Basic Cost (E = D /50) | G39: = | H39: =H36/50 -> 2,628.26 | I39: Rs./Mtr
A41: F | B41: Total Basic Cost (F = E /3.281) | G41: = | H41: =H39/3.281 -> 801.06 | I41: Rs./Rft
A43: G | B43: Overheads (In-direct Cost) 25 % | G43: = | H43: =H41*0.25 -> 200.26 | I43: =I41 -> Rs./Rft
A45: H | B45: Grand Total Cost (H = F+G) | G45: = | H45: =H41+H43 -> 1,001.32 | I45: =I43 -> Rs./Rft
A48: =A1 -> Project Name…..
A49: =A2 -> CIVIL INFRASTRUCTURE WORKS
A51: RATE ANALYSIS
B52: HT CABLE 1 CORE 240 mm²
B55: Measuring Unit | H55: Ru. Meter
B57: Item Desc. | C57: Supply laying, connecting, testing and commissioning of HT 1 Core x 240mm sq.Aluminum Armoured cable for feeder Piller laid in trench as per routes shown in drawings.
B60: Crew Qty. for 50 Ru.meter
A61: A | B61: Materials:
A63: 1. | B63: HT 1 Core x 240mm sq.Aluminum Armoured cable | D63: = | E63: 968.00 Rs./Mtr
B64: Add GST 17 % | D64: = | E64: 968.00 x 17 % = 164.56 Rs./Mtr.
B65: Rate per Mtr | D65: = | E65: 968.00+164.56 = 1,132.56 Rs.Mtr.
A66: 2. | B66: HT 1 Core x 240mm sq.Aluminum Armoured cable | D66: = | E66: 50 Mtr @ 1,132.56 Rs. / Mtr. | G66: = | H66: =50*1132.56 -> 56,628.00 | I66: Rs./50 Mtr.
A67: 3. | B67: Copper Aluminum Lugs incl. GST (KLAUKE GERMANY) | D67: = | E67: 6 Nos. @ 30.00+ 30.00 x 17% = 35.10 Rs./Mtr. | G67: = | H67: =6*35.1 -> 210.60 | I67: Rs./50 Mtr.
A68: 4. | B68: Bricks | D68: = | E68: 434.00 No,s @ 6.50 Rs / Nos | G68: = | H68: =434*6.5 -> 2,821.00 | I68: Rs./50 Mtr.
A69: 5. | B69: Wastage | D69: = | E69: 5% | G69: = | H69: =SUM(H66:H68)*E69 -> 2,982.98 | I69: Rs./50 Mtr.
F71: Sub Total Cost A: | G71: = | H71: =SUM(H66:H69) -> 62,642.58 | I71: Rs. /50 Mtr.
A72: B | B72: Equipments:
A73: 1. | B73: Plate Compacter | D73: = | E73: 1.00 Hr @ 211.48 Rs./Hrs | G73: = | H73: =1*211.48 -> 211.48 | I73: =I69 -> Rs./50 Mtr.
F75: Sub Total Cost B: | G75: = | H75: =SUM(H73:H73) -> 211.48 | I75: =I71 -> Rs. /50 Mtr.
A76: C | B76: Manpower :
A77: 1. | B77: Labour for Cable laying as sub-Contractor | D77: = | E77: 50.00 Mtr @ 15.00 Rs./ Ru.m | G77: = | H77: =15*50 -> 750.00 | I77: =I73 -> Rs./50 Mtr.
A78: 2. | B78: Labour for Excavtion,Backfilling & Brick Laying | D78: = | E78: 476.820 @ 9.00 Rs./Cft | G78: = | H78: =476.82*9 -> 4,291.38 | I78: =I73 -> Rs./50 Mtr.
D79: = | E79: 50 x 0.3 x 0.9 = 13.500/35.32 = 476.820 Cft
F81: Sub Total Cost C: | G81: = | H81: =SUM(H77:H78) -> 5,041.38 | I81: =I78 -> Rs./50 Mtr.
A83: D | B83: Total Cost (A+B+C) | G83: = | H83: =H71+H75+H81 -> 67,895.44 | I83: =I81 -> Rs./50 Mtr.
A86: E | B86: Total Basic Cost (E = D /50) | G86: = | H86: =H83/50 -> 1,357.91 | I86: Rs./Mtr
A88: F | B88: Total Basic Cost (F = E /3.281) | G88: = | H88: =H86/3.281 -> 413.87 | I88: Rs./Rft
A90: G | B90: Overheads (In-direct Cost) 25 % | G90: = | H90: =H88*0.25 -> 103.47 | I90: =I88 -> Rs./Rft
A92: H | B92: Grand Total Cost (H = F+G) | G92: = | H92: =H88+H90 -> 517.34 | I92: =I90 -> Rs./Rft
A94: =A48 -> Project Name…..
A95: =+A49 -> CIVIL INFRASTRUCTURE WORKS
A97: RATE ANALYSIS
B98: LT CABLE 4 CORE 120 mm²
B101: Measuring Unit | H101: Ru. Meter
B103: Item Desc. | C103: Supply laying, connecting, testing and commissioning of LT 4 Core x 120mm sq.Aluminum Unarmoured cable for DB,S laid in trench as per routes shown in drawings.
B106: Crew Qty. for 50 Ru.meter
A107: A | B107: Materials:
A109: 1. | B109: LT 4 Core x 120mm sq.Aluminum Unarmoured cable | D109: = | E109: 676.00 Rs./Mtr
B110: Add GST 17 % | D110: = | E110: 676.00 x 17 % = 114.92 Rs./Mtr.
B111: Rate per Mtr | D111: = | E111: 676.00+114.92 = 790.92 Rs.Mtr.
A112: 2. | B112: LT 4 Core x 120mm sq.Aluminum Unarmoured cable | D112: = | E112: 50 Mtr @ 790.92 Rs. / Mtr. | G112: = | H112: =50*790.92 -> 39,546.00 | I112: Rs./50 Mtr.
A113: 3. | B113: Copper Aluminum Lugs incl. GST (KLAUKE GERMANY) | D113: = | E113: 6 Nos. @ 30.00+ 30.00 x 17% = 35.10 Rs./Mtr. | G113: = | H113: =6*35.1 -> 210.60 | I113: Rs./50 Mtr.
A114: 4. | B114: Bricks | D114: = | E114: 434.00 No,s @ 6.50 Rs / Nos | G114: = | H114: =434*6.5 -> 2,821.00 | I114: Rs./50 Mtr.
A115: 5. | B115: Wastage | D115: = | E115: 5% | G115: = | H115: =SUM(H112:H114)*E115 -> 2,128.88 | I115: Rs./50 Mtr.
F117: Sub Total Cost A: | G117: = | H117: =SUM(H112:H115) -> 44,706.48 | I117: Rs. /50 Mtr.
A118: B | B118: Equipments:
A119: 1. | B119: Plate Compacter | D119: = | E119: 1.00 Hr @ 211.48 Rs./Hrs | G119: = | H119: =1*211.48 -> 211.48 | I119: =I115 -> Rs./50 Mtr.
F121: Sub Total Cost B: | G121: = | H121: =SUM(H119:H119) -> 211.48 | I121: =I117 -> Rs. /50 Mtr.
A122: C | B122: Manpower :
A123: 1. | B123: Labour for Cable laying as sub-Contractor | D123: = | E123: 50.00 Mtr @ 10.00 Rs./ Ru.m | G123: = | H123: =10*50 -> 500.00 | I123: =I119 -> Rs./50 Mtr.
A124: 2. | B124: Labour for Excavtion,Backfilling & Brick Laying | D124: = | E124: 476.820 @ 9.00 Rs./Cft | G124: = | H124: =476.82*9 -> 4,291.38 | I124: =I119 -> Rs./50 Mtr.
D125: = | E125: 50 x 0.3 x 0.9 = 13.500/35.32 = 476.820 Cft
F127: Sub Total Cost C: | G127: = | H127: =SUM(H123:H124) -> 4,791.38 | I127: =I124 -> Rs./50 Mtr.
A129: D | B129: Total Cost (A+B+C) | G129: = | H129: =H117+H121+H127 -> 49,709.34 | I129: =I127 -> Rs./50 Mtr.
A132: E | B132: Total Basic Cost (E = D /50) | G132: = | H132: =H129/50 -> 994.19 | I132: Rs./Mtr
A134: F | B134: Total Basic Cost (F = E /3.281) | G134: = | H134: =H132/3.281 -> 303.01 | I134: Rs./Rft
A136: G | B136: Overheads (In-direct Cost) 25 % | G136: = | H136: =H134*0.25 -> 75.75 | I136: =I134 -> Rs./Rft
A138: H | B138: Grand Total Cost (H = F+G) | G138: = | H138: =H134+H136 -> 378.77 | I138: =I136 -> Rs./Rft
A139: =A94 -> Project Name…..
A140: =A95 -> CIVIL INFRASTRUCTURE WORKS
A142: RATE ANALYSIS
B143: LT CABLE 4 CORE 25 mm²
B146: Measuring Unit | H146: Ru. Meter
B148: Item Desc. | C148: Supply laying, connecting, testing and commissioning of LT 4 Core x 25mm sq.Aluminum Unarmoured cable for Street Light laid in trench as per routes shown in drawings.
B151: Crew Qty. for 50 Ru.meter
A152: A | B152: Materials:
A154: 1. | B154: LT 4 Core x 25mm sq.Aluminum Unarmoured cable | D154: = | E154: 187.00 Rs./Mtr
B155: Add GST 17 % | D155: = | E155: 187.00 x 17 % = 31.79 Rs./Mtr.
B156: Rate per Mtr | D156: = | E156: 187.00+31.79 = 218.79 Rs.Mtr.
A157: 2. | B157: LT 4 Core x 25mm sq.Aluminum Unarmoured cable | D157: = | E157: 50 Mtr @ 218.79 Rs. / Mtr. | G157: = | H157: =50*218.79 -> 10,939.50 | I157: Rs./50 Mtr.
A158: 3. | B158: Copper Aluminum Lugs incl. GST (KLAUKE GERMANY) | D158: = | E158: 6 Nos. @ 30.00+ 30.00 x 17% = 35.10 Rs./Mtr. | G158: = | H158: =6*35.1 -> 210.60 | I158: Rs./50 Mtr.
A159: 4. | B159: Bricks | D159: = | E159: 434.00 No,s @ 6.50 Rs / Nos | G159: = | H159: =434*6.5 -> 2,821.00 | I159: Rs./50 Mtr.
A160: 5. | B160: Wastage | D160: = | E160: 5% | G160: = | H160: =SUM(H157:H159)*E160 -> 698.56 | I160: Rs./50 Mtr.
F162: Sub Total Cost A: | G162: = | H162: =SUM(H157:H160) -> 14,669.66 | I162: Rs. /50 Mtr.
A163: B | B163: Equipments:
A164: 1. | B164: Plate Compacter | D164: = | E164: 1.00 Hr @ 211.48 Rs./Hrs | G164: = | H164: =1*211.48 -> 211.48 | I164: =I160 -> Rs./50 Mtr.
F166: Sub Total Cost B: | G166: = | H166: =SUM(H164:H164) -> 211.48 | I166: =I162 -> Rs. /50 Mtr.
A167: C | B167: Manpower :
A168: 1. | B168: Labour for Cable laying as sub-Contractor | D168: = | E168: 50.00 Mtr @ 6.00 Rs./ Ru.m | G168: = | H168: =6*50 -> 300.00 | I168: =I164 -> Rs./50 Mtr.
A169: 2. | B169: Labour for Excavtion,Backfilling & Brick Laying | D169: = | E169: 476.820 @ 9.00 Rs./Cft | G169: = | H169: =476.82*9 -> 4,291.38 | I169: =I164 -> Rs./50 Mtr.
D170: = | E170: 50 x 0.3 x 0.9 = 13.500/35.32 = 476.820 Cft
F172: Sub Total Cost C: | G172: = | H172: =SUM(H168:H169) -> 4,591.38 | I172: =I169 -> Rs./50 Mtr.
A174: D | B174: Total Cost (A+B+C) | G174: = | H174: =H162+H166+H172 -> 19,472.52 | I174: =I172 -> Rs./50 Mtr.
A177: E | B177: Total Basic Cost (E = D /50) | G177: = | H177: =H174/50 -> 389.45 | I177: Rs./Mtr
A179: F | B179: Total Basic Cost (F = E /3.281) | G179: = | H179: =H177/3.281 -> 118.70 | I179: Rs./Rft
A181: G | B181: Overheads (In-direct Cost) 25 % | G181: = | H181: =H179*0.25 -> 29.67 | I181: =I179 -> Rs./Rft
A183: H | B183: Grand Total Cost (H = F+G) | G183: = | H183: =H179+H181 -> 148.37 | I183: =I181 -> Rs./Rft
A184: =A139 -> Project Name…..
A185: =A140 -> CIVIL INFRASTRUCTURE WORKS
A187: RATE ANALYSIS
B188: LT CABLE 4 CORE 16 mm²
B191: Measuring Unit | H191: Ru. Meter
B193: Item Desc. | C193: Supply laying, connecting, testing and commissioning of LT 4 Core x 16mm sq.Aluminum Unarmoured cable for Street Light laid in trench as per routes shown in drawings.
B196: Crew Qty. for 50 Ru.meter
A197: A | B197: Materials:
A199: 1. | B199: LT 4 Core x16mm sq.Aluminum Unarmoured cable | D199: = | E199: 130.00 Rs./Mtr
B200: Add GST 17 % | D200: = | E200: 130.00 x 17 % = 31.79 Rs./Mtr.
B201: Rate per Mtr | D201: = | E201: 130.00+22.10 = 152.10 Rs.Mtr.
A202: 2. | B202: LT 4 Core x 16mm sq.Aluminum Unarmoured cable | D202: = | E202: 50 Mtr @ 152.10 Rs. / Mtr. | G202: = | H202: =50*152.1 -> 7,605.00 | I202: Rs./50 Mtr.
A203: 3. | B203: Copper Aluminum Lugs incl. GST (KLAUKE GERMANY) | D203: = | E203: 6 Nos. @ 30.00+ 30.00 x 17% = 35.10 Rs./Mtr. | G203: = | H203: =6*35.1 -> 210.60 | I203: Rs./50 Mtr.
A204: 4. | B204: Bricks | D204: = | E204: 434.00 No,s @ 6.50 Rs / Nos | G204: = | H204: =434*6.5 -> 2,821.00 | I204: Rs./50 Mtr.
A205: 5. | B205: Wastage | D205: = | E205: 5% | G205: = | H205: =SUM(H202:H204)*E205 -> 531.83 | I205: Rs./50 Mtr.
F207: Sub Total Cost A: | G207: = | H207: =SUM(H202:H205) -> 11,168.43 | I207: Rs. /50 Mtr.
A208: B | B208: Equipments:
A209: 1. | B209: Plate Compacter | D209: = | E209: 1.00 Hr @ 211.48 Rs./Hrs | G209: = | H209: =1*211.48 -> 211.48 | I209: =I205 -> Rs./50 Mtr.
F211: Sub Total Cost B: | G211: = | H211: =SUM(H209:H209) -> 211.48 | I211: =I207 -> Rs. /50 Mtr.
A212: C | B212: Manpower :
A213: 1. | B213: Labour for Cable laying as sub-Contractor | D213: = | E213: 50.00 Mtr @ 5.00 Rs./ Ru.m | G213: = | H213: =5*50 -> 250.00 | I213: =I209 -> Rs./50 Mtr.
A214: 2. | B214: Labour for Excavtion,Backfilling & Brick Laying | D214: = | E214: 476.820 @ 9.00 Rs./Cft | G214: = | H214: =476.82*9 -> 4,291.38 | I214: =I209 -> Rs./50 Mtr.
D215: = | E215: 50 x 0.3 x 0.9 = 13.500/35.32 = 476.820 Cft
F217: Sub Total Cost C: | G217: = | H217: =SUM(H213:H214) -> 4,541.38 | I217: =I214 -> Rs./50 Mtr.
A219: D | B219: Total Cost (A+B+C) | G219: = | H219: =H207+H211+H217 -> 15,921.29 | I219: =I217 -> Rs./50 Mtr.
A222: E | B222: Total Basic Cost (E = D /50) | G222: = | H222: =H219/50 -> 318.43 | I222: Rs./Mtr
A224: F | B224: Total Basic Cost (F = E /3.281) | G224: = | H224: =H222/3.281 -> 97.05 | I224: Rs./Rft
A226: G | B226: Overheads (In-direct Cost) 25 % | G226: = | H226: =H224*0.25 -> 24.26 | I226: =I224 -> Rs./Rft
A228: H | B228: Grand Total Cost (H = F+G) | G228: = | H228: =H224+H226 -> 121.31 | I228: =I226 -> Rs./Rft
A229: =A184 -> Project Name…..
A230: =A185 -> CIVIL INFRASTRUCTURE WORKS
A232: RATE ANALYSIS
B233: LT CABLE 2 CORE 2.5 mm²
B236: Measuring Unit | H236: Ru. Meter
B238: Item Desc. | C238: Supply laying, connecting, testing and commissioning of LT 2 Core x 2.5mm sq.Aluminum Unarmoured cable for Street Light laid in trench as per routes shown in drawings.
B241: Crew Qty. for 50 Ru.meter
A242: A | B242: Materials:
A244: 1. | B244: LT 2 Core x2.5mm sq.Aluminum Unarmoured cable | D244: = | E244: 58.00 Rs./Mtr
B245: Add GST 17 % | D245: = | E245: 58.00 x 17 % = 9.86 Rs./Mtr.
B246: Rate per Mtr | D246: = | E246: 67.86+9.86 = 67.86 Rs.Mtr.
A247: 2. | B247: LT 2 Core x2.5mm sq.Aluminum Unarmoured cable | D247: = | E247: 50 Mtr @ 67.86 Rs. / Mtr. | G247: = | H247: =50*67.86 -> 3,393.00 | I247: Rs./50 Mtr.
A248: 3. | B248: Copper Aluminum Lugs incl. GST (KLAUKE GERMANY) | D248: = | E248: 6 Nos. @ 30.00+ 30.00 x 17% = 35.10 Rs./Mtr. | G248: = | H248: =6*35.1 -> 210.60 | I248: Rs./50 Mtr.
A249: 5. | B249: Wastage | D249: = | E249: 5% | G249: = | H249: =SUM(H247:H248)*E249 -> 180.18 | I249: Rs./50 Mtr.
F251: Sub Total Cost A: | G251: = | H251: =SUM(H247:H249) -> 3,783.78 | I251: Rs. /50 Mtr.
A252: B | B252: Manpower :
A253: 1. | B253: Foreman/Supervisor | D253: = | E253: 1 Hr/ Mtr @ 121.15 Rs./ Hr | G253: = | H253: =1*121.15 -> 121.15 | I253: =I249 -> Rs./50 Mtr.
A254: 2. | B254: Electrician | D254: = | E254: 2.75 Hr/ Mtr. @ 80.77 Rs./ Hr | G254: = | H254: =2.75*80.77 -> 222.12 | I254: =I253 -> Rs./50 Mtr.
A255: 3. | B255: Electrician Helper | E255: 2.75 Hr/ No @ 47.12 Rs./ Hr | G255: = | H255: =2.75*47.12 -> 129.58 | I255: =I251 -> Rs. /50 Mtr.
F256: Sub Total Cost C: | G256: = | H256: =SUM(H253:H255) -> 472.85 | I256: =I253 -> Rs./50 Mtr.
A258: C | B258: Total Cost (A+B) | G258: = | H258: =H251+H256 -> 4,256.63 | I258: =I256 -> Rs./50 Mtr.
A261: D | B261: Total Basic Cost (D = C /50) | G261: = | H261: =H258/50 -> 85.13 | I261: Rs./Mtr
A263: E | B263: Total Basic Cost (E = D /3.281) | G263: = | H263: =H261/3.281 -> 25.95 | I263: Rs./Rft
A265: F | B265: Overheads (In-direct Cost) 25 % | G265: = | H265: =H263*0.25 -> 6.49 | I265: =I263 -> Rs./Rft
A267: G | B267: Grand Total Cost (G = E+F) | G267: = | H267: =H263+H265 -> 32.43 | I267: =I265 -> Rs./Rft
A268: =+A229 -> Project Name…..
A269: =+A230 -> CIVIL INFRASTRUCTURE WORKS
A271: RATE ANALYSIS
B272: 4 CORE 25mm² CABLE
B274: Measuring Unit | H274: Ru. Meter
B276: Item Desc. | C276: Supply laying, connecting, testing and commissioning of Cu/Pvc /Pvc 300/500V to BS:6004 4 Core 25mm² Cable (Pakistan Brand) laid in prelaid conduit in trench or on cable tray to be installed as per routes shown in drawings. Actual length of cable to be installed shall be practically measured at site.
B279: Crew Qty. for 50 Ru.meter
A280: A | B280: Materials:
A282: 1. | B282: Cu/Pvc /Pvc 300/500V 4 Core 25mm² Cable | D282: = | E282: 195.00 Rs./Mtr
B283: Add GST 17 % | D283: = | E283: 195.00 x 17% = 33.15 Rs./Mtr. | K283: =195*1.17 -> 228.15
B284: Rate per Mtr | D284: = | E284: 195.00+33.15 = 228.15 Rs.Mtr.
A285: 2. | B285: Cu/Pvc /Pvc 300/500V 4 Core 4mm² Cable | D285: = | E285: 50 Mtr @ 195.00 Rs. / Mtr. | G285: = | H285: =50*195 -> 9,750.00 | I285: Rs./50 Mtr.
A286: 3. | B286: Copper Aluminum Lugs incl. GST (KLAUKE GERMANY) | D286: = | E286: 8 Nos. @ 30.00+ 30.00x17%=35.10 Rs. /Mtr. | G286: = | H286: =8*35.1 -> 280.80 | I286: Rs./50 Mtr.
A287: 4. | B287: Carriage Copper Aluminum Lugs | D287: = | E287: Lumsum | G287: = | H287: 35.00 | I287: Rs./50 Mtr.
A288: 5. | B288: Maintenance charges for replacement/ repairing
B289: during defects liability period on Sr # 2 & 3 | D289: = | E289: 10% | G289: = | H289: 0 | I289: Rs./50 Mtr.
A290: 6. | B290: Wastage | D290: = | E290: 5% | G290: = | H290: =SUM(H285:H289)*E290 -> 503.29 | I290: Rs./50 Mtr. | M290: 2600
A291: 7. | B291: Store Handling Charges incl. unloading | D291: = | E291: 2% | G291: = | H291: =E291*H285 -> 195.00 | I291: Rs./50 Mtr. | M291: 1000
A292: 8. | B292: Shifting from Store to Site | D292: = | E292: Lumsum | G292: = | H292: 50.00 | I292: Rs./50 Mtr. | M292: =+M291+M290 -> 3600
F294: Sub Total Cost A: | G294: = | H294: =SUM(H285:H292) -> 10,814.09 | I294: Rs. /50 Mtr.
A295: B | B295: Equipments:
A296: 1. | B296: Tools & Tackles | D296: = | E296: Lumsum | G296: = | H296: 50.00 | I296: =I285 -> Rs./50 Mtr.
F298: Sub Total Cost B: | G298: = | H298: =SUM(H296:H296) -> 50.00 | I298: =I294 -> Rs. /50 Mtr.
A299: C | B299: Manpower :
A300: 1. | B300: Foreman/Supervisor | D300: = | E300: 1 Hr/ Mtr @ 121.15 Rs./ Hr | G300: = | H300: =1*121.15 -> 121.15 | I300: =I296 -> Rs./50 Mtr.
A301: 2. | B301: Electrician | D301: = | E301: 2.75 Hr/ Mtr. @ 80.77 Rs./ Hr | G301: = | H301: =2.75*80.77 -> 222.12 | I301: =I300 -> Rs./50 Mtr.
A302: 3. | B302: Electrician Helper | E302: 2.75 Hr/ No @ 47.12 Rs./ Hr | G302: = | H302: =2.75*47.12 -> 129.58 | I302: =I298 -> Rs. /50 Mtr.
F304: Sub Total Cost C: | G304: = | H304: =SUM(H300:H302) -> 472.85 | I304: =I301 -> Rs./50 Mtr.
A306: D | B306: Total Cost (A+B+C) | G306: = | H306: =H294+H298+H304 -> 11,336.94 | I306: =I304 -> Rs./50 Mtr.
A308: E | B308: Add 0.5 % Water Charges | G308: = | H308: =H306*0.5% -> 56.68 | I308: =I304 -> Rs./50 Mtr.
... 42 more rows

Sheet Pole
A1: RATE ANALYSIS
A2: =+'CABLES RATE'!A322 -> Project Name…..
A4: 6 Meter High Single Arm
A5: Measuring Unit | G5: Unit : 1 No
A6: Item Desc. | C6: Supply at site, complete installation of Galvanized Octagonal or steel tubular painted street Light poles including provision of concrete foundation as per standards, specifications, drawing and approval of the Engineer 6 Meter high Galvanized Octagonal or tubular poles with single arm for light installation
A9: A | C9: Material Cost
A10: (a) | C10: Market Price | F10: 23,000.00 | G10: Per pole
A11: (b) | C11: Transprtation Charges | D11: = | F11: 0 | G11: Per pole
A12: (c) | C12: Painting | D12: = | F12: 0 | G12: Per pole
C13: Total Material Cost (a ~ c) (RS) | D13: = | F13: =SUM(F10:F12) -> 23,000.00 | H13: --- (A)
A15: B | C15: Labour + Consumables Cost
C16: Installation Cost
C17: Unit rate | D17: = | E17: RS | F17: =F13*5% -> 1150.00 | G17: Per pole
C18: Total Labour Cost | D18: = | F18: =F17 -> 1,150.00 | H18: --- (B)
C19: Total Material + Labour Cost (A+B) (RS) | D19: = | F19: =F13+F18 -> 24,150.00
C21: Basic Unit Cost | F21: =F19 -> 24,150.00 | G21: Per pole
C23: Contractor Overhead & Profit @ 25% | D23: = | F23: =F21*25% -> 6,037.50 | G23: Per pole
C24: Subtotal | F24: =SUM(F21:F23) -> 30,187.50 | G24: Per pole | K24: 3000
C25: Income tax @ 7% | F25: =F24*7% -> 2,113.13 | G25: Per pole
C27: Net Unit Rate (RS) | F27: =F24+F25 -> 32,301 | G27: Per Pole
A29: =+A1 -> RATE ANALYSIS
A30: =+A2 -> Project Name…..
A32: 8 Meter High Single Arm
A33: Measuring Unit | G33: Unit : 1 No
A34: Item Desc. | C34: Supply at site, complete installation of Galvanized Octagonal or steel tubular painted street Light poles including provision of concrete foundation as per standards, specifications, drawing and approval of the Engineer 8 Meter high Galvanized Octagonal or tubular poles with single arm for light installation
A37: A | C37: Material Cost
A38: (a) | C38: Market Price | F38: 28,000.00 | G38: Per pole
A39: (b) | C39: Transprtation Charges | D39: = | F39: 0 | G39: Per pole
A40: (c) | C40: Painting | D40: = | F40: 0 | G40: Per pole
C41: Total Material Cost (a ~ c) (RS) | D41: = | F41: =SUM(F38:F40) -> 28,000.00 | H41: --- (A)
A43: B | C43: Labour + Consumables Cost
C44: Installation Cost
C45: Unit rate | D45: = | E45: RS | F45: =F41*5% -> 1400.00 | G45: Per pole
C46: Total Labour Cost | D46: = | F46: =F45 -> 1,400.00 | H46: --- (B)
C47: Total Material + Labour Cost (A+B) (RS) | D47: = | F47: =F41+F46 -> 29,400.00
C49: Basic Unit Cost | F49: =F47 -> 29,400.00 | G49: Per pole
C51: Contractor Overhead & Profit @ 25% | D51: = | F51: =F49*25% -> 7,350.00 | G51: Per pole
C52: Subtotal | F52: =SUM(F49:F51) -> 36,750.00 | G52: Per pole
C53: Income tax @ 7% | F53: =F52*7% -> 2,572.50 | G53: Per pole
C55: Net Unit Rate (RS) | F55: =F52+F53 -> 39,323 | G55: Per Pole
A57: =A29 -> RATE ANALYSIS
A58: =A30 -> Project Name…..
A60: 10 Meter High Single Arm
A61: Measuring Unit | G61: Unit : 1 No
A62: Item Desc. | C62: Supply at site, complete installation of Galvanized Octagonal or steel tubular painted street Light poles including provision of concrete foundation as per standards, specifications, drawing and approval of the Engineer 10 Meter high Galvanized Octagonal or tubular poles with single arm for light installation
A65: A | C65: Material Cost
A66: (a) | C66: Market Price | F66: 42,000.00 | G66: Per pole
A67: (b) | C67: Transprtation Charges | D67: = | F67: 0 | G67: Per pole
A68: (c) | C68: Painting | D68: = | F68: 0 | G68: Per pole
C69: Total Material Cost (a ~ c) (RS) | D69: = | F69: =SUM(F66:F68) -> 42,000.00 | H69: --- (A)
A71: B | C71: Labour + Consumables Cost
C72: Installation Cost
C73: Unit rate | D73: = | E73: RS | F73: =F69*5% -> 2100.00 | G73: Per pole
C74: Total Labour Cost | D74: = | F74: =F73 -> 2,100.00 | H74: --- (B)
C75: Total Material + Labour Cost (A+B) (RS) | D75: = | F75: =F69+F74 -> 44,100.00
C77: Basic Unit Cost | F77: =F75 -> 44,100.00 | G77: Per pole
C79: Contractor Overhead & Profit @ 25% | D79: = | F79: =F77*25% -> 11,025.00 | G79: Per pole
C80: Subtotal | F80: =SUM(F77:F79) -> 55,125.00 | G80: Per pole
C81: Income tax @ 7% | F81: =F80*7% -> 3,858.75 | G81: Per pole
C83: Net Unit Rate (RS) | F83: =F80+F81 -> 58,984 | G83: Per Pole
A84: =+A29 -> RATE ANALYSIS
A85: =+A30 -> Project Name…..
A87: 10 Meter High Double Arm
A88: Measuring Unit | G88: Unit : 1 No
A89: Item Desc. | C89: Supply at site, complete installation of Galvanized Octagonal or steel tubular painted street Light poles including provision of concrete foundation as per standards, specifications, drawing and approval of the Engineer 10 Meter high Galvanized Octagonal or tubular poles with double arm for light installation
A92: A | C92: Material Cost
A93: (a) | C93: Market Price | F93: 45,000.00 | G93: Per pole
A94: (b) | C94: Transprtation Charges | D94: = | F94: 0 | G94: Per pole
A95: (c) | C95: Painting | D95: = | F95: 0 | G95: Per pole
C96: Total Material Cost (a ~ c) (RS) | D96: = | F96: =SUM(F93:F95) -> 45,000.00 | H96: --- (A)
A98: B | C98: Labour + Consumables Cost
C99: Installation Cost
C100: Unit rate | D100: = | E100: RS | F100: =F96*5% -> 2250.00 | G100: Per pole
C101: Total Labour Cost | D101: = | F101: =F100 -> 2,250.00 | H101: --- (B)
C102: Total Material + Labour Cost (A+B) (RS) | D102: = | F102: =F96+F101 -> 47,250.00
C104: Basic Unit Cost | F104: =F102 -> 47,250.00 | G104: Per pole
C106: Contractor Overhead & Profit @ 25% | D106: = | F106: =F104*25% -> 11,812.50 | G106: Per pole
C107: Subtotal | F107: =SUM(F104:F106) -> 59,062.50 | G107: Per pole
C108: Income tax @ 7% | F108: =F107*7% -> 4,134.38 | G108: Per pole
C110: Net Unit Rate (RS) | F110: =F107+F108 -> 63,197 | G110: Per Pole
A112: RATE ANALYSIS
A113: =+A85 -> Project Name…..
A115: 12 Meter High Single Arm
A116: Measuring Unit | G116: Unit : 1 No
A117: Item Desc. | C117: Supply at site, complete installation of Galvanized Octagonal or steel tubular painted street Light poles including provision of concrete foundation as per standards, specifications, drawing and approval of the Engineer 12 Meter high Galvanized Octagonal or tubular poles with single arm for light installation
A120: A | C120: Material Cost
A121: (a) | C121: Market Price | F121: 50,000.00 | G121: Per pole
A122: (b) | C122: Transprtation Charges | D122: = | F122: 0 | G122: Per pole
A123: (c) | C123: Painting | D123: = | F123: 0 | G123: Per pole
C124: Total Material Cost (a ~ c) (RS) | D124: = | F124: =SUM(F121:F123) -> 50,000.00 | H124: --- (A)
A126: B | C126: Labour + Consumables Cost
C127: Installation Cost
C128: Unit rate | D128: = | E128: RS | F128: =F124*5% -> 2500.00 | G128: Per pole
C129: Total Labour Cost | D129: = | F129: =F128 -> 2,500.00 | H129: --- (B)
C130: Total Material + Labour Cost (A+B) (RS) | D130: = | F130: =F124+F129 -> 52,500.00
C132: Basic Unit Cost | F132: =F130 -> 52,500.00 | G132: Per pole
C134: Contractor Overhead & Profit @ 25% | D134: = | F134: =F132*25% -> 13,125.00 | G134: Per pole
C135: Subtotal | F135: =SUM(F132:F134) -> 65,625.00 | G135: Per pole
C136: Income tax @ 7% | F136: =F135*7% -> 4,593.75 | G136: Per pole
C138: Net Unit Rate (RS) | F138: =F135+F136 -> 70,219 | G138: Per Pole
A141: =+A112 -> RATE ANALYSIS
A142: =+A113 -> Project Name…..
A144: 12 Meter High Double Arm
A145: Measuring Unit | G145: Unit : 1 No
A146: Item Desc. | C146: Supply at site, complete installation of Galvanized Octagonal or steel tubular painted street Light poles including provision of concrete foundation as per standards, specifications, drawing and approval of the Engineer 12 Meter high Galvanized Octagonal or tubular poles with double arm for light installation
A149: A | C149: Material Cost
A150: (a) | C150: Market Price | F150: 55,000.00 | G150: Per pole
A151: (b) | C151: Transprtation Charges | D151: = | F151: 0 | G151: Per pole
A152: (c) | C152: Painting | D152: = | F152: 0 | G152: Per pole
C153: Total Material Cost (a ~ c) (RS) | D153: = | F153: =SUM(F150:F152) -> 55,000.00 | H153: --- (A)
A155: B | C155: Labour + Consumables Cost
C156: Installation Cost
C157: Unit rate | D157: = | E157: RS | F157: 2500.00 | G157: Per pole | K157: =2500/F153 -> 4.55%
C158: Total Labour Cost | D158: = | F158: =F157 -> 2,500.00 | H158: --- (B) | J158: 5.00% | K158: =F153*J158 -> 2,750.00
C159: Total Material + Labour Cost (A+B) (RS) | D159: = | F159: =F153+F158 -> 57,500.00
C161: Basic Unit Cost | F161: =F159 -> 57,500.00 | G161: Per pole
C163: Contractor Overhead & Profit @ 25% | D163: = | F163: =F161*25% -> 14,375.00 | G163: Per pole
C164: Subtotal | F164: =SUM(F161:F163) -> 71,875.00 | G164: Per pole
C165: Income tax @ 7% | F165: =F164*7% -> 5,031.25 | G165: Per pole
C167: Net Unit Rate (RS) | F167: =F164+F165 -> 76,906 | G167: Per Pole
A168: RATE ANALYSIS
A169: ROYAL ORCHARD MULTAN
A171: Solar Pole
A172: Measuring Unit | G172: Unit : 1 No
A173: Item Desc. | C173: Supply at site, complete installation of Solar pole complete in all respect
A176: A | C176: Material Cost
A177: (a) | C177: Market Price | F177: 45,000.00 | G177: Per pole
A178: (b) | C178: Transprtation Charges | D178: = | F178: 0 | G178: Per pole
A179: (c) | C179: Painting | D179: = | F179: 700.00 | G179: Per pole
C180: Total Material Cost (a ~ c) (RS) | D180: = | F180: =SUM(F177:F179) -> 45,700.00 | H180: --- (A)
A182: B | C182: Labour + Consumables Cost
C183: Installation Cost
C184: Unit rate | D184: = | E184: RS | F184: 1500.00 | G184: Per pole
C185: Total Labour Cost | D185: = | F185: =F184 -> 1,500.00 | H185: --- (B)
C186: Total Material + Labour Cost (A+B) (RS) | D186: = | F186: =F180+F185 -> 47,200.00
C188: Basic Unit Cost | F188: =F186 -> 47,200.00 | G188: Per pole
C190: Contractor Overhead & Profit @ 25% | D190: = | F190: =F188*25% -> 11,800.00 | G190: Per pole
C191: Subtotal | F191: =SUM(F188:F190) -> 59,000.00 | G191: Per pole
C192: Income tax @ 7% | F192: =F191*7% -> 4,130.00 | G192: Per pole
C194: Net Unit Rate (RS) | F194: =F191+F192 -> 63,130 | G194: Per Pole

Sheet Light Fixture
A1: =+Pole!A1 -> RATE ANALYSIS
A2: =+Pole!A2 -> Project Name…..
A4: LED Light 60 watt
A5: Measuring Unit | G5: Unit : 1 No
A6: Item Desc. | C6: Supply of the following light fixture complete LED Light 60 watt
A8: A | C8: Material Cost
A9: (a) | C9: Market Price LED LIGHT 60W | F9: 11,500.00
A10: (b) | C10: Lamp 250W | D10: = | F10: 0
A11: (c) | C11: Cable 3x4mm² (LT cable) | D11: = | E11: 12 mtr x Rs 800.00/mtr= | F11: =12*80 -> 960.00
C12: Total Material Cost (a ~ b) (RS) | D12: = | F12: =SUM(F9:F11) -> 12,460.00 | H12: --- (A)
A14: B | C14: Labour + Consumables Cost
C15: Installation Cost
C16: Unit rate | D16: = | E16: RS | F16: 1000.00 | G16: Per light
C17: Total Labour Cost | D17: = | F17: =F16*1 -> 1,000.00 | H17: --- (B)
C18: Total Material + Labour Cost (A+B) (RS) | D18: = | F18: =F12+F17 -> 13,460.00
C20: Basic Unit Cost | F20: =F18 -> 13,460.00 | G20: Per light
C22: Contractor Overhead & Profit @ 25% | D22: = | F22: =F20*25% -> 3,365.00 | G22: Per light
C23: Subtotal | F23: =SUM(F20:F22) -> 16,825.00 | G23: Per light
C24: Income tax @ 7% | F24: =F23*7% -> 1,177.75 | G24: Per light
C26: Net Unit Rate (RS) | F26: =F23+F24 -> 18,003 | G26: Per Light
A27: =+A1 -> RATE ANALYSIS
A28: =+A2 -> Project Name…..
A30: Fancy Light
A31: Measuring Unit | G31: Unit : 1 No
A32: Item Desc. | C32: Supply of the following light fixture complete Fancy Light 5 Globe
A35: A | C35: Material Cost
A36: (a) | C36: Market Price Fancy Light 5 Globe | F36: 30,000.00
A37: (b) | C37: Lamp 250W | D37: = | F37: 0
A38: (c) | C38: Cable 3x4mm² (LT cable) | D38: = | E38: 12 mtr x Rs 800.00/mtr= | F38: =12*80 -> 960.00
C39: Total Material Cost (a ~ b) (RS) | D39: = | F39: =SUM(F36:F38) -> 30,960.00 | H39: --- (A)
A41: B | C41: Labour + Consumables Cost
C42: Installation Cost
C43: Unit rate | D43: = | E43: RS | F43: 1250.00 | G43: Per light
C44: Total Labour Cost | D44: = | F44: =F43*1 -> 1,250.00 | H44: --- (B)
C45: Total Material + Labour Cost (A+B) (RS) | D45: = | F45: =F39+F44 -> 32,210.00
C47: Basic Unit Cost | F47: =F45 -> 32,210.00 | G47: Per light
C49: Contractor Overhead & Profit @ 25% | D49: = | F49: =F47*25% -> 8,052.50 | G49: Per light
C50: Subtotal | F50: =SUM(F47:F49) -> 40,262.50 | G50: Per light
C51: Income tax @ 7% | F51: =F50*7% -> 2,818.38 | G51: Per light
C53: Net Unit Rate (RS) | F53: =F50+F51 -> 43,081 | G53: Per Light
A55: =+A27 -> RATE ANALYSIS
A56: =+A28 -> Project Name…..
A58: Fancy Light
A59: Measuring Unit | G59: Unit : 1 No
A60: Item Desc. | C60: Supply of the following light fixture complete Fancy Light13 Globe
A63: A | C63: Material Cost
A64: (a) | C64: Market Price Fancy Light 13 Globe | F64: 65,000.00
A65: (b) | C65: Lamp 250W | D65: = | F65: 0
A66: (c) | C66: Cable 3x4mm² (LT cable) | D66: = | E66: 12 mtr x Rs 800.00/mtr= | F66: =12*80 -> 960.00
C67: Total Material Cost (a ~ b) (RS) | D67: = | F67: =SUM(F64:F66) -> 65,960.00 | H67: --- (A)
A69: B | C69: Labour + Consumables Cost
C70: Installation Cost
C71: Unit rate | D71: = | E71: RS | F71: 1400.00 | G71: Per light
C72: Total Labour Cost | D72: = | F72: =F71*1 -> 1,400.00 | H72: --- (B)
C73: Total Material + Labour Cost (A+B) (RS) | D73: = | F73: =F67+F72 -> 67,360.00
C75: Basic Unit Cost | F75: =F73 -> 67,360.00 | G75: Per light
C77: Contractor Overhead & Profit @ 25% | D77: = | F77: =F75*25% -> 16,840.00 | G77: Per light
C78: Subtotal | F78: =SUM(F75:F77) -> 84,200.00 | G78: Per light
C79: Income tax @ 7% | F79: =F78*7% -> 5,894.00 | G79: Per light
C81: Net Unit Rate (RS) | F81: =F78+F79 -> 90,094 | G81: Per Light
A83: =+A55 -> RATE ANALYSIS
A84: =+A56 -> Project Name…..
A86: Fancy Light
A87: Measuring Unit | G87: Unit : 1 No
A88: Item Desc. | C88: Supply of the following light fixture complete Fancy Light 31 Globe
A91: A | C91: Material Cost
A92: (a) | C92: Market Price Fancy Light 31 Globe | F92: 140,000.00
A93: (b) | C93: Lamp 250W | D93: = | F93: 0
A94: (c) | C94: Cable 3x4mm² (LT cable) | D94: = | E94: 12 mtr x Rs 800.00/mtr= | F94: =12*80 -> 960.00
C95: Total Material Cost (a ~ b) (RS) | D95: = | F95: =SUM(F92:F94) -> 140,960.00 | H95: --- (A)
A97: B | C97: Labour + Consumables Cost
C98: Installation Cost
C99: Unit rate | D99: = | E99: RS | F99: 1800.00 | G99: Per light
C100: Total Labour Cost | D100: = | F100: =F99*1 -> 1,800.00 | H100: --- (B)
C101: Total Material + Labour Cost (A+B) (RS) | D101: = | F101: =F95+F100 -> 142,760.00
C103: Basic Unit Cost | F103: =F101 -> 142,760.00 | G103: Per light
C105: Contractor Overhead & Profit @ 25% | D105: = | F105: =F103*25% -> 35,690.00 | G105: Per light
C106: Subtotal | F106: =SUM(F103:F105) -> 178,450.00 | G106: Per light
C107: Income tax @ 7% | F107: =F106*7% -> 12,491.50 | G107: Per light
C109: Net Unit Rate (RS) | F109: =F106+F107 -> 190,942 | G109: Per Light
A111: =+A83 -> RATE ANALYSIS
A112: =+A84 -> Project Name…..
A114: Fancy Light
A115: Measuring Unit | G115: Unit : 1 No
A116: Item Desc. | C116: Supply of the following light fixture complete Solar Light including Testing Commisioning
A119: A | C119: Material Cost
A120: (a) | C120: Market Price Solar Light with testing & Commisioning | F120: 69,500.00
A121: (b) | C121: Lamp 250W | D121: = | F121: 0
A122: (c) | C122: Cable 3x4mm² (LT cable) | D122: = | E122: 12 mtr x Rs 800.00/mtr= | F122: =12*80 -> 960.00
C123: Total Material Cost (a ~ b) (RS) | D123: = | F123: =SUM(F120:F122) -> 70,460.00 | H123: --- (A)
A125: B | C125: Labour + Consumables Cost
C126: Installation Cost
C127: Unit rate | D127: = | E127: RS | F127: 1800.00 | G127: Per light
C128: Total Labour Cost | D128: = | F128: =F127*1 -> 1,800.00 | H128: --- (B)
C129: Total Material + Labour Cost (A+B) (RS) | D129: = | F129: =F123+F128 -> 72,260.00
C131: Basic Unit Cost | F131: =F129 -> 72,260.00 | G131: Per light
C133: Contractor Overhead & Profit @ 25% | D133: = | F133: =F131*25% -> 18,065.00 | G133: Per light
C134: Subtotal | F134: =SUM(F131:F133) -> 90,325.00 | G134: Per light
C135: Income tax @ 7% | F135: =F134*7% -> 6,322.75 | G135: Per light
C137: Net Unit Rate (RS) | F137: =F134+F135 -> 96,648 | G137: Per Light

Sheet Tranformer Pad Foundations
A1: COST OF ONE NO. 100-200 KVA PAD MOUNTED TRANSFORMER FOUNDATION
A2: Project:
A3: Sr. No. | B3: Description | C3: No | D3: L | E3: B | F3: H | G3: Quantity | I3: Rate (Rs.) | J3: Amount (Rs.) | K3: Remarks | L3: Length | O3: width | R3: Height
A4: 1 | B4: Excavation | L4: mm | M4: in | N4: ft | O4: mm | P4: in | Q4: ft | R4: mm | S4: in | T4: ft
C5: 1 | D5: 8.000 | E5: 3.500 | F5: 4.500 | G5: =C5*D5*E5*F5 -> 126.000 | H5: Cft | L5: =2650 -> 2650 | M5: =L5/25 -> 106 | N5: =M5/12 -> 8.833333333 | O5: 1800 | P5: =O5/25 -> 72 | Q5: =P5/12 -> 6 | R5: =100+150+350+600 -> 1200 | S5: =R5/25 -> 48 | T5: =S5/12 -> 4
C6: Total Qty. | G6: =SUM(G5:G5) -> 126.000 | H6: Cft | I6: 5.77 | J6: =G6*I6 -> 727.02
A7: 2 | B7: Concrete
B8: Lean Concrete(1:4:8) | C8: 1 | D8: 8.830 | E8: 3.667 | F8: - | G8: =C8*D8*E8 -> 32.380 | H8: Sft | L8: =2650 -> 2650 | M8: =L8/25 -> 106 | N8: =M8/12 -> 8.833333333 | O8: 1100 | P8: =O8/25 -> 44 | Q8: =P8/12 -> 3.666666667 | R8: 100 | S8: =R8/25 -> 4 | T8: =S8/12 -> 0.3333333333
C9: Total Qty. | G9: =SUM(G8:G8) -> 32.380 | H9: Sft | I9: 173.99 | J9: =ROUND((G9*I9),0) -> 5,634.00
A10: 3 | B10: Concrete at E.L. 2.00' from Lean Bottom
B11: Concrete base at Section X-X (1:4:8) | C11: 2 | D11: 6.000 | E11: 0.170 | F11: - | G11: =C11*D11*E11 -> 2.040 | H11: Sft | L11: 1800 | M11: =L11/25 -> 72 | N11: =M11/12 -> 6 | O11: 50 | P11: =O11/25 -> 2 | Q11: =P11/12 -> 0.1666666667 | R11: 250 | S11: =R11/25 -> 10 | T11: =S11/12 -> 0.8333333333
B12: Concrete base at Section Y-Y (1:4:8) | C12: 1 | D12: 8.830 | E12: 3.300 | F12: - | G12: =C12*D12*E12 -> 29.139 | H12: Sft | L12: 2650 | M12: =L12/25 -> 106 | N12: =M12/12 -> 8.833333333 | O12: =1900-230-450-230 -> 990 | P12: =O12/25 -> 39.6 | Q12: =P12/12 -> 3.3 | R12: 250 | S12: =R12/25 -> 10 | T12: =S12/12 -> 0.8333333333
C13: Total Qty. | G13: =SUM(G10:G12) -> 31.179 | H13: Sft | I13: 173.99 | J13: =ROUND((G13*I13),0) -> 5,425.00
A14: 4 | B14: Concrete
B15: Concrete Base (1:2:4) | C15: 1 | D15: 8.167 | E15: 5.667 | F15: - | G15: =C15*D15*E15 -> 46.282 | H15: Sft | L15: 2450 | M15: =L15/25 -> 98 | N15: =M15/12 -> 8.166666667 | O15: 1700 | P15: =O15/25 -> 68 | Q15: =P15/12 -> 5.666666667 | R15: 450 | S15: =R15/25 -> 18 | T15: =S15/12 -> 1.5
C16: Total Qty. | G16: =SUM(G15:G15) -> 46.282 | H16: Sft | I16: 224.95 | J16: =ROUND((G16*I16),0) -> 10,411.00
A18: 5 | B18: Brick Masonry (9" thick)
B19: Section X-X | C19: 2 | D19: 8.167 | E19: 0.75 | F19: 3.667 | G19: =C19*D19*E19*F19 -> 44.923 | H19: cft | L19: 2450 | M19: =L19/25 -> 98 | N19: =M19/12 -> 8.166666667 | O19: 230 | P19: =O19/25 -> 9.2 | Q19: =P19/12 -> 0.7666666667 | R19: =150+350+600 -> 1100 | S19: =R19/25 -> 44 | T19: =S19/12 -> 3.666666667
B20: Section Y-Y | C20: 2 | D20: 1.500 | E20: 0.75 | F20: 3.667 | G20: =C20*D20*E20*F20 -> 8.251 | H20: cft | L20: 450 | M20: =L20/25 -> 18 | N20: =M20/12 -> 1.5 | O20: 230 | P20: =O20/25 -> 9.2 | Q20: =P20/12 -> 0.7666666667 | R20: =150+350+600 -> 1100 | S20: =R20/25 -> 44 | T20: =S20/12 -> 3.666666667
C21: Total Qty. | G21: =SUM(G19:G20) -> 53.173 | H21: Cft | I21: 186.57 | J21: =ROUND((G21*I21),0) -> 9,921.00
A22: 6 | B22: Plaster Work {Internal Plaster (12mm)}
B23: Section X-X | C23: 2 | D23: 6.630 | E23: 0 | F23: 3.667 | G23: =C23*D23*F23 -> 48.624 | H23: Sft | L23: 1990 | M23: =L23/25 -> 79.6 | N23: =M23/12 -> 6.633333333 | O23: 12 | P23: =O23/25 -> 0.48 | Q23: =P23/12 -> 0.04 | R23: =150+350+600 -> 1100 | S23: =R23/25 -> 44 | T23: =S23/12 -> 3.666666667
B24: Section Y-Y | C24: 2 | D24: 1.500 | E24: 0 | F24: 3.667 | G24: =C24*D24*F24 -> 11.001 | H24: Sft | L24: 450 | M24: =L24/25 -> 18 | N24: =M24/12 -> 1.5 | O24: 12 | P24: =O24/25 -> 0.48 | Q24: =P24/12 -> 0.04 | R24: =150+350+600 -> 1100 | S24: =R24/25 -> 44 | T24: =S24/12 -> 3.666666667
C25: Total Qty. | G25: =SUM(G23:G24) -> 59.625 | H25: Sft | I25: 19.29 | J25: =ROUND((G25*I25),0) -> 1,150.00
A26: 7 | B26: Pointing / Stucking (external)
B27: Section X-X | C27: 2 | D27: 8.167 | E27: 0 | F27: 3.667 | G27: =C27*D27*F27 -> 59.897 | H27: Sft | L27: 2450 | M27: =L27/25 -> 98 | N27: =M27/12 -> 8.166666667 | O27: 12 | P27: =O27/25 -> 0.48 | Q27: =P27/12 -> 0.04 | R27: =150+350+600 -> 1100 | S27: =R27/25 -> 44 | T27: =S27/12 -> 3.666666667
B28: Section Y-Y | C28: 2 | D28: 3.000 | E28: 0 | F28: 3.667 | G28: =C28*D28*F28 -> 22.002 | H28: Sft | L28: =450+230+230 -> 910 | M28: =L28/25 -> 36.4 | N28: =M28/12 -> 3.033333333 | O28: 12 | P28: =O28/25 -> 0.48 | Q28: =P28/12 -> 0.04 | R28: =150+350+600 -> 1100 | S28: =R28/25 -> 44 | T28: =S28/12 -> 3.666666667
C29: Total Qty. | G29: =SUM(G27:G28) -> 81.899 | H29: Sft | I29: 8.16 | J29: =G29*I29 -> 668.29
A30: 8 | B30: Y RAG bolt & Nut (22mm & 200mm long)
B31: Y RAG bolt & Nut (22mm & 200mm long) | C31: 4 | G31: =C31 -> 4.000 | H31: No | K31: Light pole foundation | L31: 200 | M31: =L31/25 -> 8 | N31: =M31/12 -> 0.6666666667 | O31: 12 | P31: =O31/25 -> 0.48 | Q31: =P31/12 -> 0.04 | R31: =150+350+600 -> 1100 | S31: =R31/25 -> 44 | T31: =S31/12 -> 3.666666667
C32: Total Qty. | G32: =SUM(G31:G31) -> 4.000 | H32: No | I32: 320.00 | J32: =G32*I32 -> 1,280.00
A33: 9 | B33: RCC Pipe (150 mm)
B34: RCC Pipe (150 mm) | C34: 4 | D34: 0.830 | G34: =C34*D34 -> 3.320 | H34: Rft | K34: RCC Pipe 6" Dia | L34: 150 | M34: =L34/25 -> 6 | N34: =M34/12 -> 0.5 | O34: 12 | P34: =O34/25 -> 0.48 | Q34: =P34/12 -> 0.04 | R34: =150+350+600 -> 1100 | S34: =R34/25 -> 44 | T34: =S34/12 -> 3.666666667
C35: Total Qty. | G35: =SUM(G34:G34) -> 3.320 | H35: Rft | I35: 444.30 | J35: =G35*I35 -> 1,475.08
B36: Labour Rate @ 3500/No | J36: 3,500.00 | K36: M.Akram File No.106
B37: Total Amount.(Rs.) | J37: =ROUND(SUM(J4:J36),0) -> 40,191.00

Sheet Material Calculation
A2: PREPRATION OF ITEM RATE ''EXCAVATION AND BACKFILL'' ( R.C.C Pipe)
B4: For 1.5M Depth
A5: A | B5: Excavation & Back filling
A6: 1. | B6: Excavation | D6: = | E6: 63.492*(0.300+0.450+0.300) x 1.50 | F6: = | G6: =63.492*1.05*1.5 -> 100.000 | H6: Cu.m
B7: Deduction
A8: 2. | B8: Pipe | C8: πd²/4 = 3.14*(0.450)/4 = 0.159SM | D8: = | E8: 57.72 x 0.159 | F8: = | G8: =-63.492*0.159 -> (10.095) | H8: Cu.m
A9: 3. | B9: Sand | D9: = | E9: 57.72*(0.300+0.450+0.300) x 0.150 | G9: =-63.492*1.05*0.15 -> (10.000) | H9: Cu.m
A11: 4. | B11: Backfilling | C11: 4 = 1-(2+3) | F11: = | G11: =SUM(G6:G9) -> 79.90 | H11: Cu.m

Sheet Material Rates
A2: PREPRATION OF ITEM RATE FOR 37mm THICK SAND CUSHION
A5: A | B5: 37mm thick sand cushion
B6: Material Analysis:
A7: 1. | B7: Volume in 1Sq.m | D7: = | E7: 3.281*3.281*0.1213 | F7: = | G7: =3.281*3.281*0.1213 -> 1.306 | H7: Cft / Sq.m
A8: 2. | B8: Add: 30% Copmaction | D8: = | E8: 1.306*30% | F8: = | G8: =G7*30% -> 0.39 | H8: Cft / Sq.m
A9: 3. | B9: Quantity used in 1 Sq.m (3 = 1+2) | F9: = | G9: =SUM(G7:G8) -> 1.70 | H9: Cft / Sq.m

Sheet C.Mortor13mm thick
A2: PREPRATION OF ITEM RATE USED FOR "CEMENT SAND MORTOR "
B5: 50mm Cement mortor Ratio 1:2
B7: Measuring Unit | I7: Sq. M
B10: DETAIL FOR 100 SQFT. OR 9.28 SQM.
A12: A | B12: Material Analysis:
A13: 1. | B13: Wet volume of Mortar | D13: = | E13: 100 x 1.969/12 | F13: = | G13: =100*1.969/12 -> 16.408 | H13: Cft
A14: 2. | B14: Add: 1/3rd for shrinkage | D14: = | E14: 16.408 x 1/3 | F14: = | G14: =16.408*1/3 -> 5.469 | H14: Cft
A15: 3. | B15: Sub-Total (Sr. # 1 & 2) | D15: = | E15: 16.408 + 5.469 | F15: = | G15: =SUM(G13:G14) -> 21.88 | H15: Cft
A16: 4. | B16: Add: 5% Wastage on Sr. # 3 | D16: = | E16: 21.88 x 5% | F16: = | G16: =21.88*5% -> 1.094 | H16: Cft
A17: 5. | B17: G-Total (Sr. # 3 & 4) | D17: = | E17: 21.88 + 1.094 | F17: = | G17: =SUM(G15:G16) -> 22.97 | H17: Cft
A19: a. | B19: Ratio of Mortar: | D19: = | E19: (1 : 2)
B20: Sum of Ratio | D20: = | E20: 1 + 2 = 3
A21: 1. | B21: Cement | D21: = | E21: (22.97/3)/1.25 | F21: = | G21: =(22.97/3)/1.25 -> 6.125 | H21: Bags
A22: 2. | B22: Sand Local | D22: = | E22: (22.97/3) x 2 | F22: = | G22: =(22.97/3)*2 -> 15.313 | H22: Cft

Sheet Material
A1: PREPRATION OF ITEM RATE
B6: Measuring Unit | H6: 100 Ru.M
B8: Concrete 1:2:4 Ratio
A11: A | B11: Material Analysis:
A12: 1. | B12: Wet Volume of Concrete (Bed) | D12: = | E12: 100.00 x 0.100 x 0.05 | G12: = | H12: =100*0.1*0.05 -> 0.500 | I12: M³
A13: 2. | B13: Wet Volume of Concrete (Sides) | D13: = | E13: 100.00 x 0.075 x (0.075 + 0.00)/2 | G13: = | H13: =100*0.075*(0.075+0)/2 -> 0.281 | I13: M³
A14: 3. | B14: Total Wet Volume of Concrete | D14: = | E14: 0.500+0.281 | G14: = | H14: =H12+H13 -> 0.781 | I14: M³
A15: 4. | B15: Dry Volume of Concete | D15: = | E15: 0.781 x 1.54 | G15: = | H15: =H14*1.54 -> 1.203 | I15: M³
A16: 3. | B16: Add. 5% Wastage on Sr. # 2 | D16: = | E16: 1.203 x 5% | G16: = | H16: =H15*0.05 -> 0.060 | I16: M³
A17: 4. | B17: G.Total (Sr. # 3 & 4) | D17: = | E17: 1.203+0.060 | G17: = | H17: =H15+H16 -> 1.263 | I17: M³ | L17: 0.045 | M17: =L17/35.315 -> 0.001274246071 | N17: =H17/M17 -> 991.40
B18: Ratio Of Mortar | D18: = | E18: (1:2:4)
B19: Sum of Ratio | D19: = | E19: 1+2+4 = 7
A20: i | B20: Cement | D20: = | E20: ((1.263 x 35.315)/7)/1.25 | G20: = | H20: =((H17*35.315)/7)/1.25 -> 5.10 | I20: Bags | K20: =H20*1350 -> 6,883.11
A21: ii | B21: Sand | D21: = | E21: ((1.263 x 35.315)/7) x 2 | G21: = | H21: =((H17*35.315)/7)*2 -> 12.747 | I21: Cft
A22: ii | B22: Crush | D22: = | E22: ((1.263 x 35.315)/7) x 4 | G22: = | H22: =((H17*35.315)/7)*4 -> 25.493 | I22: Cft
B24: Cement Mortor 1:3 Ratio
A26: A | B26: Material Analysis:
A27: 1. | B27: Wet Volume of Mortor (Bed) | D27: = | E27: 100.00 x 0.05 x 0.05 | G27: = | H27: =100*0.05*0.05 -> 0.250 | I27: M³
A28: 4. | B28: Dry Volume of Mortor | D28: = | E28: 0.250 x 1.27 | G28: = | H28: =H27*1.27 -> 0.318 | I28: M³
A29: 3. | B29: Add. 5% Wastage on Sr. # 2 | D29: = | E29: 0.318 x 5% | G29: = | H29: =H28*0.05 -> 0.016 | I29: M³
A30: 4. | B30: G.Total (Sr. # 2 & 3) | D30: = | E30: 0.318+0.016 | G30: = | H30: =H28+H29 -> 0.333 | I30: M³ | L30: 0.045 | M30: =L30/35.315 -> 0.001274246071 | N30: =H30/M30 -> 261.63
B31: Ratio Of Mortar | D31: = | E31: (1:3)
B32: Sum of Ratio | D32: = | E32: 1+3 = 4
A33: i | B33: Cement | D33: = | E33: ((0.333 x 35.315)/3)/1.25 | G33: = | H33: =((H30*35.315)/4)/1.25 -> 2.35 | I33: Bags | K33: =H33*1350 -> 3,178.75
A34: ii | B34: Sand | D34: = | E34: ((0.333 x 35.315)/7) x 2 | G34: = | H34: =((H30*35.315)/4)*3 -> 8.830 | I34: Cft
B36: Total Cement Used | H36: =H20+H33 -> 7.453 | I36: =I33 -> Bags
B37: Total Sand | H37: =H21+H34 -> 21.576 | I37: =I34 -> Cft
B38: Total Crush | H38: =H22 -> 25.493 | I38: =I37 -> Cft

Sheet Water Supply Valve Chamber
A1: VALVE CHAMBER
A2: Water Supply System
A3: Sr No | B3: Description | C3: No | D3: L | E3: B | F3: H | G3: Quantity | K3: Rate (Rs.) | L3: Amount (Rs.) | M3: Remarks
A4: 1 | B4: Excavation
B5: 4", H = 3+0.33+1+0.67+0.25 = 5.25' | C5: 1 | D5: 0.000 | E5: 0.000 | F5: =3+0.33+1+0.67+0.25 -> 5.250 | G5: 0.000
B6: 6", H = 3+0.5+1+0.67+0.25 = 5.42' | C6: 1 | D6: 0.000 | E6: 0.000 | F6: =3+0.5+1+0.67+0.25 -> 5.420 | G6: 0.000
B7: 8", H = 3+0.67+1+0.67+0.25 = 5.59' | C7: 1 | D7: 0.000 | E7: 0.000 | F7: =3+0.67+1+0.67+0.25 -> 5.590 | G7: 0.000
B8: 10", H = 3+0.83+1+0.67+0.25 = 5.75' | C8: 1 | D8: 0.000 | E8: 0.000 | F8: =3+0.83+1+0.67+0.25 -> 5.750 | G8: 0.000
B9: 12", H = 3+1+1+0.67+0.25 = 5.92' | C9: 1 | D9: 0.000 | E9: 0.000 | F9: =3+1+1+0.67+0.25 -> 5.920 | G9: 0.000
B10: Avg H = 5.586' | C10: 1 | D10: =0.333+0.75+3.5+0.75+0.333 -> 5.666 | E10: =0.333+0.75+3.5+0.75+0.333 -> 5.666 | F10: =AVERAGE(F5:F9) -> 5.586 | G10: =C10*D10*E10*F10 -> 179.330 | K10: 0 | L10: =G10*K10 -> 0
C11: Total Qty. | G11: =SUM(G10:G10) -> 179.330 | H11: Cft | I11: =G11/35.32 -> 5.077 | J11: CM | K11: 419.70 | L11: =I11*K11 -> 2,130.95
A12: 2 | B12: Lean Concrete
B13: Lean Bed | C13: 1 | D13: =0.333+0.75+3.5+0.75+0.333 -> 5.666 | E13: =0.333+0.75+3.5+0.75+0.333 -> 5.666 | F13: 0.250 | G13: =C13*D13*E13*F13 -> 8.026
C14: Total Qty. | G14: =SUM(G13) -> 8.026 | H14: Cft | I14: =G14/35.32 -> 0.227 | J14: CM | K14: 8,380.40 | L14: =I14*K14 -> 1,904.31
A15: 3 | B15: RCC Concrete Class A1
B16: Foundation/Base Slab | C16: 1 | D16: =0.75+3.5+0.75 -> 5.000 | E16: =0.75+3.5+0.75 -> 5.000 | F16: 0.667 | G16: =C16*D16*E16*F16 -> 16.675
B17: Pipe Support (9"x9"x1'-00") | C17: 1 | D17: 0.750 | E17: 0.750 | F17: 1.000 | G17: =C17*D17*E17*F17 -> 0.563
B18: Cover | C18: 1 | D18: =3.75/12+2 -> 2.313 | E18: =3.75/12+2 -> 2.313 | F18: =(0.25+0.333)/2 -> 0.292 | G18: =D18*F18 -> 0.674 | N18: =G18/35.32 -> 0.01908532701 | O18: =N18*K19 -> 193.23 | Q18: 69.25 | S18: 69.25
C19: Total Qty. | G19: =SUM(G16:G18) -> 17.912 | H19: Cft | I19: =G19/35.32 -> 0.507 | J19: CM | K19: 10,124.29 | L19: =I19*K19 -> 5,134.26 | N19: =3.5/1000 -> 0.0035 | O19: =N19*K39 -> 355.49
A20: 4 | B20: BRICK WORK (9"-1:4 C.S) | O20: =SUM(O18:O19) -> 548.72
B21: 4" | C21: 0 | D21: 0.000 | E21: 0.000 | F21: =4+0.33 -> 4.330 | G21: =C21*D21*E21*F21 -> 0.000
B22: 6" | C22: 0 | D22: 0.000 | E22: 0.000 | F22: =4+0.5 -> 4.500 | G22: 0.000
B23: 8" | C23: 0 | D23: 0.000 | E23: 0.000 | F23: =4+0.67 -> 4.670 | G23: 0.000
B24: 10" | C24: 0 | D24: 0.000 | E24: 0.000 | F24: =4+0.83 -> 4.830 | G24: 0.000
B25: 12" | C25: 0 | D25: 0.000 | E25: 0.000 | F25: =4+1 -> 5.000 | G25: 0.000
B26: Avg H = 5.000' | C26: 4 | D26: =0.75+3.5 -> 4.250 | E26: 0.750 | F26: 5.000 | G26: 63.750 | K26: 0 | L26: =G26*K26 -> 0
C27: Total Qty. | G27: =SUM(G26:G26) -> 63.750 | H27: Cft | I27: =G27/35.32 -> 1.805 | J27: CM | K27: 6,622.00 | L27: =I27*K27 -> 11,952.22
A28: 5 | B28: PLASTER INNER SIDE 1:4 C.S (12mm)
B29: 4" | C29: 4 | D29: 0.000 | E29: 0 | F29: =4+0.33 -> 4.33 | G29: =C29*D29*F29 -> 0.000
B30: 6" | C30: 4 | D30: 0.000 | E30: 0 | F30: =4+0.5 -> 4.50 | G30: =C30*D30*F30 -> 0.000
B31: 8" | C31: 4 | D31: 0.000 | E31: 0 | F31: =4+0.67 -> 4.67 | G31: 0.000
B32: 10" | C32: 4 | D32: 0.000 | E32: 0 | F32: =4+0.83 -> 4.83 | G32: 0.000
B33: 12" | C33: 4 | D33: 0.000 | E33: 0 | F33: =4+1 -> 5.00 | G33: 0.000
B34: Avg H = 4.666' | C34: 4 | D34: =3.5 -> 3.500 | E34: 0 | F34: =AVERAGE(F29:F33) -> 4.666 | G34: 65.324 | K34: 0 | L34: =G34*K34 -> 0
B35: Avg H = 4.666' | C35: 4 | D35: =3.5+0.75+0.75 -> 5.000 | E35: 0 | F35: 4.666 | G35: 93.320 | K35: 0 | L35: =G35*K35 -> 0
C36: Total Qty. | G36: =SUM(G29:G35) -> 158.644 | H36: Sft | I36: =G36/10.76 -> 14.744 | J36: SM | K36: 266.00 | L36: =I36*K36 -> 3,921.87 | Q36: 95.75 | S36: 95.75
A37: 6 | B37: Steel Reinforcement in RCC Cover | Q37: 95.75 | S37: 95.75
B38: Weight = 45.00kgs | C38: 1 | D38: 0 | E38: 0 | F38: 0 | G38: 45.000 | Q38: 25
C39: Total Qty. | G39: =SUM(G38) -> 45.000 | H39: Kg | I39: =G39/1000 -> 0.045 | J39: Ton | K39: 101,568.47 | L39: =I39*K39 -> 4,570.58 | Q39: 69.25 | S39: 69.25
A40: 7 | B40: Bitumen Coating | Q40: 95.75 | S40: 95.75
B41: Avg H = 4.666' | C41: 4 | D41: =3.5+0.75+0.75 -> 5.000 | E41: 0 | F41: 4.666 | G41: =C41*D41*F41 -> 93.320
C42: Total Qty. | G42: =SUM(G41) -> 93.320 | H42: Sft | I42: =G42/10.76 -> 8.673 | J42: SM | K42: 71.05 | L42: =I42*K42 -> 616.21 | Q42: 69.25 | S42: 69.25
B43: Treatment/Sealing of Pipe Joint | Q43: 95.75 | S43: 95.75
C44: 2 | D44: 0 | E44: 0 | F44: 0 | G44: =C44 -> 2.00 | H44: No | I44: =G44 -> 2.00 | J44: No
C45: Total Qty. | G45: =SUM(G44) -> 2.000 | H45: No | K45: 500.00 | L45: =G45*K45 -> 1,000.00 | Q45: 69.25 | S45: 69.25
B46: Precast Cover(2.312 x 2.312) | Q46: 95.75 | S46: 95.75
C47: 1 | D47: 2.312 | E47: 2.312 | F47: 0 | G47: =C47*D47*E47 -> 5.345 | H47: Sft
C48: Total Qty. | G48: =SUM(G47) -> 5.345 | H48: Sft | I48: =G48/10.76 -> 0.497 | J48: SM | K48: 691.65 | L48: =G48*K48 -> 3,697.11 | Q48: 69.25 | S48: 69.25
B49: Angle Iron for neck | Q49: 95.75 | S49: 95.75
B50: L = 2.312 x 4 = 9.250 | C50: 1 | D50: 9.250 | E50: 0 | F50: 0 | G50: =C50*D50 -> 9.25 | I50: 0
C51: Total Qty. | G51: =SUM(G50) -> 9.250 | H51: Rft | K51: 78.00 | L51: =G51*K51 -> 721.50 | Q51: 69.25 | S51: 69.25
B52: Total Amount.(Rs.) | L52: =SUM(L4:L51) -> 35,649.00
L54: =L52*1.4 -> 49,908.60

Sheet Tiles Material Analysis
A2: CALCULATION OF MATERIAL USED FOR "FLOOR & WALL TILES "
B7: Material Analysis:
A10: A | B10: Tile Bond
A11: 1. | B11: Tile Bond 1No bag | D11: = | E11: 20 Kg | L11: (1.65+5.58)/2
A12: 1.1. | B12: Avg. Coverage of 1 No bag as per Stile bond | D12: = | E12: 2.5 ~ 3.5 = 3.00 Sq.m /Bag
A13: 1.2. | B13: Used material in 1 Sq.m | D13: = | E13: 20.00Kg/3.00 | F13: = | G13: =20/3 -> 6.667 | H13: Kg/Sq.m
A15: 2. | B15: Markeet Rate per Bag | D15: = | E15: 275.00 Rs/Bag
A16: 2.1 | B16: Rate per Kg | F16: = | G16: =275/20 -> 13.750 | H16: Rs./Kg
A18: B | B18: Grout Stile
A19: 1. | B19: Packing | D19: = | E19: 1 Kg/Bottle
A20: 2. | B20: Avg. Coverage of 1 Kg as per tile size------ | D20: = | E20: 13.00 Sq.m/Kg
A21: 3. | B21: Used material in 1 Sq.m | D21: = | E21: 1/13.0 | F21: = | G21: =1/13 -> 0.077 | H21: Kg/Sq.m
A23: 2. | B23: Markeet Rate per Bottle | D23: = | E23: 150.00 Rs./bottle or 1Kg
A24: 2.1 | B24: Rate per Kg | F24: = | G24: 150.00 | H24: Rs./Kg
A26: 3. | B26: Material transportion
A28: 3.1 | B28: Pickup capsity | D28: = | E28: 1500 Kg
A29: 3.2 | B29: Weight of tiles for 1 trip of pick | D29: = | E29: 100 No. of packet of tile
A30: 3.3 | B30: Weight of one packcket | D30: = | E30: 10 Kg
A31: 3.4 | B31: Area of tiles for one load (100*4 nos Tiles 2'x2') | D31: = | E31: 100*4*2*2 =1600.00 Sft
A32: 3.5 | B32: Carridge amount of one load | D32: = | E32: 1200.0 Rs/Load
A33: 3.6 | B33: Carridge rate per sft (Load cost/T.Area) | D33: = | E33: 1200.00/1600.00 | F33: = | G33: =1000/1600 -> 0.63 | H33: Rs./Sft
F34: = | G34: =G33*10.76 -> 6.73 | H34: Rs./Sq.m
A35: 4 | B35: Granite Stair Steps
A36: 4.1. | B36: Stair Steps length | D36: = | E36: 4.00 ft
A37: 4.2. | B37: Area of Stair steps (19 No.) | D37: = | E37: 114 Sft | L37: (1.65+5.58)/2
A38: 4.3. | B38: Qty. of Gola steps (17 No) | D38: = | E38: 17 x 4 = 68 Rft /17 Steps
A39: 4.4. | B39: Gola used in 1 Sft | D39: = | E39: 68.00 Rft/ 114 .00 Sft | F39: = | G39: =68/114 -> 0.596 | H39: Rft/Sft
F40: = | G40: =G39*10.76 -> 6.418 | H40: Rft/Sq.m
G41: =G40*9.28 -> 59.56 | H41: Rft/9.28 Sq.m
A43: 5 | B43: Tile Skirting
A44: 5.1. | B44: Tile skirting 4'' wide | D44: = | E44: 4 Inch or 100 mm | K44: =4*25.4 -> 101.6
A45: 5.2. | B45: Area in 1 Ru.m | D45: = | E45: 1*0.100 | F45: = | G45: =1*0.1 -> 0.100 | H45: Sq.m
A46: 5.3. | B46: Qty for 30 Ru.m | D46: = | E46: 0.100*30 | F46: = | G46: =G45*30 -> 3.000 | H46: Sq.m | K46: =2*0.33 -> 0.66
A48: 5.4 | B48: Rate per Sq.m | D48: = | E48: 1650.00 Rs./Sq.m | K48: =2*0.33 -> 0.66
A49: 5.4 | B49: Rate per Ru.m | D49: = | E49: 0.100*1650.00 | F49: = | G49: =0.1*1650 -> 165.00 | H49: Rs./Ru.m
A51: 6 | B51: Granite Skirting
A52: =A51+0.1 -> 6.1 | B52: Granite Skirting 4'' wide | D52: = | E52: 4 Inch or 100 mm | K52: =4*25.4 -> 101.6
A53: =A52+0.1 -> 6.2 | B53: Area in 1 Ru.m | D53: = | E53: 1*0.100 | F53: = | G53: =1*0.1 -> 0.100 | H53: Sq.m
A54: =A53+0.1 -> 6.3 | B54: Qty for 30 Ru.m | D54: = | E54: 0.100*30 | F54: = | G54: =G53*30 -> 3.000 | H54: Sq.m | K54: =2*0.33 -> 0.66
A56: =A54+0.1 -> 6.4 | B56: Rate per Sq.m | D56: = | E56: 600.00 Rs./Sq.m | K56: =2*0.33 -> 0.66
A57: =A56+0.1 -> 6.5 | B57: Rate per Ru.m | D57: = | E57: 0.100*600.00 | F57: = | G57: =0.1*600 -> 60.00 | H57: Rs./Ru.m
B63: 50mm Cement mortor Ratio 1:2
B65: Measuring Unit | I65: Sq. M
B68: DETAIL FOR 100 SQFT. OR 9.28 SQM.
A70: C | B70: Material Analysis:
A71: 1. | B71: Wet volume of Mortar | D71: = | E71: 100 x 1.969/12 | F71: = | G71: =100*1.969/12 -> 16.408 | H71: Cft
A72: 2. | B72: Add: 1/3rd for shrinkage | D72: = | E72: 16.408 x 1/3 | F72: = | G72: =16.408*1/3 -> 5.469 | H72: Cft
A73: 3. | B73: Sub-Total (Sr. # 1 & 2) | D73: = | E73: 16.408 + 5.469 | F73: = | G73: =SUM(G71:G72) -> 21.88 | H73: Cft
A74: 4. | B74: Add: 5% Wastage on Sr. # 3 | D74: = | E74: 21.88 x 5% | F74: = | G74: =21.88*5% -> 1.094 | H74: Cft
A75: 5. | B75: G-Total (Sr. # 3 & 4) | D75: = | E75: 21.88 + 1.094 | F75: = | G75: =SUM(G73:G74) -> 22.97 | H75: Cft
A77: a. | B77: Ratio of Mortar: | D77: = | E77: (1 : 2)
B78: Sum of Ratio | D78: = | E78: 1 + 2 = 3
A79: 1. | B79: Cement | D79: = | E79: (22.97/3)/1.25 | F79: = | G79: =(22.97/3)/1.25 -> 6.125 | H79: Bags
A80: 2. | B80: Sand Local | D80: = | E80: (22.97/3) x 2 | F80: = | G80: =(22.97/3)*2 -> 15.313 | H80: Cft

Sheet M.H 4'dia (Type-I)
D1: Project Name | J1: Manhole #
E2: CIVIL INFRASTRUCTURE WORKS | J2: Road Name :
D3: RATE ANALYSIS INCLUDED LABOR | J3: Sewer Line (Ø) | K3: 0.67 ft
A4: Manhole Data;
B5: Manhole Inner dia(Ø) | C5: 4.00 ft | D5: Depth of Manhole, | E5: 6.00 ft | F5: Wall Thick-I | G5: 0.75 ft | H5: Wall Thick-II | I5: =13.5/12 -> 1.125 ft | J5: MH Type-I | K5: Assumed Quantity, | L5: 1
A7: Sr.# | B7: Item of Works | D7: ABSTRACT OF QUANTIES | J7: RATE ANALYSIS
B8: Decription of items | D8: No. | E8: Length (ft) | F8: width (ft) | G8: Height (ft) | H8: Unit | I8: Qty | J8: Unit Rate | K8: Amount | N8: Total Qty | O8: Total Rs.
A9: 1 | B9: Excavation
B10: Excavation | D10: =+L5 -> 1 | E10: =+C5+3.5+0.75 -> 8.25 | F10: =+E10 -> 8.25 | G10: =+E5 -> 6.00 | I10: =PRODUCT(D10:G10) -> 408.38 | J10: 12.00 | K10: =I11*J10 -> 4,900.50
B11: Qty | D11: Total: | H11: Cft | I11: =SUM(I10:I10) -> 408.38 | L11: =+K10/$K$55 -> 6% | N11: =+I11*$J$56 -> 79,633.13 | O11: =+I11*J10*$J$56 -> 955,598
A12: =A9+1 -> 2 | B12: Dressing of bed
B13: Dressing of bed | D13: =D10 -> 1 | E13: =+E10 -> 8.25 | F13: =((3.14*(($E$10-0.75)*($E$10-0.75))/4)) -> 44.16 | I13: =PRODUCT(D13:G13) -> 364.29 | J13: 4.00 | K13: =I14*J13 -> 1,457.16
B14: Qty | D14: Total: | H14: Sft | I14: =SUM(I13:I13) -> 364.29 | L14: =+K13/$K$55 -> 2% | N14: =+I14*$J$56 -> 71,036.37 | O14: =+I14*J13*$J$56 -> 284,145
A15: 3 | B15: Crurshed Stone Bedding
B16: Crurshed Bedding 1" Down | D16: =D10 -> 1 | E16: Area= | F16: =+F13 -> 44.16 | G16: 0.50 | I16: =PRODUCT(D16:G16) -> 22.08 | J16: 140.00 | K16: =I17*J16 -> 3,090.94
B17: Qty | D17: Total: | H17: Cft | I17: =SUM(I16:I16) -> 22.08 | L17: =+K16/$K$55 -> 4% | N17: =+I17*$J$56 -> 4,305.23 | O17: =+I17*J16*$J$56 -> 602,733
A18: =+A15+1 -> 4 | B18: PCC Concrete 1:4:8
B19: Base Concrete 1:4:8 | D19: =D13 -> 1 | E19: Area= | F19: =((3.14*(($E$10-1.75)*($E$10-1.75))/4)) -> 33.17 | G19: 0.75 | I19: =PRODUCT(D19:G19) -> 24.87 | J19: 280.00 | K19: =I20*J19 -> 6,964.91
B20: Qty | D20: Total: | H20: Cft | I20: =SUM(I19:I19) -> 24.87 | L20: =+K19/$K$55 -> 9% | N20: =+I20*$J$56 -> 4,850.56 | O20: =+I20*J19*$J$56 -> 1,358,158
A21: =+A18+1 -> 5 | B21: Pacca Brick Work with 1:3 C/S Mortar
B22: Wall (Circular) | D22: 0 | E22: =3.142*($C$5+$I$5) -> 16.10 | F22: =+I5 -> 1.13 | I22: =PRODUCT(D22:G22) -> 0.00 | J22: 420.00 | K22: =+I25*J22 -> 16,319.78 | N22: =3.14*4 -> 12.56
B23: Wall (Circular) | D23: =+D19 -> 1 | E23: =3.142*($C$5+$I$5) -> 16.10 | F23: =$G$5 -> 0.75 | G23: =+G10-G16-G19-G24-G37 -> 1.25 | I23: =PRODUCT(D23:G23) -> 15.10
B24: Wall (Dome) | D24: =D23 -> 1 | E24: =((3.142*($C$5+$G$5))+(3.142*(1.833+$G$5)))/2 -> 11.52 | F24: =$G$5 -> 0.75 | G24: 2.75 | I24: 23.76
B25: Qty | D25: Total: | H25: Cft | I25: =SUM(I22:I24) -> 38.86 | L25: =+K22/$K$55 -> 21% | N25: =+I25*$J$56 -> 7,577.04 | O25: =+I25*J22*$J$56 -> 3,182,357
A26: =+A21+1 -> 6 | B26: Plaster Work with 1:3 C/S Mortar
B27: Wall (Circular) Outer Side | D27: =D24 -> 1 | E27: =3.142*(+$C$5+$G$5+$G$5) -> 17.28 | G27: =+G23 -> 1.25 | I27: =PRODUCT(D27:G27) -> 21.60 | J27: 48.00 | K27: =+I31*J27 -> 4,832.26
B28: Wall (Dome) Outer Side | D28: =D27 -> 1 | E28: =((3.142*($C$5+$G$5+$G$5))+(3.142*(1.833+$G$5+$G$5)))/2 -> 13.88 | G28: =+G24 -> 2.75 | I28: =PRODUCT(D28:G28) -> 38.16
B29: Wall (Circular) inner Side | D29: 1 | E29: =3.142*(4) -> 12.57 | G29: =+G27 -> 1.25 | I29: =PRODUCT(D29:G29) -> 15.71
B30: Wall (Dome Inner Side | D30: 1 | E30: =((3.142*(4))+(3.142*(1.833)))/2 -> 9.16 | G30: =+G28 -> 2.75 | I30: =PRODUCT(D30:G30) -> 25.20
B31: Qty | D31: Total: | H31: Sft | I31: =SUM(I27:I30) -> 100.67 | L31: =+K27/$K$55 -> 6% | N31: =+I31*$J$56 -> 19,631.05 | O31: =+I31*J27*$J$56 -> 942,290
A32: =+A26+1 -> 7 | B32: Bituman Coating (2 Coats)
B33: Wall (Circular) Outer Side | D33: 2 | E33: =+E27 -> 17.28 | G33: =+G27 -> 1.25 | I33: =PRODUCT(D33:G33) -> 43.20 | J33: 14.00 | K33: =I35*J33 -> 1,673.34
B34: Wall (Dome) Outer Side | D34: =D33 -> 2 | E34: =+E28 -> 13.88 | G34: =+G28 -> 2.75 | I34: =PRODUCT(D34:G34) -> 76.32
B35: Qty | D35: Total: | H35: Sft | I35: =SUM(I33:I34) -> 119.52 | L35: =+K33/$K$55 -> 2% | N35: =+I35*$J$56 -> 23,307.19 | O35: =+I35*J33*$J$56 -> 326,301
A36: =+A32+1 -> 8 | B36: Concrete 1:2:4
B37: Top Cover Slab | D37: =D24 -> 1 | E37: Area= | F37: =((3.14*(3.83*3.83))/4) -> 11.52 | G37: 0.75 | I37: =PRODUCT(D37:G37) -> 8.64 | J37: 450.00 | K37: =I41*J37 -> 9,471.68
B38: D/d of Manhole Cover | D38: -1 | E38: Area= | F38: =((3.14*(1.83*1.83))/4) -> 2.63 | G38: 0.75 | I38: =PRODUCT(D38:G38) -> -1.97
B39: Beching PCC | D39: =+D37 -> 1 | E39: Area= | F39: =((3.14*(C5*C5))/4) -> 12.56 | G39: =0.33+($K$3+0.16) -> 1.16 | I39: =PRODUCT(D39:G39) -> 14.53
B40: D/d of Pipe | D40: -1 | E40: Area= | F40: =((3.14*(K3*K3))/4)/2 -> 0.17 | G40: =($K$3+0.16) -> 0.83 | I40: =PRODUCT(D40:G40) -> -0.14
B41: Qty | D41: Total: | H41: Cft | I41: =SUM(I37:I40) -> 21.05 | L41: =+K37/$K$55 -> 12% | N41: =+I41*$J$56 -> 4,104.39 | O41: =+I41*J37*$J$56 -> 1,846,977
A42: =+A36+1 -> 9 | B42: Manhole Cover 22" dia
B43: 22" dia MH Cover | D43: 1 | I43: =PRODUCT(D43:G43) -> 1.00 | J43: =5050+12185 -> 17235.00 | K43: =I44*J43 -> 17,235.00
B44: Qty | D44: Total: | H44: No | I44: =SUM(I43:I43) -> 1.00 | L44: =+K43/$K$55 -> 22% | N44: =+I44*$J$56 -> 195.00 | O44: =+I44*J43*$J$56 -> 3,360,825
A45: =+A42+1 -> 10 | B45: Malleable Iron Step
B46: Iron Step @1' C/C | D46: 1 | F46: Brick Work Height | G46: =+(G23+G24)-1 -> 3.00 | I46: =ROUND(G46,0) -> 3.00 | J46: 1550.00 | K46: =I47*J46 -> 4,650.00
B47: Qty | D47: Total: | H47: No | I47: =SUM(I46:I46) -> 3.00 | L47: =+K46/$K$55 -> 6% | N47: =+I47*$J$56 -> 585.00 | O47: =+I47*J46*$J$56 -> 906,750
A48: =+A45+1 -> 11 | B48: Backfill
B49: Backfill (Total Excavation) | D49: =+D10 -> 1 | G49: =I11 -> 408.38 | I49: =PRODUCT(D49:G49) -> 408.38 | J49: 32.00 | K49: =I51*J49 -> 8,508.72
B50: D/d of Manhole | D50: -1 | E50: Area | F50: =3.14*(($C$5+$G$5+$G$5)*($C$5+$G$5+$G$5))/4 -> 23.75 | G50: =+G10 -> 6.00 | I50: =PRODUCT(D50:G50) -> -142.48
B51: Qty | D51: Total: | H51: Cft | I51: =SUM(I49:I50) -> 265.90 | L51: =+K49/$K$55 -> 11% | N51: =+I51*$J$56 -> 51,850.01 | O51: =+I51*J49*$J$56 -> 1,659,200
L52: =SUM(L10:L51) -> 100%
I53: Cost for 10 Rft
I54: Overhead 10%
I55: Total Cost = | K55: =SUM(K9:K54) -> 79,104
I56: Total of Manhole= | J56: =+[17]Summary!E6 -> 195 | K56: No's
I57: Grand Total Cost= | K57: =+K55*J56 -> 15,425,335 | N57: =SUM(N9:N56) -> 267,087.53 | O57: =SUM(O9:O56) -> 15,425,335

Sheet M.H 5'dia (Type-VI
D1: Project Name | J1: Manhole #
E2: CIVIL INFRASTRUCTURE WORKS | J2: Road Name :
D3: RATE ANALYSIS INCLUDED LABOR | J3: Sewer Line (Ø) | K3: 1.17 ft
A4: Manhole Data;
B5: Manhole Inner dia(Ø) | C5: 5.00 ft | D5: Depth of Manhole, | E5: 17.00 ft | F5: Wall Thick-I | G5: 0.75 ft | H5: Wall Thick-II | I5: =13.5/12 -> 1.125 ft | J5: MH Type-VI | K5: Assumed Quantity, | L5: 1
A7: Sr.# | B7: Item of Works | D7: ABSTRACT OF QUANTIES | J7: RATE ANALYSIS
B8: Decription of items | D8: No. | E8: Length (ft) | F8: width (ft) | G8: Height (ft) | H8: Unit | I8: Qty | J8: Unit Rate | K8: Amount | N8: Total Qty | O8: Total Rs.
A9: 1 | B9: Excavation
B10: Excavation | D10: =+L5 -> 1 | E10: =+C5+4.25+0.75 -> 10.00 | F10: =+E10 -> 10.00 | G10: =+E5 -> 17.00 | I10: =PRODUCT(D10:G10) -> 1700.00 | J10: 12.00 | K10: =I11*J10 -> 20,400.00
B11: Qty | D11: Total: | H11: Cft | I11: =SUM(I10:I10) -> 1700.00 | L11: =+K10/$K$57 -> 8% | N11: =+I11*$J$58 -> 39,100.00 | O11: =+I11*J10*$J$58 -> 469,200
A12: =A9+1 -> 2 | B12: Dressing of bed
B13: Dressing of bed | D13: =D10 -> 1 | E13: =+E10 -> 10.00 | F13: =((3.14*(($E$10-0.75)*($E$10-0.75))/4)) -> 67.17 | I13: =PRODUCT(D13:G13) -> 671.67 | J13: 4.00 | K13: =I14*J13 -> 2,686.66
B14: Qty | D14: Total: | H14: Sft | I14: =SUM(I13:I13) -> 671.67 | L14: =+K13/$K$57 -> 1% | N14: =+I14*$J$58 -> 15,448.31 | O14: =+I14*J13*$J$58 -> 61,793
A15: 3 | B15: Crurshed Stone Bedding
B16: Crurshed Bedding 1" Down | D16: =D10 -> 1 | E16: Area= | F16: =+F13 -> 67.17 | G16: 1.00 | I16: =PRODUCT(D16:G16) -> 67.17 | J16: 140.00 | K16: =I17*J16 -> 9,403.32
B17: Qty | D17: Total: | H17: Cft | I17: =SUM(I16:I16) -> 67.17 | L17: =+K16/$K$57 -> 4% | N17: =+I17*$J$58 -> 1,544.83 | O17: =+I17*J16*$J$58 -> 216,276
A18: =+A15+1 -> 4 | B18: PCC Concrete 1:4:8
B19: Base Concrete 1:4:8 | D19: =D13 -> 1 | E19: Area= | F19: =((3.14*(($E$10-1.75)*($E$10-1.75))/4)) -> 53.43 | G19: 0.75 | I19: =PRODUCT(D19:G19) -> 40.07 | J19: 280.00 | K19: =I20*J19 -> 11,220.10
B20: Qty | D20: Total: | H20: Cft | I20: =SUM(I19:I19) -> 40.07 | L20: =+K19/$K$57 -> 5% | N20: =+I20*$J$58 -> 921.65 | O20: =+I20*J19*$J$58 -> 258,062
A21: =+A18+1 -> 5 | B21: Pacca Brick Work with 1:3 C/S Mortar
B22: Wall (Circular) | D22: 1 | E22: =3.142*($C$5+$I$5) -> 19.24 | F22: =+I5 -> 1.13 | G22: =+$G$10-$G$16-$G$19-G23-G23 -> 4.75 | I22: =PRODUCT(D22:G22) -> 102.84 | J22: 420.00 | K22: =+I25*J22 -> 84,410.11
B23: Wall (Circular) | D23: =+D19 -> 1 | E23: =3.142*($C$5+$G$5) -> 18.07 | F23: =$G$5 -> 0.75 | G23: =8-G24 -> 5.25 | I23: =PRODUCT(D23:G23) -> 71.14
B24: Wall (Dome) | D24: =D23 -> 1 | E24: =((3.142*($C$5+$G$5))+(3.142*(1.833+$G$5)))/2 -> 13.09 | F24: =$G$5 -> 0.75 | G24: 2.75 | I24: 27.00
B25: Qty | D25: Total: | H25: Cft | I25: =SUM(I22:I24) -> 200.98 | L25: =+K22/$K$57 -> 35% | N25: =+I25*$J$58 -> 4,622.46 | O25: =+I25*J22*$J$58 -> 1,941,433
A26: =+A21+1 -> 6 | B26: Plaster Work with 1:3 C/S Mortar
B27: Wall (Circular) Outer Side | D27: =D24 -> 1 | E27: =3.142*(+$C$5+$I$5+$I$5) -> 22.78 | G27: =+G22 -> 4.75 | I27: =PRODUCT(D27:G27) -> 108.20 | J27: 48.00 | K27: =+I32*J27 -> 20,087.92
B28: Wall (Circular) Outer Side | D28: =+D27 -> 1 | E28: =3.142*(+$C$5+$G$5+$G$5) -> 20.42 | G28: =+G23 -> 5.25 | I28: =PRODUCT(D28:G28) -> 107.22
B29: Wall (Dome) Outer Side | D29: =D27 -> 1 | E29: =((3.142*($C$5+$G$5+$G$5))+(3.142*(1.833+$G$5+$G$5)))/2 -> 15.45 | G29: =+G24 -> 2.75 | I29: =PRODUCT(D29:G29) -> 42.48
B30: Wall (Circular) inner Side | D30: 1 | E30: =3.142*($C$5) -> 15.71 | G30: =+G27+G28-G43 -> 8.34 | I30: =PRODUCT(D30:G30) -> 131.07
B31: Wall (Dome Inner Side | D31: =D30 -> 1 | E31: =((3.142*($C$5))+(3.142*(1.833)))/2 -> 10.73 | G31: =+G29 -> 2.75 | I31: =PRODUCT(D31:G31) -> 29.52
B32: Qty | D32: Total: | H32: Sft | I32: =SUM(I27:I31) -> 418.50 | L32: =+K27/$K$57 -> 8% | N32: =+I32*$J$58 -> 9,625.46 | O32: =+I32*J27*$J$58 -> 462,022
A33: =+A26+1 -> 7 | B33: Bituman Coating
B34: Wall (Circular) Outer Side | D34: =D50 -> 1 | E34: =+E27 -> 22.78 | G34: =+G27 -> 4.75 | I34: =PRODUCT(D34:G34) -> 108.20 | J34: 14.00 | K34: =I39*J34 -> 3,610.66
B35: Wall (Circular) Outer Side | D35: =+D34 -> 1 | E35: =+E28 -> 20.42 | G35: =+G28 -> 5.25 | I35: =PRODUCT(D35:G35) -> 107.22
B36: Wall (Dome) Outer Side | D36: =D34 -> 1 | E36: =+E29 -> 15.45 | G36: =+G29 -> 2.75 | I36: =PRODUCT(D36:G36) -> 42.48
B37: Wall (Circular) inner Side | D37: 0 | E37: =+E30 -> 15.71 | G37: =+G30 -> 8.34 | I37: =PRODUCT(D37:G37) -> 0.00
B38: Wall (Dome Inner Side | D38: =+D37 -> 0 | E38: =+E31 -> 10.73 | G38: =+G31 -> 2.75 | I38: =PRODUCT(D38:G38) -> 0.00
B39: Qty | D39: Total: | H39: Sft | I39: =SUM(I34:I38) -> 257.90 | L39: =+K34/$K$57 -> 1% | N39: =+I39*$J$58 -> 5,931.80 | O39: =+I39*J34*$J$58 -> 83,045
A40: =+A33+1 -> 8 | B40: Concrete 1:2:4
B41: Top Cover Slab | D41: =D24 -> 1 | E41: Area= | F41: =((3.14*(3.83*3.83))/4) -> 11.52 | G41: 0.75 | I41: =PRODUCT(D41:G41) -> 8.64 | J41: 450.00 | K41: =I45*J41 -> 17,310.59
B42: D/d of Manhole Cover | D42: -1 | E42: Area= | F42: =((3.14*(1.83*1.83))/4) -> 2.63 | G42: 0.75 | I42: =PRODUCT(D42:G42) -> -1.97
B43: Beching PCC | D43: =+D41 -> 1 | E43: Area= | F43: =((3.14*(C5*C5))/4) -> 19.63 | G43: =0.33+($K$3+0.16) -> 1.66 | I43: =PRODUCT(D43:G43) -> 32.51
B44: D/d of Pipe | D44: -1 | E44: Area= | F44: =((3.14*(K3*K3))/4)/2 -> 0.53 | G44: =($K$3+0.16) -> 1.33 | I44: =PRODUCT(D44:G44) -> -0.71
B45: Qty | D45: Total: | H45: Cft | I45: =SUM(I41:I44) -> 38.47 | L45: =+K41/$K$57 -> 7% | N45: =+I45*$J$58 -> 884.76 | O45: =+I45*J41*$J$58 -> 398,144
A46: =+A40+1 -> 9 | B46: Manhole Cover 22" dia
B47: 22" dia MH Cover | D47: 1 | I47: =PRODUCT(D47:G47) -> 1.00 | J47: 17235.00 | K47: =I48*J47 -> 17,235.00
B48: Qty | D48: Total: | H48: No | I48: =SUM(I47:I47) -> 1.00 | L48: =+K47/$K$57 -> 7% | N48: =+I48*$J$58 -> 23.00 | O48: =+I48*J47*$J$58 -> 396,405
A49: =+A46+1 -> 10 | B49: Malleable Iron Step
B50: Iron Step @1' C/C | D50: 1 | F50: Brick Work Height | G50: =+(+G22+G23+G24)-1 -> 11.75 | I50: =ROUND(G50,0) -> 12.00 | J50: 1550.00 | K50: =I51*J50 -> 18,600.00
B51: Qty | D51: Total: | H51: No | I51: =SUM(I50:I50) -> 12.00 | L51: =+K50/$K$57 -> 8% | N51: =+I51*$J$58 -> 276.00 | O51: =+I51*J50*$J$58 -> 427,800
A52: =+A49+1 -> 11 | B52: Backfill
B53: Backfill (Total Excavation) | D53: =+D10 -> 1 | G53: =I11 -> 1700.00 | I53: =PRODUCT(D53:G53) -> 1700.00 | J53: 32.00 | K53: =I55*J53 -> 36,357.56
B54: D/d of Manhole | D54: -1 | E54: Area | F54: =3.14*(($C$5+$G$5+$G$5)*($C$5+$G$5+$G$5))/4 -> 33.17 | G54: =+G10 -> 17.00 | I54: =PRODUCT(D54:G54) -> -563.83
B55: Qty | D55: Total: | H55: Cft | I55: =SUM(I53:I54) -> 1136.17 | L55: =+K53/$K$57 -> 15% | N55: =+I55*$J$58 -> 26,132.00 | O55: =+I55*J53*$J$58 -> 836,224
L56: =SUM(L10:L55) -> 100%
I57: Total Cost = | K57: =SUM(K9:K56) -> 241,322
I58: Total of Manhole= | J58: =+[17]Summary!O6 -> 23 | K58: No's
I59: Grand Total Cost= | K59: =+K57*J58 -> 5,550,404 | N59: =SUM(N9:N58) -> 104,510.27 | O59: =SUM(O9:O58) -> 5,550,404

Sheet M.H 6.5'dia (Type-VII
D1: Project Name | J1: Manhole #
E2: CIVIL INFRASTRUCTURE WORKS | J2: Road Name :
D3: RATE ANALYSIS INCLUDED LABOR | J3: Sewer Line (Ø) | K3: 1.33 ft
A4: Manhole Data;
B5: Manhole Inner dia(Ø) | C5: 6.50 ft | D5: Depth of Manhole, | E5: 18.00 ft | F5: Wall Thick-I | G5: 0.75 ft | H5: Wall Thick-II | I5: =13.5/12 -> 1.125 ft | J5: MH Type-VII | K5: Assumed Quantity, | L5: 1
A7: Sr.# | B7: Item of Works | D7: ABSTRACT OF QUANTIES | J7: RATE ANALYSIS
B8: Decription of items | D8: No. | E8: Length (ft) | F8: width (ft) | G8: Height (ft) | H8: Unit | I8: Qty | J8: Unit Rate | K8: Amount | N8: Total Qty | O8: Total Rs.
A9: 1 | B9: Excavation
B10: Excavation | D10: =+L5 -> 1 | E10: =+C5+4.25+0.75 -> 11.50 | F10: =+E10 -> 11.50 | G10: =+E5 -> 18.00 | I10: =PRODUCT(D10:G10) -> 2380.50 | J10: 12.00 | K10: =I11*J10 -> 28,566.00
B11: Qty | D11: Total: | H11: Cft | I11: =SUM(I10:I10) -> 2380.50 | L11: =+K10/$K$57 -> 9% | N11: =+I11*$J$58 -> 4,761.00 | O11: =+I11*J10*$J$58 -> 57,132
A12: =A9+1 -> 2 | B12: Dressing of bed
B13: Dressing of bed | D13: =D10 -> 1 | E13: =+E10 -> 11.50 | F13: =((3.14*(($E$10-0.75)*($E$10-0.75))/4)) -> 90.72 | I13: =PRODUCT(D13:G13) -> 1043.24 | J13: 4.00 | K13: =I14*J13 -> 4,172.96
B14: Qty | D14: Total: | H14: Sft | I14: =SUM(I13:I13) -> 1043.24 | L14: =+K13/$K$57 -> 1% | N14: =+I14*$J$58 -> 2,086.48 | O14: =+I14*J13*$J$58 -> 8,346
A15: 3 | B15: Crurshed Stone Bedding
B16: Crurshed Bedding 1" Down | D16: =D10 -> 1 | E16: Area= | F16: =+F13 -> 90.72 | G16: 1.00 | I16: =PRODUCT(D16:G16) -> 90.72 | J16: 140.00 | K16: =I17*J16 -> 12,700.32
B17: Qty | D17: Total: | H17: Cft | I17: =SUM(I16:I16) -> 90.72 | L17: =+K16/$K$57 -> 4% | N17: =+I17*$J$58 -> 181.43 | O17: =+I17*J16*$J$58 -> 25,401
A18: =+A15+1 -> 4 | B18: PCC Concrete 1:4:8
B19: Base Concrete 1:4:8 | D19: =D13 -> 1 | E19: Area= | F19: =((3.14*(($E$10-1.75)*($E$10-1.75))/4)) -> 74.62 | G19: 0.75 | I19: =PRODUCT(D19:G19) -> 55.97 | J19: 280.00 | K19: =I20*J19 -> 15,671.05
B20: Qty | D20: Total: | H20: Cft | I20: =SUM(I19:I19) -> 55.97 | L20: =+K19/$K$57 -> 5% | N20: =+I20*$J$58 -> 111.94 | O20: =+I20*J19*$J$58 -> 31,342
A21: =+A18+1 -> 5 | B21: Pacca Brick Work with 1:3 C/S Mortar
B22: Wall (Circular) | D22: 1 | E22: =3.142*($C$5+$I$5) -> 23.96 | F22: =+I5 -> 1.13 | G22: =+$G$10-$G$16-$G$19-G23-G23 -> 5.75 | I22: =PRODUCT(D22:G22) -> 154.98 | J22: 420.00 | K22: =+I25*J22 -> 116,143.33
B23: Wall (Circular) | D23: =+D19 -> 1 | E23: =3.142*($C$5+$G$5) -> 22.78 | F23: =$G$5 -> 0.75 | G23: =8-G24 -> 5.25 | I23: =PRODUCT(D23:G23) -> 89.69
B24: Wall (Dome) | D24: =D23 -> 1 | E24: =((3.142*($C$5+$G$5))+(3.142*(1.833+$G$5)))/2 -> 15.45 | F24: =$G$5 -> 0.75 | G24: 2.75 | I24: 31.86
B25: Qty | D25: Total: | H25: Cft | I25: =SUM(I22:I24) -> 276.53 | L25: =+K22/$K$57 -> 36% | N25: =+I25*$J$58 -> 553.06 | O25: =+I25*J22*$J$58 -> 232,287
A26: =+A21+1 -> 6 | B26: Plaster Work with 1:3 C/S Mortar
B27: Wall (Circular) Outer Side | D27: =D24 -> 1 | E27: =3.142*(+$C$5+$I$5+$I$5) -> 27.49 | G27: =+G22 -> 5.75 | I27: =PRODUCT(D27:G27) -> 158.08 | J27: 48.00 | K27: =+I32*J27 -> 26,996.30
B28: Wall (Circular) Outer Side | D28: =+D27 -> 1 | E28: =3.142*(+$C$5+$G$5+$G$5) -> 25.14 | G28: =+G23 -> 5.25 | I28: =PRODUCT(D28:G28) -> 131.96
B29: Wall (Dome) Outer Side | D29: =D27 -> 1 | E29: =((3.142*($C$5+$G$5+$G$5))+(3.142*(1.833+$G$5+$G$5)))/2 -> 17.80 | G29: =+G24 -> 2.75 | I29: =PRODUCT(D29:G29) -> 48.96
B30: Wall (Circular) inner Side | D30: 1 | E30: =3.142*($C$5) -> 20.42 | G30: =+G27+G28-G43 -> 9.18 | I30: =PRODUCT(D30:G30) -> 187.42
B31: Wall (Dome Inner Side | D31: =D30 -> 1 | E31: =((3.142*($C$5))+(3.142*(1.833)))/2 -> 13.09 | G31: =+G29 -> 2.75 | I31: =PRODUCT(D31:G31) -> 36.00
B32: Qty | D32: Total: | H32: Sft | I32: =SUM(I27:I31) -> 562.42 | L32: =+K27/$K$57 -> 8% | N32: =+I32*$J$58 -> 1,124.85 | O32: =+I32*J27*$J$58 -> 53,993
A33: =+A26+1 -> 7 | B33: Bituman Coating
B34: Wall (Circular) Outer Side | D34: =D50 -> 1 | E34: =+E27 -> 27.49 | G34: =+G27 -> 5.75 | I34: =PRODUCT(D34:G34) -> 158.08 | J34: 14.00 | K34: =I39*J34 -> 4,746.10
B35: Wall (Circular) Outer Side | D35: =+D34 -> 1 | E35: =+E28 -> 25.14 | G35: =+G28 -> 5.25 | I35: =PRODUCT(D35:G35) -> 131.96
B36: Wall (Dome) Outer Side | D36: =D34 -> 1 | E36: =+E29 -> 17.80 | G36: =+G29 -> 2.75 | I36: =PRODUCT(D36:G36) -> 48.96
B37: Wall (Circular) inner Side | D37: 0 | E37: =+E30 -> 20.42 | G37: =+G30 -> 9.18 | I37: =PRODUCT(D37:G37) -> 0.00
B38: Wall (Dome Inner Side | D38: =+D37 -> 0 | E38: =+E31 -> 13.09 | G38: =+G31 -> 2.75 | I38: =PRODUCT(D38:G38) -> 0.00
B39: Qty | D39: Total: | H39: Sft | I39: =SUM(I34:I38) -> 339.01 | L39: =+K34/$K$57 -> 1% | N39: =+I39*$J$58 -> 678.01 | O39: =+I39*J34*$J$58 -> 9,492
A40: =+A33+1 -> 8 | B40: Concrete 1:2:4
B41: Top Cover Slab | D41: =D24 -> 1 | E41: Area= | F41: =((3.14*(3.83*3.83))/4) -> 11.52 | G41: 0.75 | I41: =PRODUCT(D41:G41) -> 8.64 | J41: 450.00 | K41: =I45*J41 -> 29,743.09
B42: D/d of Manhole Cover | D42: -1 | E42: Area= | F42: =((3.14*(1.83*1.83))/4) -> 2.63 | G42: 0.75 | I42: =PRODUCT(D42:G42) -> -1.97
B43: Beching PCC | D43: =+D41 -> 1 | E43: Area= | F43: =((3.14*(C5*C5))/4) -> 33.17 | G43: =0.33+($K$3+0.16) -> 1.82 | I43: =PRODUCT(D43:G43) -> 60.47
B44: D/d of Pipe | D44: -1 | E44: Area= | F44: =((3.14*(K3*K3))/4)/2 -> 0.70 | G44: =($K$3+0.16) -> 1.49 | I44: =PRODUCT(D44:G44) -> -1.04
B45: Qty | D45: Total: | H45: Cft | I45: =SUM(I41:I44) -> 66.10 | L45: =+K41/$K$57 -> 9% | N45: =+I45*$J$58 -> 132.19 | O45: =+I45*J41*$J$58 -> 59,486
A46: =+A40+1 -> 9 | B46: Manhole Cover 22" dia
B47: 22" dia MH Cover | D47: 1 | I47: =PRODUCT(D47:G47) -> 1.00 | J47: 17325.00 | K47: =I48*J47 -> 17,325.00
B48: Qty | D48: Total: | H48: No | I48: =SUM(I47:I47) -> 1.00 | L48: =+K47/$K$57 -> 5% | N48: =+I48*$J$58 -> 2.00 | O48: =+I48*J47*$J$58 -> 34,650
A49: =+A46+1 -> 10 | B49: Malleable Iron Step
B50: Iron Step @1' C/C | D50: 1 | F50: Brick Work Height | G50: =+(+G22+G23+G24)-1 -> 12.75 | I50: =ROUND(G50,0) -> 13.00 | J50: 1550.00 | K50: =I51*J50 -> 20,150.00
B51: Qty | D51: Total: | H51: No | I51: =SUM(I50:I50) -> 13.00 | L51: =+K50/$K$57 -> 6% | N51: =+I51*$J$58 -> 26.00 | O51: =+I51*J50*$J$58 -> 40,300
A52: =+A49+1 -> 11 | B52: Backfill
B53: Backfill (Total Excavation) | D53: =+D10 -> 1 | G53: =I11 -> 2380.50 | I53: =PRODUCT(D53:G53) -> 2380.50 | J53: 32.00 | K53: =I55*J53 -> 47,237.76
B54: D/d of Manhole | D54: -1 | E54: Area | F54: =3.14*(($C$5+$G$5+$G$5)*($C$5+$G$5+$G$5))/4 -> 50.24 | G54: =+G10 -> 18.00 | I54: =PRODUCT(D54:G54) -> -904.32
B55: Qty | D55: Total: | H55: Cft | I55: =SUM(I53:I54) -> 1476.18 | L55: =+K53/$K$57 -> 15% | N55: =+I55*$J$58 -> 2,952.36 | O55: =+I55*J53*$J$58 -> 94,476
L56: =SUM(L9:L55) -> 100%
I57: Total Cost = | K57: =SUM(K9:K56) -> 323,452
I58: Total of Manhole= | J58: =+[17]Summary!Q6 -> 2 | K58: No's
I59: Grand Total Cost= | K59: =+K57*J58 -> 646,904 | N59: =SUM(N9:N58) -> 12,609.33 | O59: =SUM(O9:O58) -> 646,904

Sheet Material Rates
A2: FIXING OF APRON JALI
A5: A | B5: Cement Mortor 1-1/2" thick for 100 Sft
B6: Material Analysis: | L6: fixing
A7: 1. | B7: Wet volume of Mortar | D7: = | E7: 100 x 1.5/12 | F7: = | G7: =100*1.5/12 -> 12.50 | H7: Cft
A8: 2. | B8: Add: 1/3rd for shrinkage | D8: = | E8: 9.84 x 1/3 | F8: = | G8: =G7/3 -> 4.17 | H8: Cft
A9: 3. | B9: Sub-Total (Sr. # 1 & 2) | F9: = | G9: =SUM(G7:G8) -> 16.67 | H9: Cft
A10: 4. | B10: Add: 5% Wastage on Sr. # 3 | E10: 13.12 x 5% | F10: = | G10: =G9*5% -> 0.83 | H10: Cft
A11: 5. | B11: G-Total (Sr. # 3 & 4) | D11: = | E11: 13.12+0.66 | F11: = | G11: =SUM(G9+G10) -> 17.50 | H11: Cft
B13: Ratio of Mortar: | D13: = | E13: (1 : 4)
B14: Sum of Ratio | D14: = | E14: 1 + 4 = 5
A15: 6. | B15: Cement | D15: = | E15: (13.78*1/5)/1.25 | F15: = | G15: =(G11/5)/1.25 -> 2.800 | H15: Bag | L15: =G15/100*37.781 -> 1.06
A16: 7. | B16: Sand Local | D16: = | E16: (13.78* 4/5) | F16: = | G16: =(G11*4)/5 -> 14.000 | H16: Cft | L16: =G16/100*37.781 -> 5.29
B17: Cement used for area1 m² or 10.764 Sft | D17: = | E17: (3.674/100)*10.764 | F17: = | G17: =(G15/100)*10.764 -> 0.301 | H17: Bag
B18: Sand used for area 1 m² or 10.764 Sft | D18: = | E18: (9.186/100)*10.764 | F18: = | G18: =(G16/100)*10.764 -> 1.507 | H18: Cft

Sheet LAbor RATE GRANITE STAIR STEP
A1: ANALYSIS OF RATE GRANITE STAIR STEP
A4: STAIR STEPS
A5: Labor Rate
B6: Area
B7: 1No Step (R=7" ,T=10.50" W=4.0') | C7: 1 | D7: x | E7: 4.00 | F7: x | G7: =0.58+0.875+0.08 -> 1.54 | H7: = | I7: =C7*E7*G7 -> 6.140 | O7: =7/12 -> 0.5833333333 | P7: =10.5/12 -> 0.875 | Q7: =1/12 -> 0.08333333333
O8: 0.58 | P8: 0.875 | Q8: 0.08 | R8: =O8+P8+Q8 -> 1.535
A9: A | B9: Total Quantity (Sft) | H9: = | I9: =I7 -> 6.14 | J9: Sft
A11: B | B11: Rate as per sub-contractor Quotation Rate per No | H11: = | I11: 330.00 | J11: Rs./No
A12: C | B12: Rate per Sft as per sub-contactor Quotation | L12: =I11/I9 -> 53.746 | M12: Rs/ Sft
B14: Rate as per Quotation | E14: @ | G14: 45.0 | H14: Rs/Sft | L14: =G14*I9 -> 276.300 | M14: Rs.No
